NUMERO_MANDATO;RIGA_MANDATO;QUIET;IMPORTO_RIGA;IMPORTO_MANDATO;BENEFICIARIO;CIG;TITOLO_PAGAMENTO;DATA_MANDATO;CAPITOLO;ARTICOLO;NUMERO_IMPEGNO;TITOLO;DESCR_TITOLO;LIVELLO_II;DESCR_LIVELLO_II;LIVELLO_III;DESCR_LIVELLO_III;LIVELLO_IV;DESCR_LIVELLO_IV;LIVELLO_V;DESCR_LIVELLO_V;DATA_PAG_EFF
1618;1;0;1.355,00;1.355,00;OMESSO NOMINATIVO NEL RISPETTO DELLA NORMATIVA SULLA PROTEZIONE DATI PERSONALI; ;L.R. n. 22/2017, art. 1, comma 16  Aiuti in favore delle aziende agricole per fronteggiare i danni causati nel corso del 2017 dalla diffusione della febbre catarrale degli ovini. Erogazione aiuto.;01/10/2018;1600;1;373;1;Spese correnti;4;Trasferimenti correnti;3;Trasferimenti correnti a Imprese;99;Trasferimenti correnti a altre imprese;999;Trasferimenti correnti a altre imprese;01/10/2018
1619;1;0;3.051,00;3.051,00;OMESSO NOMINATIVO NEL RISPETTO DELLA NORMATIVA SULLA PROTEZIONE DATI PERSONALI; ;L.R. n. 22/2017, art. 1, comma 16  Aiuti in favore delle aziende agricole per fronteggiare i danni causati nel corso del 2017 dalla diffusione della febbre catarrale degli ovini. Erogazione aiuto.;01/10/2018;1600;1;374;1;Spese correnti;4;Trasferimenti correnti;3;Trasferimenti correnti a Imprese;99;Trasferimenti correnti a altre imprese;999;Trasferimenti correnti a altre imprese;01/10/2018
1622;1;0;539,24;539,24;ICART SRL;Z2A2509B7C;SALDO Fatt.n. 674  del 28/09/2018 ORDINE CAT 4181 DEL 25/09/18/;02/10/2018;83;2;372;1;Spese correnti;3;Acquisto di beni e servizi;1;Acquisto di beni;2;Altri beni di consumo;1;Carta, cancelleria e stampati;02/10/2018
1629;1;0;210,3;210,3;S.ANDREA FRIUS SOCIETA COOPERATIVA SOCIALE;ZA51AA1F4E;ACCONTO Fatt.n. 2018     11/E  del 25/09/2018;05/10/2018;1344;1;346;1;Spese correnti;3;Acquisto di beni e servizi;2;Acquisto di servizi;99;Altri servizi;999;Altri servizi diversi n.a.c.;05/10/2018
1630;1;0;1.720,33;1.720,33;S.ANDREA FRIUS SOCIETA COOPERATIVA SOCIALE;ZA51AA1F4E;SALDO Fatt.n. 2018     11/E  del 25/09/2018;05/10/2018;1420;5;332;1;Spese correnti;3;Acquisto di beni e servizi;2;Acquisto di servizi;15;Contratti di servizio pubblico;3;Contratti di servizio per il trasporto di disabili e anziani;05/10/2018
1631;1;0;980,75;980,75;S.ANDREA FRIUS SOCIETA COOPERATIVA SOCIALE;ZA51AA1F4E;SALDO Fatt.n. 2018     10/E  del 25/09/2018;05/10/2018;1420;5;332;1;Spese correnti;3;Acquisto di beni e servizi;2;Acquisto di servizi;15;Contratti di servizio pubblico;3;Contratti di servizio per il trasporto di disabili e anziani;05/10/2018
1632;1;0;230,16;230,16;POSTE ITALIANE spa;Z4F23F9B5A;SALDO Fatt.n. 8718328462  del 02/10/2018 Fattura Elettronica relativa all'Identificativo Rendiconto 2099190460;08/10/2018;42;7;277;1;Spese correnti;3;Acquisto di beni e servizi;2;Acquisto di servizi;16;Servizi amministrativi;2;Spese postali;08/10/2018
1633;1;0;526,74;526,74;TENNIS CLUB FRIUS a.s.d.; ;LIQUIDAZIONE di spesa per la concessione di un contributo economico straordinario in favore delle Societa Sportive locali, per far fronte alle spese di gestione degli Impianti Sportivi comunali e per lo svolgimento delle attivita agonistiche -  Stagi;08/10/2018;856;3;87;1;Spese correnti;4;Trasferimenti correnti;4;Trasferimenti correnti a Istituzioni Sociali Private;1;Trasferimenti correnti a Istituzioni Sociali Private;1;Trasferimenti correnti a Istituzioni Sociali Private;08/10/2018
1634;1;0;157,85;157,85;COSMAT SRL;ZB9248BAF7;ACCONTO Fatt.n. 7/PA  del 28/09/2018 CIG: ZB9248BAF7;08/10/2018;958;1;322;1;Spese correnti;3;Acquisto di beni e servizi;1;Acquisto di beni;2;Altri beni di consumo;999;Altri beni e materiali di consumo n.a.c.;08/10/2018
1635;1;0;144,2;144,2;COSMAT SRL;ZB9248BAF7;ACCONTO Fatt.n. 7/PA  del 28/09/2018 CIG: ZB9248BAF7;08/10/2018;1474;1;323;1;Spese correnti;3;Acquisto di beni e servizi;1;Acquisto di beni;2;Altri beni di consumo;999;Altri beni e materiali di consumo n.a.c.;08/10/2018
1636;1;0;151,15;151,15;COSMAT SRL;ZB9248BAF7;ACCONTO Fatt.n. 7/PA  del 28/09/2018 CIG: ZB9248BAF7;08/10/2018;82;1;324;1;Spese correnti;3;Acquisto di beni e servizi;1;Acquisto di beni;2;Altri beni di consumo;999;Altri beni e materiali di consumo n.a.c.;08/10/2018
1637;1;0;22,45;22,45;COSMAT SRL;ZB9248BAF7;ACCONTO Fatt.n. 7/PA  del 28/09/2018 CIG: ZB9248BAF7;08/10/2018;1336;2;325;1;Spese correnti;3;Acquisto di beni e servizi;1;Acquisto di beni;2;Altri beni di consumo;999;Altri beni e materiali di consumo n.a.c.;08/10/2018
1638;1;0;298,42;298,42;COSMAT SRL;ZB9248BAF7;SALDO Fatt.n. 7/PA  del 28/09/2018 CIG: ZB9248BAF7;08/10/2018;208;1;326;1;Spese correnti;3;Acquisto di beni e servizi;1;Acquisto di beni;2;Altri beni di consumo;999;Altri beni e materiali di consumo n.a.c.;08/10/2018
1640;1;0;100;100;OMESSO NOMINATIVO NEL RISPETTO DELLA NORMATIVA SULLA PROTEZIONE DATI PERSONALI; ;A.S. 2017/2018 - liquidazione di spesa per l'attribuzione della Borsa di studio in favore degli studenti della Scuola Secondaria di II grado, che abbiano superato l'Esame di Stato -;09/10/2018;682;2;248;1;Spese correnti;4;Trasferimenti correnti;2;Trasferimenti correnti a Famiglie;3;Borse di studio, dottorati di ricerca e contratti di formazione specialistica area medica;1;Borse di studio;09/10/2018
1641;1;0;100;100;OMESSO NOMINATIVO NEL RISPETTO DELLA NORMATIVA SULLA PROTEZIONE DATI PERSONALI; ;A.S. 2017/2018 - liquidazione di spesa per l'attribuzione della Borsa di studio in favore degli studenti della Scuola Secondaria di II grado, che abbiano superato l'Esame di Stato -;09/10/2018;682;2;248;1;Spese correnti;4;Trasferimenti correnti;2;Trasferimenti correnti a Famiglie;3;Borse di studio, dottorati di ricerca e contratti di formazione specialistica area medica;1;Borse di studio;09/10/2018
1642;1;0;100;100;OMESSO NOMINATIVO NEL RISPETTO DELLA NORMATIVA SULLA PROTEZIONE DATI PERSONALI; ;A.S. 2017/2018 - liquidazione di spesa per l'attribuzione della Borsa di studio in favore degli studenti della Scuola Secondaria di II grado, che abbiano superato l'Esame di Stato - Approvazione fac-simile del modulo di domanda e termini di scadenza;09/10/2018;682;2;248;1;Spese correnti;4;Trasferimenti correnti;2;Trasferimenti correnti a Famiglie;3;Borse di studio, dottorati di ricerca e contratti di formazione specialistica area medica;1;Borse di studio;09/10/2018
1643;1;0;100;100;OMESSO NOMINATIVO NEL RISPETTO DELLA NORMATIVA SULLA PROTEZIONE DATI PERSONALI; ;A.S. 2017/2018 - liquidazione di spesa per l'attribuzione della Borsa di studio in favore degli studenti della Scuola Secondaria di II grado, che abbiano superato l'Esame di Stato -;09/10/2018;682;2;248;1;Spese correnti;4;Trasferimenti correnti;2;Trasferimenti correnti a Famiglie;3;Borse di studio, dottorati di ricerca e contratti di formazione specialistica area medica;1;Borse di studio;09/10/2018
1644;1;0;100;100;OMESSO NOMINATIVO NEL RISPETTO DELLA NORMATIVA SULLA PROTEZIONE DATI PERSONALI; ;A.S. 2017/2018 - liquidazione di spesa per l'attribuzione della Borsa di studio in favore degli studenti della Scuola Secondaria di II grado, che abbiano superato l'Esame di Stato -;09/10/2018;682;2;248;1;Spese correnti;4;Trasferimenti correnti;2;Trasferimenti correnti a Famiglie;3;Borse di studio, dottorati di ricerca e contratti di formazione specialistica area medica;1;Borse di studio;09/10/2018
1645;1;0;100;100;OMESSO NOMINATIVO NEL RISPETTO DELLA NORMATIVA SULLA PROTEZIONE DATI PERSONALI; ;A.S. 2017/2018 - liquidazione di spesa per l'attribuzione della Borsa di studio in favore degli studenti della Scuola Secondaria di II grado, che abbiano superato l'Esame di Stato -;09/10/2018;682;2;248;1;Spese correnti;4;Trasferimenti correnti;2;Trasferimenti correnti a Famiglie;3;Borse di studio, dottorati di ricerca e contratti di formazione specialistica area medica;1;Borse di studio;09/10/2018
1646;1;0;100;100;OMESSO NOMINATIVO NEL RISPETTO DELLA NORMATIVA SULLA PROTEZIONE DATI PERSONALI; ;A.S. 2017/2018 - liquidazione di spesa per l'attribuzione della Borsa di studio in favore degli studenti della Scuola Secondaria di II grado, che abbiano superato l'Esame di Stato -;09/10/2018;682;2;248;1;Spese correnti;4;Trasferimenti correnti;2;Trasferimenti correnti a Famiglie;3;Borse di studio, dottorati di ricerca e contratti di formazione specialistica area medica;1;Borse di studio;09/10/2018
1647;1;0;100;100;OMESSO NOMINATIVO NEL RISPETTO DELLA NORMATIVA SULLA PROTEZIONE DATI PERSONALI; ;A.S. 2017/2018 - liquidazione di spesa per l'attribuzione della Borsa di studio in favore degli studenti della Scuola Secondaria di II grado, che abbiano superato l'Esame di Stato -;09/10/2018;682;2;248;1;Spese correnti;4;Trasferimenti correnti;2;Trasferimenti correnti a Famiglie;3;Borse di studio, dottorati di ricerca e contratti di formazione specialistica area medica;1;Borse di studio;09/10/2018
1648;1;0;100;100;OMESSO NOMINATIVO NEL RISPETTO DELLA NORMATIVA SULLA PROTEZIONE DATI PERSONALI; ;A.S. 2017/2018 - liquidazione di spesa per l'attribuzione della Borsa di studio in favore degli studenti della Scuola Secondaria di II grado, che abbiano superato l'Esame di Stato -;09/10/2018;682;2;248;1;Spese correnti;4;Trasferimenti correnti;2;Trasferimenti correnti a Famiglie;3;Borse di studio, dottorati di ricerca e contratti di formazione specialistica area medica;1;Borse di studio;09/10/2018
1649;1;0;100;100;OMESSO NOMINATIVO NEL RISPETTO DELLA NORMATIVA SULLA PROTEZIONE DATI PERSONALI; ;A.S. 2017/2018 - liquidazione di spesa per l'attribuzione della Borsa di studio in favore degli studenti della Scuola Secondaria di II grado, che abbiano superato l'Esame di Stato -;09/10/2018;682;2;248;1;Spese correnti;4;Trasferimenti correnti;2;Trasferimenti correnti a Famiglie;3;Borse di studio, dottorati di ricerca e contratti di formazione specialistica area medica;1;Borse di studio;09/10/2018
1650;1;0;100;100;OMESSO NOMINATIVO NEL RISPETTO DELLA NORMATIVA SULLA PROTEZIONE DATI PERSONALI; ;A.S. 2017/2018 - liquidazione di spesa per l'attribuzione della Borsa di studio in favore degli studenti della Scuola Secondaria di II grado, che abbiano superato l'Esame di Stato -;09/10/2018;682;2;248;1;Spese correnti;4;Trasferimenti correnti;2;Trasferimenti correnti a Famiglie;3;Borse di studio, dottorati di ricerca e contratti di formazione specialistica area medica;1;Borse di studio;09/10/2018
1651;1;0;100;100;OMESSO NOMINATIVO NEL RISPETTO DELLA NORMATIVA SULLA PROTEZIONE DATI PERSONALI; ;A.S. 2017/2018 - liquidazione di spesa per l'attribuzione della Borsa di studio in favore degli studenti della Scuola Secondaria di II grado, che abbiano superato l'Esame di Stato -;09/10/2018;682;2;248;1;Spese correnti;4;Trasferimenti correnti;2;Trasferimenti correnti a Famiglie;3;Borse di studio, dottorati di ricerca e contratti di formazione specialistica area medica;1;Borse di studio;09/10/2018
1652;1;0;100;100;OMESSO NOMINATIVO NEL RISPETTO DELLA NORMATIVA SULLA PROTEZIONE DATI PERSONALI; ;A.S. 2017/2018 - liquidazione di spesa per l'attribuzione della Borsa di studio in favore degli studenti della Scuola Secondaria di II grado, che abbiano superato l'Esame di Stato -;09/10/2018;682;2;248;1;Spese correnti;4;Trasferimenti correnti;2;Trasferimenti correnti a Famiglie;3;Borse di studio, dottorati di ricerca e contratti di formazione specialistica area medica;1;Borse di studio;09/10/2018
1653;1;0;100;100;OMESSO NOMINATIVO NEL RISPETTO DELLA NORMATIVA SULLA PROTEZIONE DATI PERSONALI; ;A.S. 2017/2018 - liquidazione di spesa per l'attribuzione della Borsa di studio in favore degli studenti della Scuola Secondaria di II grado, che abbiano superato l'Esame di Stato -;09/10/2018;682;2;248;1;Spese correnti;4;Trasferimenti correnti;2;Trasferimenti correnti a Famiglie;3;Borse di studio, dottorati di ricerca e contratti di formazione specialistica area medica;1;Borse di studio;09/10/2018
1654;1;0;100;100;OMESSO NOMINATIVO NEL RISPETTO DELLA NORMATIVA SULLA PROTEZIONE DATI PERSONALI; ;A.S. 2017/2018 - liquidazione di spesa per l'attribuzione della Borsa di studio in favore degli studenti della Scuola Secondaria di II grado, che abbiano superato l'Esame di Stato - Approvazione fac-simile del modulo di domanda e termini di scadenza;09/10/2018;682;2;248;1;Spese correnti;4;Trasferimenti correnti;2;Trasferimenti correnti a Famiglie;3;Borse di studio, dottorati di ricerca e contratti di formazione specialistica area medica;1;Borse di studio;09/10/2018
1655;1;0;100;100;OMESSO NOMINATIVO NEL RISPETTO DELLA NORMATIVA SULLA PROTEZIONE DATI PERSONALI; ;A.S. 2017/2018 - liquidazione di spesa per l'attribuzione della Borsa di studio in favore degli studenti della Scuola Secondaria di II grado, che abbiano superato l'Esame di Stato -;09/10/2018;682;2;248;1;Spese correnti;4;Trasferimenti correnti;2;Trasferimenti correnti a Famiglie;3;Borse di studio, dottorati di ricerca e contratti di formazione specialistica area medica;1;Borse di studio;09/10/2018
1656;1;0;337,48;337,48;OMESSO NOMINATIVO NEL RISPETTO DELLA NORMATIVA SULLA PROTEZIONE DATI PERSONALI; ;A.S. 2017/2018 - Rimborso spese di viaggio in favore degli studenti pendolari della Scuola Secondaria di II grado, Conservatori Musicali ed Istituti Professionali - liquidazione;09/10/2018;674;4;245;1;Spese correnti;4;Trasferimenti correnti;2;Trasferimenti correnti a Famiglie;5;Altri trasferimenti a famiglie;999;Altri trasferimenti a famiglie n.a.c.;09/10/2018
1657;1;0;337,48;337,48;OMESSO NOMINATIVO NEL RISPETTO DELLA NORMATIVA SULLA PROTEZIONE DATI PERSONALI; ;A.S. 2017/2018 - Rimborso spese di viaggio in favore degli studenti pendolari della Scuola Secondaria di II grado, Conservatori Musicali ed Istituti Professionali - liquidazione;09/10/2018;674;4;245;1;Spese correnti;4;Trasferimenti correnti;2;Trasferimenti correnti a Famiglie;5;Altri trasferimenti a famiglie;999;Altri trasferimenti a famiglie n.a.c.;09/10/2018
1658;1;0;75,94;75,94;OMESSO NOMINATIVO NEL RISPETTO DELLA NORMATIVA SULLA PROTEZIONE DATI PERSONALI; ;A.S. 2017/2018 - Rimborso spese di viaggio in favore degli studenti pendolari della Scuola Secondaria di II grado, Conservatori Musicali ed Istituti Professionali - liquidazione;09/10/2018;674;4;245;1;Spese correnti;4;Trasferimenti correnti;2;Trasferimenti correnti a Famiglie;5;Altri trasferimenti a famiglie;999;Altri trasferimenti a famiglie n.a.c.;09/10/2018
1659;1;0;265,16;265,16;OMESSO NOMINATIVO NEL RISPETTO DELLA NORMATIVA SULLA PROTEZIONE DATI PERSONALI; ;A.S. 2017/2018 - Rimborso spese di viaggio in favore degli studenti pendolari della Scuola Secondaria di II grado, Conservatori Musicali ed Istituti Professionali - liquidazione;09/10/2018;674;4;245;1;Spese correnti;4;Trasferimenti correnti;2;Trasferimenti correnti a Famiglie;5;Altri trasferimenti a famiglie;999;Altri trasferimenti a famiglie n.a.c.;09/10/2018
1660;1;0;101,24;101,24;OMESSO NOMINATIVO NEL RISPETTO DELLA NORMATIVA SULLA PROTEZIONE DATI PERSONALI; ;A.S. 2017/2018 - Rimborso spese di viaggio in favore degli studenti pendolari della Scuola Secondaria di II grado, Conservatori Musicali ed Istituti Professionali - liquidazione;09/10/2018;674;4;245;1;Spese correnti;4;Trasferimenti correnti;2;Trasferimenti correnti a Famiglie;5;Altri trasferimenti a famiglie;999;Altri trasferimenti a famiglie n.a.c.;09/10/2018
1661;1;0;337,48;337,48;OMESSO NOMINATIVO NEL RISPETTO DELLA NORMATIVA SULLA PROTEZIONE DATI PERSONALI; ;A.S. 2017/2018 - Rimborso spese di viaggio in favore degli studenti pendolari della Scuola Secondaria di II grado, Conservatori Musicali ed Istituti Professionali - liquidazione;09/10/2018;674;4;245;1;Spese correnti;4;Trasferimenti correnti;2;Trasferimenti correnti a Famiglie;5;Altri trasferimenti a famiglie;999;Altri trasferimenti a famiglie n.a.c.;09/10/2018
1662;1;0;337,48;337,48;OMESSO NOMINATIVO NEL RISPETTO DELLA NORMATIVA SULLA PROTEZIONE DATI PERSONALI; ;A.S. 2017/2018 - Rimborso spese di viaggio in favore degli studenti pendolari della Scuola Secondaria di II grado, Conservatori Musicali ed Istituti Professionali - liquidazione;09/10/2018;674;4;245;1;Spese correnti;4;Trasferimenti correnti;2;Trasferimenti correnti a Famiglie;5;Altri trasferimenti a famiglie;999;Altri trasferimenti a famiglie n.a.c.;09/10/2018
1663;1;0;101,25;101,25;OMESSO NOMINATIVO NEL RISPETTO DELLA NORMATIVA SULLA PROTEZIONE DATI PERSONALI; ;A.S. 2017/2018 - Rimborso spese di viaggio in favore degli studenti pendolari della Scuola Secondaria di II grado, Conservatori Musicali ed Istituti Professionali - liquidazione;09/10/2018;674;4;245;1;Spese correnti;4;Trasferimenti correnti;2;Trasferimenti correnti a Famiglie;5;Altri trasferimenti a famiglie;999;Altri trasferimenti a famiglie n.a.c.;09/10/2018
1664;1;0;101,25;101,25;OMESSO NOMINATIVO NEL RISPETTO DELLA NORMATIVA SULLA PROTEZIONE DATI PERSONALI; ;A.S. 2017/2018 - Rimborso spese di viaggio in favore degli studenti pendolari della Scuola Secondaria di II grado, Conservatori Musicali ed Istituti Professionali - liquidazione;09/10/2018;674;4;245;1;Spese correnti;4;Trasferimenti correnti;2;Trasferimenti correnti a Famiglie;5;Altri trasferimenti a famiglie;999;Altri trasferimenti a famiglie n.a.c.;09/10/2018
1665;1;0;337,48;337,48;OMESSO NOMINATIVO NEL RISPETTO DELLA NORMATIVA SULLA PROTEZIONE DATI PERSONALI; ;A.S. 2017/2018 - Rimborso spese di viaggio in favore degli studenti pendolari della Scuola Secondaria di II grado, Conservatori Musicali ed Istituti Professionali - liquidazione;09/10/2018;674;4;245;1;Spese correnti;4;Trasferimenti correnti;2;Trasferimenti correnti a Famiglie;5;Altri trasferimenti a famiglie;999;Altri trasferimenti a famiglie n.a.c.;09/10/2018
1666;1;0;66,3;66,3;OMESSO NOMINATIVO NEL RISPETTO DELLA NORMATIVA SULLA PROTEZIONE DATI PERSONALI; ;A.S. 2017/2018 - Rimborso spese di viaggio in favore degli studenti pendolari della Scuola Secondaria di II grado, Conservatori Musicali ed Istituti Professionali - liquidazione;09/10/2018;674;4;245;1;Spese correnti;4;Trasferimenti correnti;2;Trasferimenti correnti a Famiglie;5;Altri trasferimenti a famiglie;999;Altri trasferimenti a famiglie n.a.c.;09/10/2018
1667;1;0;235,03;235,03;OMESSO NOMINATIVO NEL RISPETTO DELLA NORMATIVA SULLA PROTEZIONE DATI PERSONALI; ;A.S. 2017/2018 - Rimborso spese di viaggio in favore degli studenti pendolari della Scuola Secondaria di II grado, Conservatori Musicali ed Istituti Professionali - liquidazione;09/10/2018;674;4;245;1;Spese correnti;4;Trasferimenti correnti;2;Trasferimenti correnti a Famiglie;5;Altri trasferimenti a famiglie;999;Altri trasferimenti a famiglie n.a.c.;09/10/2018
1668;1;0;295,29;295,29;OMESSO NOMINATIVO NEL RISPETTO DELLA NORMATIVA SULLA PROTEZIONE DATI PERSONALI; ;A.S. 2017/2018 - Rimborso spese di viaggio in favore degli studenti pendolari della Scuola Secondaria di II grado, Conservatori Musicali ed Istituti Professionali - liquidazione;09/10/2018;674;4;245;1;Spese correnti;4;Trasferimenti correnti;2;Trasferimenti correnti a Famiglie;5;Altri trasferimenti a famiglie;999;Altri trasferimenti a famiglie n.a.c.;09/10/2018
1669;1;0;101,24;101,24;OMESSO NOMINATIVO NEL RISPETTO DELLA NORMATIVA SULLA PROTEZIONE DATI PERSONALI; ;A.S. 2017/2018 - Rimborso spese di viaggio in favore degli studenti pendolari della Scuola Secondaria di II grado, Conservatori Musicali ed Istituti Professionali - liquidazione;09/10/2018;674;4;245;1;Spese correnti;4;Trasferimenti correnti;2;Trasferimenti correnti a Famiglie;5;Altri trasferimenti a famiglie;999;Altri trasferimenti a famiglie n.a.c.;09/10/2018
1670;1;0;101,24;101,24;OMESSO NOMINATIVO NEL RISPETTO DELLA NORMATIVA SULLA PROTEZIONE DATI PERSONALI; ;A.S. 2017/2018 - Rimborso spese di viaggio in favore degli studenti pendolari della Scuola Secondaria di II grado, Conservatori Musicali ed Istituti Professionali - liquidazione;09/10/2018;674;4;245;1;Spese correnti;4;Trasferimenti correnti;2;Trasferimenti correnti a Famiglie;5;Altri trasferimenti a famiglie;999;Altri trasferimenti a famiglie n.a.c.;09/10/2018
1671;1;0;295,29;295,29;OMESSO NOMINATIVO NEL RISPETTO DELLA NORMATIVA SULLA PROTEZIONE DATI PERSONALI; ;A.S. 2017/2018 - Rimborso spese di viaggio in favore degli studenti pendolari della Scuola Secondaria di II grado, Conservatori Musicali ed Istituti Professionali - liquidazione;09/10/2018;674;4;245;1;Spese correnti;4;Trasferimenti correnti;2;Trasferimenti correnti a Famiglie;5;Altri trasferimenti a famiglie;999;Altri trasferimenti a famiglie n.a.c.;09/10/2018
1672;1;0;101,24;101,24;OMESSO NOMINATIVO NEL RISPETTO DELLA NORMATIVA SULLA PROTEZIONE DATI PERSONALI; ;A.S. 2017/2018 - Rimborso spese di viaggio in favore degli studenti pendolari della Scuola Secondaria di II grado, Conservatori Musicali ed Istituti Professionali - liquidazione;09/10/2018;674;4;245;1;Spese correnti;4;Trasferimenti correnti;2;Trasferimenti correnti a Famiglie;5;Altri trasferimenti a famiglie;999;Altri trasferimenti a famiglie n.a.c.;09/10/2018
1673;1;0;337,48;337,48;OMESSO NOMINATIVO NEL RISPETTO DELLA NORMATIVA SULLA PROTEZIONE DATI PERSONALI; ;A.S. 2017/2018 - Rimborso spese di viaggio in favore degli studenti pendolari della Scuola Secondaria di II grado, Conservatori Musicali ed Istituti Professionali - liquidazione;09/10/2018;674;4;245;1;Spese correnti;4;Trasferimenti correnti;2;Trasferimenti correnti a Famiglie;5;Altri trasferimenti a famiglie;999;Altri trasferimenti a famiglie n.a.c.;09/10/2018
1674;1;0;101,24;101,24;OMESSO NOMINATIVO NEL RISPETTO DELLA NORMATIVA SULLA PROTEZIONE DATI PERSONALI; ;A.S. 2017/2018 - Rimborso spese di viaggio in favore degli studenti pendolari della Scuola Secondaria di II grado, Conservatori Musicali ed Istituti Professionali - liquidazione;09/10/2018;674;4;245;1;Spese correnti;4;Trasferimenti correnti;2;Trasferimenti correnti a Famiglie;5;Altri trasferimenti a famiglie;999;Altri trasferimenti a famiglie n.a.c.;09/10/2018
1675;1;0;337,48;337,48;OMESSO NOMINATIVO NEL RISPETTO DELLA NORMATIVA SULLA PROTEZIONE DATI PERSONALI; ;A.S. 2017/2018 - Rimborso spese di viaggio in favore degli studenti pendolari della Scuola Secondaria di II grado, Conservatori Musicali ed Istituti Professionali - liquidazione;09/10/2018;674;4;245;1;Spese correnti;4;Trasferimenti correnti;2;Trasferimenti correnti a Famiglie;5;Altri trasferimenti a famiglie;999;Altri trasferimenti a famiglie n.a.c.;09/10/2018
1676;1;0;75,94;75,94;OMESSO NOMINATIVO NEL RISPETTO DELLA NORMATIVA SULLA PROTEZIONE DATI PERSONALI; ;A.S. 2017/2018 - Rimborso spese di viaggio in favore degli studenti pendolari della Scuola Secondaria di II grado, Conservatori Musicali ed Istituti Professionali - liquidazione;09/10/2018;674;4;245;1;Spese correnti;4;Trasferimenti correnti;2;Trasferimenti correnti a Famiglie;5;Altri trasferimenti a famiglie;999;Altri trasferimenti a famiglie n.a.c.;09/10/2018
1677;1;0;337,48;337,48;OMESSO NOMINATIVO NEL RISPETTO DELLA NORMATIVA SULLA PROTEZIONE DATI PERSONALI; ;A.S. 2017/2018 - Rimborso spese di viaggio in favore degli studenti pendolari della Scuola Secondaria di II grado, Conservatori Musicali ed Istituti Professionali - liquidazione;09/10/2018;674;4;245;1;Spese correnti;4;Trasferimenti correnti;2;Trasferimenti correnti a Famiglie;5;Altri trasferimenti a famiglie;999;Altri trasferimenti a famiglie n.a.c.;09/10/2018
1678;1;0;101,24;101,24;OMESSO NOMINATIVO NEL RISPETTO DELLA NORMATIVA SULLA PROTEZIONE DATI PERSONALI; ;A.S. 2017/2018 - Rimborso spese di viaggio in favore degli studenti pendolari della Scuola Secondaria di II grado, Conservatori Musicali ed Istituti Professionali - liquidazione;09/10/2018;674;4;245;1;Spese correnti;4;Trasferimenti correnti;2;Trasferimenti correnti a Famiglie;5;Altri trasferimenti a famiglie;999;Altri trasferimenti a famiglie n.a.c.;09/10/2018
1679;1;0;101,24;101,24;OMESSO NOMINATIVO NEL RISPETTO DELLA NORMATIVA SULLA PROTEZIONE DATI PERSONALI; ;A.S. 2017/2018 - Rimborso spese di viaggio in favore degli studenti pendolari della Scuola Secondaria di II grado, Conservatori Musicali ed Istituti Professionali - liquidazione;09/10/2018;674;4;245;1;Spese correnti;4;Trasferimenti correnti;2;Trasferimenti correnti a Famiglie;5;Altri trasferimenti a famiglie;999;Altri trasferimenti a famiglie n.a.c.;09/10/2018
1680;1;0;303,73;303,73;OMESSO NOMINATIVO NEL RISPETTO DELLA NORMATIVA SULLA PROTEZIONE DATI PERSONALI; ;A.S. 2017/2018 - Rimborso spese di viaggio in favore degli studenti pendolari della Scuola Secondaria di II grado, Conservatori Musicali ed Istituti Professionali - liquidazione;09/10/2018;674;4;245;1;Spese correnti;4;Trasferimenti correnti;2;Trasferimenti correnti a Famiglie;5;Altri trasferimenti a famiglie;999;Altri trasferimenti a famiglie n.a.c.;09/10/2018
1681;1;0;56,95;56,95;OMESSO NOMINATIVO NEL RISPETTO DELLA NORMATIVA SULLA PROTEZIONE DATI PERSONALI; ;A.S. 2017/2018 - Rimborso spese di viaggio in favore degli studenti pendolari della Scuola Secondaria di II grado, Conservatori Musicali ed Istituti Professionali - liquidazione;09/10/2018;674;4;245;1;Spese correnti;4;Trasferimenti correnti;2;Trasferimenti correnti a Famiglie;5;Altri trasferimenti a famiglie;999;Altri trasferimenti a famiglie n.a.c.;09/10/2018
1682;1;0;303,73;303,73;OMESSO NOMINATIVO NEL RISPETTO DELLA NORMATIVA SULLA PROTEZIONE DATI PERSONALI; ;A.S. 2017/2018 - Rimborso spese di viaggio in favore degli studenti pendolari della Scuola Secondaria di II grado, Conservatori Musicali ed Istituti Professionali - liquidazione;09/10/2018;674;4;245;1;Spese correnti;4;Trasferimenti correnti;2;Trasferimenti correnti a Famiglie;5;Altri trasferimenti a famiglie;999;Altri trasferimenti a famiglie n.a.c.;09/10/2018
1683;1;0;265,76;265,76;OMESSO NOMINATIVO NEL RISPETTO DELLA NORMATIVA SULLA PROTEZIONE DATI PERSONALI; ;A.S. 2017/2018 - Rimborso spese di viaggio in favore degli studenti pendolari della Scuola Secondaria di II grado, Conservatori Musicali ed Istituti Professionali - liquidazione;09/10/2018;674;4;245;1;Spese correnti;4;Trasferimenti correnti;2;Trasferimenti correnti a Famiglie;5;Altri trasferimenti a famiglie;999;Altri trasferimenti a famiglie n.a.c.;09/10/2018
1684;1;0;265,76;265,76;OMESSO NOMINATIVO NEL RISPETTO DELLA NORMATIVA SULLA PROTEZIONE DATI PERSONALI; ;A.S. 2017/2018 - Rimborso spese di viaggio in favore degli studenti pendolari della Scuola Secondaria di II grado, Conservatori Musicali ed Istituti Professionali - liquidazione;09/10/2018;674;4;245;1;Spese correnti;4;Trasferimenti correnti;2;Trasferimenti correnti a Famiglie;5;Altri trasferimenti a famiglie;999;Altri trasferimenti a famiglie n.a.c.;09/10/2018
1685;1;0;303,73;303,73;OMESSO NOMINATIVO NEL RISPETTO DELLA NORMATIVA SULLA PROTEZIONE DATI PERSONALI; ;A.S. 2017/2018 - Rimborso spese di viaggio in favore degli studenti pendolari della Scuola Secondaria di II grado, Conservatori Musicali ed Istituti Professionali - liquidazione;09/10/2018;674;4;245;1;Spese correnti;4;Trasferimenti correnti;2;Trasferimenti correnti a Famiglie;5;Altri trasferimenti a famiglie;999;Altri trasferimenti a famiglie n.a.c.;09/10/2018
1686;1;0;303,73;303,73;OMESSO NOMINATIVO NEL RISPETTO DELLA NORMATIVA SULLA PROTEZIONE DATI PERSONALI; ;A.S. 2017/2018 - Rimborso spese di viaggio in favore degli studenti pendolari della Scuola Secondaria di II grado, Conservatori Musicali ed Istituti Professionali - liquidazione;09/10/2018;674;4;245;1;Spese correnti;4;Trasferimenti correnti;2;Trasferimenti correnti a Famiglie;5;Altri trasferimenti a famiglie;999;Altri trasferimenti a famiglie n.a.c.;09/10/2018
1687;1;0;238,64;238,64;OMESSO NOMINATIVO NEL RISPETTO DELLA NORMATIVA SULLA PROTEZIONE DATI PERSONALI; ;A.S. 2017/2018 - Rimborso spese di viaggio in favore degli studenti pendolari della Scuola Secondaria di II grado, Conservatori Musicali ed Istituti Professionali - liquidazione;09/10/2018;674;4;245;1;Spese correnti;4;Trasferimenti correnti;2;Trasferimenti correnti a Famiglie;5;Altri trasferimenti a famiglie;999;Altri trasferimenti a famiglie n.a.c.;09/10/2018
1688;1;0;91,12;91,12;OMESSO NOMINATIVO NEL RISPETTO DELLA NORMATIVA SULLA PROTEZIONE DATI PERSONALI; ;A.S. 2017/2018 - Rimborso spese di viaggio in favore degli studenti pendolari della Scuola Secondaria di II grado, Conservatori Musicali ed Istituti Professionali - liquidazione;09/10/2018;674;4;245;1;Spese correnti;4;Trasferimenti correnti;2;Trasferimenti correnti a Famiglie;5;Altri trasferimenti a famiglie;999;Altri trasferimenti a famiglie n.a.c.;09/10/2018
1689;1;0;91,12;91,12;OMESSO NOMINATIVO NEL RISPETTO DELLA NORMATIVA SULLA PROTEZIONE DATI PERSONALI; ;A.S. 2017/2018 - Rimborso spese di viaggio in favore degli studenti pendolari della Scuola Secondaria di II grado, Conservatori Musicali ed Istituti Professionali - liquidazione;09/10/2018;674;4;245;1;Spese correnti;4;Trasferimenti correnti;2;Trasferimenti correnti a Famiglie;5;Altri trasferimenti a famiglie;999;Altri trasferimenti a famiglie n.a.c.;09/10/2018
1690;1;0;238,64;238,64;OMESSO NOMINATIVO NEL RISPETTO DELLA NORMATIVA SULLA PROTEZIONE DATI PERSONALI; ;A.S. 2017/2018 - Rimborso spese di viaggio in favore degli studenti pendolari della Scuola Secondaria di II grado, Conservatori Musicali ed Istituti Professionali - liquidazione;09/10/2018;674;4;245;1;Spese correnti;4;Trasferimenti correnti;2;Trasferimenti correnti a Famiglie;5;Altri trasferimenti a famiglie;999;Altri trasferimenti a famiglie n.a.c.;09/10/2018
1691;1;0;303,73;303,73;OMESSO NOMINATIVO NEL RISPETTO DELLA NORMATIVA SULLA PROTEZIONE DATI PERSONALI; ;A.S. 2017/2018 - Rimborso spese di viaggio in favore degli studenti pendolari della Scuola Secondaria di II grado, Conservatori Musicali ed Istituti Professionali - liquidazione;09/10/2018;674;4;245;1;Spese correnti;4;Trasferimenti correnti;2;Trasferimenti correnti a Famiglie;5;Altri trasferimenti a famiglie;999;Altri trasferimenti a famiglie n.a.c.;09/10/2018
1692;1;0;208,81;208,81;OMESSO NOMINATIVO NEL RISPETTO DELLA NORMATIVA SULLA PROTEZIONE DATI PERSONALI; ;A.S. 2017/2018 - Rimborso spese di viaggio in favore degli studenti pendolari della Scuola Secondaria di II grado, Conservatori Musicali ed Istituti Professionali - liquidazione;09/10/2018;674;4;245;1;Spese correnti;4;Trasferimenti correnti;2;Trasferimenti correnti a Famiglie;5;Altri trasferimenti a famiglie;999;Altri trasferimenti a famiglie n.a.c.;09/10/2018
1693;1;0;91,12;91,12;OMESSO NOMINATIVO NEL RISPETTO DELLA NORMATIVA SULLA PROTEZIONE DATI PERSONALI; ;A.S. 2017/2018 - Rimborso spese di viaggio in favore degli studenti pendolari della Scuola Secondaria di II grado, Conservatori Musicali ed Istituti Professionali - liquidazione;09/10/2018;674;4;245;1;Spese correnti;4;Trasferimenti correnti;2;Trasferimenti correnti a Famiglie;5;Altri trasferimenti a famiglie;999;Altri trasferimenti a famiglie n.a.c.;09/10/2018
1694;1;0;91,12;91,12;OMESSO NOMINATIVO NEL RISPETTO DELLA NORMATIVA SULLA PROTEZIONE DATI PERSONALI; ;A.S. 2017/2018 - Rimborso spese di viaggio in favore degli studenti pendolari della Scuola Secondaria di II grado, Conservatori Musicali ed Istituti Professionali - liquidazione;09/10/2018;674;4;245;1;Spese correnti;4;Trasferimenti correnti;2;Trasferimenti correnti a Famiglie;5;Altri trasferimenti a famiglie;999;Altri trasferimenti a famiglie n.a.c.;09/10/2018
1695;1;0;79,73;79,73;OMESSO NOMINATIVO NEL RISPETTO DELLA NORMATIVA SULLA PROTEZIONE DATI PERSONALI; ;A.S. 2017/2018 - Rimborso spese di viaggio in favore degli studenti pendolari della Scuola Secondaria di II grado, Conservatori Musicali ed Istituti Professionali - liquidazione;09/10/2018;674;4;245;1;Spese correnti;4;Trasferimenti correnti;2;Trasferimenti correnti a Famiglie;5;Altri trasferimenti a famiglie;999;Altri trasferimenti a famiglie n.a.c.;09/10/2018
1696;1;0;269,98;269,98;OMESSO NOMINATIVO NEL RISPETTO DELLA NORMATIVA SULLA PROTEZIONE DATI PERSONALI; ;A.S. 2017/2018 - Rimborso spese di viaggio in favore degli studenti pendolari della Scuola Secondaria di II grado, Conservatori Musicali ed Istituti Professionali - liquidazione;09/10/2018;674;4;245;1;Spese correnti;4;Trasferimenti correnti;2;Trasferimenti correnti a Famiglie;5;Altri trasferimenti a famiglie;999;Altri trasferimenti a famiglie n.a.c.;09/10/2018
1697;1;0;80,99;80,99;OMESSO NOMINATIVO NEL RISPETTO DELLA NORMATIVA SULLA PROTEZIONE DATI PERSONALI; ;A.S. 2017/2018 - Rimborso spese di viaggio in favore degli studenti pendolari della Scuola Secondaria di II grado, Conservatori Musicali ed Istituti Professionali - liquidazione;09/10/2018;674;4;245;1;Spese correnti;4;Trasferimenti correnti;2;Trasferimenti correnti a Famiglie;5;Altri trasferimenti a famiglie;999;Altri trasferimenti a famiglie n.a.c.;09/10/2018
1698;1;0;70,87;70,87;OMESSO NOMINATIVO NEL RISPETTO DELLA NORMATIVA SULLA PROTEZIONE DATI PERSONALI; ;A.S. 2017/2018 - Rimborso spese di viaggio in favore degli studenti pendolari della Scuola Secondaria di II grado, Conservatori Musicali ed Istituti Professionali - liquidazione;09/10/2018;674;4;245;1;Spese correnti;4;Trasferimenti correnti;2;Trasferimenti correnti a Famiglie;5;Altri trasferimenti a famiglie;999;Altri trasferimenti a famiglie n.a.c.;09/10/2018
1699;1;0;269,98;269,98;OMESSO NOMINATIVO NEL RISPETTO DELLA NORMATIVA SULLA PROTEZIONE DATI PERSONALI; ;A.S. 2017/2018 - Rimborso spese di viaggio in favore degli studenti pendolari della Scuola Secondaria di II grado, Conservatori Musicali ed Istituti Professionali - liquidazione;09/10/2018;674;4;245;1;Spese correnti;4;Trasferimenti correnti;2;Trasferimenti correnti a Famiglie;5;Altri trasferimenti a famiglie;999;Altri trasferimenti a famiglie n.a.c.;09/10/2018
1700;1;0;269,98;269,98;OMESSO NOMINATIVO NEL RISPETTO DELLA NORMATIVA SULLA PROTEZIONE DATI PERSONALI; ;A.S. 2017/2018 - Rimborso spese di viaggio in favore degli studenti pendolari della Scuola Secondaria di II grado, Conservatori Musicali ed Istituti Professionali - liquidazione;09/10/2018;674;4;245;1;Spese correnti;4;Trasferimenti correnti;2;Trasferimenti correnti a Famiglie;5;Altri trasferimenti a famiglie;999;Altri trasferimenti a famiglie n.a.c.;09/10/2018
1701;1;0;70,87;70,87;OMESSO NOMINATIVO NEL RISPETTO DELLA NORMATIVA SULLA PROTEZIONE DATI PERSONALI; ;A.S. 2017/2018 - Rimborso spese di viaggio in favore degli studenti pendolari della Scuola Secondaria di II grado, Conservatori Musicali ed Istituti Professionali - liquidazione;09/10/2018;674;4;245;1;Spese correnti;4;Trasferimenti correnti;2;Trasferimenti correnti a Famiglie;5;Altri trasferimenti a famiglie;999;Altri trasferimenti a famiglie n.a.c.;09/10/2018
1702;1;0;269,98;269,98;OMESSO NOMINATIVO NEL RISPETTO DELLA NORMATIVA SULLA PROTEZIONE DATI PERSONALI; ;A.S. 2017/2018 - Rimborso spese di viaggio in favore degli studenti pendolari della Scuola Secondaria di II grado, Conservatori Musicali ed Istituti Professionali - liquidazione;09/10/2018;674;4;245;1;Spese correnti;4;Trasferimenti correnti;2;Trasferimenti correnti a Famiglie;5;Altri trasferimenti a famiglie;999;Altri trasferimenti a famiglie n.a.c.;09/10/2018
1703;1;0;269,98;269,98;OMESSO NOMINATIVO NEL RISPETTO DELLA NORMATIVA SULLA PROTEZIONE DATI PERSONALI; ;A.S. 2017/2018 - Rimborso spese di viaggio in favore degli studenti pendolari della Scuola Secondaria di II grado, Conservatori Musicali ed Istituti Professionali - liquidazione;09/10/2018;674;4;245;1;Spese correnti;4;Trasferimenti correnti;2;Trasferimenti correnti a Famiglie;5;Altri trasferimenti a famiglie;999;Altri trasferimenti a famiglie n.a.c.;09/10/2018
1704;1;0;269,98;269,98;OMESSO NOMINATIVO NEL RISPETTO DELLA NORMATIVA SULLA PROTEZIONE DATI PERSONALI; ;A.S. 2017/2018 - Rimborso spese di viaggio in favore degli studenti pendolari della Scuola Secondaria di II grado, Conservatori Musicali ed Istituti Professionali - liquidazione;09/10/2018;674;4;245;1;Spese correnti;4;Trasferimenti correnti;2;Trasferimenti correnti a Famiglie;5;Altri trasferimenti a famiglie;999;Altri trasferimenti a famiglie n.a.c.;09/10/2018
1705;1;0;19,41;19,41;ENEL ENERGIA SPA;Z7122ECA74;SALDO Fatt.n. 004811759131  del 05/10/2018;10/10/2018;744;1;135;1;Spese correnti;3;Acquisto di beni e servizi;2;Acquisto di servizi;5;Utenze e canoni;4;Energia elettrica;10/10/2018
1706;1;0;379,99;379,99;PINNA MARCO & C. SNC;Z6A2478D42;SALDO Fatt.n. FATTPA 5_18  del 03/10/2018;10/10/2018;208;1;304;1;Spese correnti;3;Acquisto di beni e servizi;1;Acquisto di beni;2;Altri beni di consumo;999;Altri beni e materiali di consumo n.a.c.;10/10/2018
1707;1;0;156.811,30;156.811,30;UNIONE COMUNI GERREI; ;"""Gestione integrata del servizio di raccolta differenziata e trasporto, col sistema porta, dei rifiuti solidi urbani e assimilati nei comuni dell'Unione dei Comuni del Gerrei"" - LIQUIDAZIONE di spesa per trasferimento somme all'Unione dei Comuni del";12/10/2018;1282;1;389;1;Spese correnti;4;Trasferimenti correnti;1;Trasferimenti correnti a Amministrazioni Pubbliche;2;Trasferimenti correnti a Amministrazioni Locali;5;Trasferimenti correnti a Unioni di Comuni;12/10/2018
1708;1;0;326,86;326,86;OMESSO NOMINATIVO NEL RISPETTO DELLA NORMATIVA SULLA PROTEZIONE DATI PERSONALI; ;L. 162/98. Piani personalizzati di sostegno in favore di persone con handicap grave. Finanziamento Settembre 2018. Liquidazione di spesa.;12/10/2018;1429;1;179;1;Spese correnti;4;Trasferimenti correnti;2;Trasferimenti correnti a Famiglie;2;Interventi assistenziali;999;Altri assegni e sussidi assistenziali;12/10/2018
1709;1;0;177,92;177,92;OMESSO NOMINATIVO NEL RISPETTO DELLA NORMATIVA SULLA PROTEZIONE DATI PERSONALI; ;Servizio di Assistenza Domiciliare per anziani e disabili. liquidazione di spesa in favore di n. 7 beneficiari. Settembre 2018.;12/10/2018;1433;3;345;1;Spese correnti;4;Trasferimenti correnti;2;Trasferimenti correnti a Famiglie;2;Interventi assistenziali;999;Altri assegni e sussidi assistenziali;12/10/2018
1710;1;0;3.000,00;3.000,00;SCUOLA MATERNA PADRE MANZELLA; ;"A.E. 2018/2019 -liquidazione di spesa per la concessione di un contributo economico, in favore dell'Istituto Suore del Getsemani - Scuola dell'Infanzia ""Padre Manzella"" di Sant'Andrea Frius, per la gestione della mensa scolastica.";12/10/2018;570;3;392;1;Spese correnti;4;Trasferimenti correnti;4;Trasferimenti correnti a Istituzioni Sociali Private;1;Trasferimenti correnti a Istituzioni Sociali Private;1;Trasferimenti correnti a Istituzioni Sociali Private;12/10/2018
1711;1;0;77,94;77,94;OMESSO NOMINATIVO NEL RISPETTO DELLA NORMATIVA SULLA PROTEZIONE DATI PERSONALI; ;Servizio di Assistenza Domiciliare per anziani e disabili. Liquidazione di spesa in favore di n. 7 beneficiari.Settembre 2018.;12/10/2018;1433;3;345;1;Spese correnti;4;Trasferimenti correnti;2;Trasferimenti correnti a Famiglie;2;Interventi assistenziali;999;Altri assegni e sussidi assistenziali;12/10/2018
1712;1;0;625,99;625,99;OMESSO NOMINATIVO NEL RISPETTO DELLA NORMATIVA SULLA PROTEZIONE DATI PERSONALI; ;L. 162/98. Piani personalizzati di sostegno in favore di persone con handicap grave. Finanziamento giugno/ settembre -  2018. Liquidazione di spesa.;12/10/2018;1429;1;179;1;Spese correnti;4;Trasferimenti correnti;2;Trasferimenti correnti a Famiglie;2;Interventi assistenziali;999;Altri assegni e sussidi assistenziali;12/10/2018
1713;1;0;420,15;420,15;OMESSO NOMINATIVO NEL RISPETTO DELLA NORMATIVA SULLA PROTEZIONE DATI PERSONALI; ;L. 162/98. Piani personalizzati di sostegno in favore di persone con handicap grave. Finanziamento Luglio/Settembre 2018.Liquidazione di spesa.;12/10/2018;1429;1;179;1;Spese correnti;4;Trasferimenti correnti;2;Trasferimenti correnti a Famiglie;2;Interventi assistenziali;999;Altri assegni e sussidi assistenziali;12/10/2018
1714;1;0;990;990;OMESSO NOMINATIVO NEL RISPETTO DELLA NORMATIVA SULLA PROTEZIONE DATI PERSONALI; ;L. 162/98. Piani personalizzati di sostegno in favore di persone con handicap grave. Finanziamento maggio - dicembre 2018. liquidazione di spesa.luglio/ag/sett.;12/10/2018;1429;1;179;1;Spese correnti;4;Trasferimenti correnti;2;Trasferimenti correnti a Famiglie;2;Interventi assistenziali;999;Altri assegni e sussidi assistenziali;12/10/2018
1715;1;0;120,08;120,08;OMESSO NOMINATIVO NEL RISPETTO DELLA NORMATIVA SULLA PROTEZIONE DATI PERSONALI; ;L. 162/98. Piani personalizzati di sostegno in favore di persone con handicap grave. Finanziamento maggio - dicembre 2018. liquidazione di spesa.;12/10/2018;1429;1;179;1;Spese correnti;4;Trasferimenti correnti;2;Trasferimenti correnti a Famiglie;2;Interventi assistenziali;999;Altri assegni e sussidi assistenziali;12/10/2018
1716;1;0;1.916,66;1.916,66;OMESSO NOMINATIVO NEL RISPETTO DELLA NORMATIVA SULLA PROTEZIONE DATI PERSONALI; ;L. 162/98. Piani personalizzati di sostegno in favore di persone con handicap grave. Finanziamento maggio - dicembre 2018. Liquidazione di spesa.agosto/settembre 2018;12/10/2018;1429;1;179;1;Spese correnti;4;Trasferimenti correnti;2;Trasferimenti correnti a Famiglie;2;Interventi assistenziali;999;Altri assegni e sussidi assistenziali;12/10/2018
1717;1;0;295,74;295,74;OMESSO NOMINATIVO NEL RISPETTO DELLA NORMATIVA SULLA PROTEZIONE DATI PERSONALI; ;L. 162/98. Piani personalizzati di sostegno in favore di persone con handicap grave. Finanziamento maggio - dicembre 2018. liquidazione di spesa.settembre 2018;12/10/2018;1429;1;179;1;Spese correnti;4;Trasferimenti correnti;2;Trasferimenti correnti a Famiglie;2;Interventi assistenziali;999;Altri assegni e sussidi assistenziali;12/10/2018
1718;1;0;655,7;655,7;OMESSO NOMINATIVO NEL RISPETTO DELLA NORMATIVA SULLA PROTEZIONE DATI PERSONALI; ;L. 162/98. Piani personalizzati di sostegno in favore di persone con handicap grave. Finanziamento Settembre 2018. liquidazione di spesa.;12/10/2018;1429;1;179;1;Spese correnti;4;Trasferimenti correnti;2;Trasferimenti correnti a Famiglie;2;Interventi assistenziali;999;Altri assegni e sussidi assistenziali;12/10/2018
1719;1;0;485,56;485,56;OMESSO NOMINATIVO NEL RISPETTO DELLA NORMATIVA SULLA PROTEZIONE DATI PERSONALI; ;L. 162/98. Piani personalizzati di sostegno in favore di persone con handicap grave. Finanziamento Settembre 2018. Liquidazione di spesa.;12/10/2018;1429;1;179;1;Spese correnti;4;Trasferimenti correnti;2;Trasferimenti correnti a Famiglie;2;Interventi assistenziali;999;Altri assegni e sussidi assistenziali;12/10/2018
1720;1;0;199,97;199,97;OMESSO NOMINATIVO NEL RISPETTO DELLA NORMATIVA SULLA PROTEZIONE DATI PERSONALI; ;L. 162/98. Piani personalizzati di sostegno in favore di persone con handicap grave. Finanziamento Settembree 2018. liquidazione di spesa.;12/10/2018;1429;1;179;1;Spese correnti;4;Trasferimenti correnti;2;Trasferimenti correnti a Famiglie;2;Interventi assistenziali;999;Altri assegni e sussidi assistenziali;12/10/2018
1721;1;0;187,08;187,08;OMESSO NOMINATIVO NEL RISPETTO DELLA NORMATIVA SULLA PROTEZIONE DATI PERSONALI; ;L. 162/98. Piani personalizzati di sostegno in favore di persone con handicap grave. Finanziamento maggio - dicembre 2018. Liquidazione di spesa Settembre 2018;12/10/2018;1429;1;179;1;Spese correnti;4;Trasferimenti correnti;2;Trasferimenti correnti a Famiglie;2;Interventi assistenziali;999;Altri assegni e sussidi assistenziali;12/10/2018
1722;1;0;945;945;OMESSO NOMINATIVO NEL RISPETTO DELLA NORMATIVA SULLA PROTEZIONE DATI PERSONALI; ;L. 162/98. Piani personalizzati di sostegno in favore di persone con handicap grave. Finanziamento maggio - dicembre 2018. liquidazione di spesa.;12/10/2018;1429;1;179;1;Spese correnti;4;Trasferimenti correnti;2;Trasferimenti correnti a Famiglie;2;Interventi assistenziali;999;Altri assegni e sussidi assistenziali;12/10/2018
1723;1;0;1.135,13;1.135,13;OMESSO NOMINATIVO NEL RISPETTO DELLA NORMATIVA SULLA PROTEZIONE DATI PERSONALI; ;ECONOMIA GESTIONE ANNO 2017 - Liquidazione  SETTEMBRE 2018;12/10/2018;1429;1;605;1;Spese correnti;4;Trasferimenti correnti;2;Trasferimenti correnti a Famiglie;2;Interventi assistenziali;999;Altri assegni e sussidi assistenziali;12/10/2018
1724;1;0;1.174,90;1.174,90;OMESSO NOMINATIVO NEL RISPETTO DELLA NORMATIVA SULLA PROTEZIONE DATI PERSONALI; ;L. 162/98. Piani personalizzati di sostegno in favore di persone con handicap grave. Finanziamento maggio - dicembre 2018. liquidazione di spesa.;12/10/2018;1429;1;179;1;Spese correnti;4;Trasferimenti correnti;2;Trasferimenti correnti a Famiglie;2;Interventi assistenziali;999;Altri assegni e sussidi assistenziali;12/10/2018
1725;1;0;461;461;OMESSO NOMINATIVO NEL RISPETTO DELLA NORMATIVA SULLA PROTEZIONE DATI PERSONALI; ;L. 162/98. Piani personalizzati di sostegno in favore di persone con handicap grave. Finanziamento Settembree 2018. Liquidazione di spesa.;12/10/2018;1429;1;179;1;Spese correnti;4;Trasferimenti correnti;2;Trasferimenti correnti a Famiglie;2;Interventi assistenziali;999;Altri assegni e sussidi assistenziali;12/10/2018
1726;1;0;500;500;OMESSO NOMINATIVO NEL RISPETTO DELLA NORMATIVA SULLA PROTEZIONE DATI PERSONALI; ;L. 162/98. Piani personalizzati di sostegno in favore di persone con handicap grave. Finanziamento maggio - dicembre 2018.liquidazione di spesa in favore di n. 52 beneficiari. SETTEMBRE 2018;12/10/2018;1429;1;179;1;Spese correnti;4;Trasferimenti correnti;2;Trasferimenti correnti a Famiglie;2;Interventi assistenziali;999;Altri assegni e sussidi assistenziali;12/10/2018
1727;1;0;845,96;845,96;OMESSO NOMINATIVO NEL RISPETTO DELLA NORMATIVA SULLA PROTEZIONE DATI PERSONALI; ;L. 162/98. Piani personalizzati di sostegno in favore di persone con handicap grave. Finanziamento maggio - dicembre 2018. liquidazione di spesa settembre  2018;12/10/2018;1429;1;179;1;Spese correnti;4;Trasferimenti correnti;2;Trasferimenti correnti a Famiglie;2;Interventi assistenziali;999;Altri assegni e sussidi assistenziali;12/10/2018
1728;1;0;750,06;750,06;OMESSO NOMINATIVO NEL RISPETTO DELLA NORMATIVA SULLA PROTEZIONE DATI PERSONALI; ;L. 162/98. Piani personalizzati di sostegno in favore di persone con handicap grave. Finanziamento maggio - dicembre 2018. liquidazione di spesa Settembre 2018;12/10/2018;1429;1;179;1;Spese correnti;4;Trasferimenti correnti;2;Trasferimenti correnti a Famiglie;2;Interventi assistenziali;999;Altri assegni e sussidi assistenziali;12/10/2018
1729;1;0;327,5;327,5;OMESSO NOMINATIVO NEL RISPETTO DELLA NORMATIVA SULLA PROTEZIONE DATI PERSONALI; ;L. 162/98. Piani personalizzati di sostegno in favore di persone con handicap grave. Finanziamento maggio - dicembre 2018. Impegno di spesa. SETTEMBRE 2018;12/10/2018;1429;1;179;1;Spese correnti;4;Trasferimenti correnti;2;Trasferimenti correnti a Famiglie;2;Interventi assistenziali;999;Altri assegni e sussidi assistenziali;12/10/2018
1730;1;0;1.198,82;1.198,82;OMESSO NOMINATIVO NEL RISPETTO DELLA NORMATIVA SULLA PROTEZIONE DATI PERSONALI; ;L. 162/98. Piani personalizzati di sostegno in favore di persone con handicap grave. Finanziamento maggio - dicembre 2018. Liquidazione di spesa.;12/10/2018;1429;1;179;1;Spese correnti;4;Trasferimenti correnti;2;Trasferimenti correnti a Famiglie;2;Interventi assistenziali;999;Altri assegni e sussidi assistenziali;12/10/2018
1731;1;0;326,17;326,17;OMESSO NOMINATIVO NEL RISPETTO DELLA NORMATIVA SULLA PROTEZIONE DATI PERSONALI; ;L. 162/98. Piani personalizzati di sostegno in favore di persone con handicap grave. Finanziamento maggio - dicembre 2018. liquidazione di spesa.;12/10/2018;1429;1;179;1;Spese correnti;4;Trasferimenti correnti;2;Trasferimenti correnti a Famiglie;2;Interventi assistenziali;999;Altri assegni e sussidi assistenziali;12/10/2018
1732;1;0;499,63;499,63;OMESSO NOMINATIVO NEL RISPETTO DELLA NORMATIVA SULLA PROTEZIONE DATI PERSONALI; ;L. 162/98. Piani personalizzati di sostegno in favore di persone con handicap grave. Finanziamento maggio - dicembre 2018. liquidazione di spesa.;12/10/2018;1429;1;179;1;Spese correnti;4;Trasferimenti correnti;2;Trasferimenti correnti a Famiglie;2;Interventi assistenziali;999;Altri assegni e sussidi assistenziali;12/10/2018
1733;1;0;526,73;526,73;OMESSO NOMINATIVO NEL RISPETTO DELLA NORMATIVA SULLA PROTEZIONE DATI PERSONALI; ;L. 162/98. Piani personalizzati di sostegno in favore di persone con handicap grave. Finanziamento maggio - dicembre 2018.liquidazione di spesa.;12/10/2018;1429;1;179;1;Spese correnti;4;Trasferimenti correnti;2;Trasferimenti correnti a Famiglie;2;Interventi assistenziali;999;Altri assegni e sussidi assistenziali;12/10/2018
1734;1;0;220;220;OMESSO NOMINATIVO NEL RISPETTO DELLA NORMATIVA SULLA PROTEZIONE DATI PERSONALI; ;L. 162/98. Piani personalizzati di sostegno in favore di persone con handicap grave. Finanziamento maggio - dicembre 2018. Liquidazione di spesa SETTEMBRE 2018;12/10/2018;1429;1;179;1;Spese correnti;4;Trasferimenti correnti;2;Trasferimenti correnti a Famiglie;2;Interventi assistenziali;999;Altri assegni e sussidi assistenziali;12/10/2018
1735;1;0;282,8;282,8;OMESSO NOMINATIVO NEL RISPETTO DELLA NORMATIVA SULLA PROTEZIONE DATI PERSONALI; ;L. 162/98. Piani personalizzati di sostegno in favore di persone con handicap grave. Finanziamento maggio - dicembre 2018LIQUIDAZIONE di spesa SETTEMBRE 2018;12/10/2018;1429;1;179;1;Spese correnti;4;Trasferimenti correnti;2;Trasferimenti correnti a Famiglie;2;Interventi assistenziali;999;Altri assegni e sussidi assistenziali;12/10/2018
1736;1;0;483,3;483,3;OMESSO NOMINATIVO NEL RISPETTO DELLA NORMATIVA SULLA PROTEZIONE DATI PERSONALI; ;L. 162/98. Piani personalizzati di sostegno in favore di persone con handicap grave. Finanziamento maggio - dicembre 2018. LIQUIDAZIONE di spesa.;12/10/2018;1429;1;179;1;Spese correnti;4;Trasferimenti correnti;2;Trasferimenti correnti a Famiglie;2;Interventi assistenziali;999;Altri assegni e sussidi assistenziali;12/10/2018
1737;1;0;196,52;196,52;OMESSO NOMINATIVO NEL RISPETTO DELLA NORMATIVA SULLA PROTEZIONE DATI PERSONALI; ;L. 162/98. Piani personalizzati di sostegno in favore di persone con handicap grave. Finanziamento maggio - dicembre 2018. liquidazione di spesa.;12/10/2018;1429;1;179;1;Spese correnti;4;Trasferimenti correnti;2;Trasferimenti correnti a Famiglie;2;Interventi assistenziali;999;Altri assegni e sussidi assistenziali;12/10/2018
1738;1;0;326,99;326,99;OMESSO NOMINATIVO NEL RISPETTO DELLA NORMATIVA SULLA PROTEZIONE DATI PERSONALI; ;L. 162/98. Piani personalizzati di sostegno in favore di persone con handicap grave. Finanziamento maggio - dicembre 2018.Liquidazione di spesa Settembre  2018;12/10/2018;1429;1;179;1;Spese correnti;4;Trasferimenti correnti;2;Trasferimenti correnti a Famiglie;2;Interventi assistenziali;999;Altri assegni e sussidi assistenziali;12/10/2018
1739;1;0;1.301,48;1.301,48;DIVERSI DIPENDENTI; ;LIQUIDAZIONE DI SPESA PER LA CORRESPONSIONE DELL' INDENNITA' DI FUNZIONE MESE SETTEMBRE EROGATA OTTOBRE  ANNO 2018;12/10/2018;14;1;6;1;Spese correnti;3;Acquisto di beni e servizi;2;Acquisto di servizi;1;Organi e incarichi istituzionali dell'amministrazione;1;Organi istituzionali dell'amministrazione - Indennità;12/10/2018
1741;1;0;780,9;780,9;DIVERSI DIPENDENTI; ;LIQUIDAZIONE DI SPESA PER LA CORRESPONSIONE DELL' INDENNITA' DI FUNZIONE VICE SINDACO III TRIM. ANNO 2018;12/10/2018;14;1;7;1;Spese correnti;3;Acquisto di beni e servizi;2;Acquisto di servizi;1;Organi e incarichi istituzionali dell'amministrazione;1;Organi istituzionali dell'amministrazione - Indennità;12/10/2018
1743;1;0;585,66;585,66;DIVERSI DIPENDENTI;Z491D065D3;LIQUIDAZIONE DI SPESA PER LA CORRESPONSIONE DELL' INDENNITA' DI FUNZIONE ASSESSORE ANNO 2018;12/10/2018;14;1;8;1;Spese correnti;3;Acquisto di beni e servizi;2;Acquisto di servizi;1;Organi e incarichi istituzionali dell'amministrazione;1;Organi istituzionali dell'amministrazione - Indennità;12/10/2018
1745;1;0;585,66;585,66;DIVERSI DIPENDENTI; ;LIQUIDAZIONE DI SPESA PER LA CORRESPONSIONE DELL' INDENNITA' DI FUNZIONE ASSESSORE III TRIM. ANNO 2018;12/10/2018;14;1;9;1;Spese correnti;3;Acquisto di beni e servizi;2;Acquisto di servizi;1;Organi e incarichi istituzionali dell'amministrazione;1;Organi istituzionali dell'amministrazione - Indennità;12/10/2018
1747;1;0;292,83;292,83;DIVERSI DIPENDENTI; ;LIQUIDAZIONE DI SPESA PER LA CORRESPONSIONE DELL' INDENNITA' DI FUNZIONE ASSESSORE III TRIM. ANNO 2018;12/10/2018;14;1;10;1;Spese correnti;3;Acquisto di beni e servizi;2;Acquisto di servizi;1;Organi e incarichi istituzionali dell'amministrazione;1;Organi istituzionali dell'amministrazione - Indennità;12/10/2018
1749;1;0;150;150;CONI - COMITATO REGIONALE SARDEGNA DI CAGLIARI; ;Lavori di risanamento degli elementi strutturali e non strutturali e manutenzione straordinaria della palestra della scuola secondaria di 1 grado. Liquidazione diritti di istruttoria in favore del CONI.;15/10/2018;2534;3;390;2;Spese in conto capitale;2;Investimenti fissi lordi e acquisto di terreni;1;Beni materiali;9;Beni immobili;3;Fabbricati ad uso scolastico;15/10/2018
1750;1;0;3.050,00;3.050,00;AGRI SERVICE S.A.S. DI MASCIA MARIO E PAOLO;Z9523E9AB5;SALDO Fatt.n. 2_PA2018  del 12/09/2018 CIG: Z9523E9AB5;17/10/2018;824;1;266;1;Spese correnti;3;Acquisto di beni e servizi;2;Acquisto di servizi;99;Altri servizi;999;Altri servizi diversi n.a.c.;17/10/2018
1751;1;0;558,78;558,78;I.M.E.C.O. S.A.S DI SPIGA IGNAZIO;Z6724F6473;SALDO Fatt.n. 132/PA/2018  del 12/10/2018 SERVIZI DI INSTALLAZIONE E MANUTENZIONE IMPIANTI ELETTRICI.;17/10/2018;3238;1;368;2;Spese in conto capitale;2;Investimenti fissi lordi e acquisto di terreni;1;Beni materiali;9;Beni immobili;999;Beni immobili n.a.c.;17/10/2018
1752;1;0;1.023,63;1.023,63;OMESSO NOMINATIVO NEL RISPETTO DELLA NORMATIVA SULLA PROTEZIONE DATI PERSONALI; ;"Legge regionale n. 4 dell'11/05/2006, art. 17, comma 1. Finanziamento per il programma sperimentale ""Ritornare a casa"". Liquidazione di spesa in favore di un beneficiario. Luglio - dicembre 2018.";17/10/2018;1448;1;295;1;Spese correnti;4;Trasferimenti correnti;2;Trasferimenti correnti a Famiglie;2;Interventi assistenziali;999;Altri assegni e sussidi assistenziali;17/10/2018
1753;1;0;255,91;255,91;OMESSO NOMINATIVO NEL RISPETTO DELLA NORMATIVA SULLA PROTEZIONE DATI PERSONALI; ;"Legge regionale n. 4 dell'11/05/2006, art. 17, comma 1. Finanziamento per il programma sperimentale ""Ritornare a casa"". liquidazione di spesa in favore di un beneficiario. Luglio - dicembre 2018.";17/10/2018;1448;5;296;1;Spese correnti;4;Trasferimenti correnti;2;Trasferimenti correnti a Famiglie;2;Interventi assistenziali;999;Altri assegni e sussidi assistenziali;17/10/2018
1754;1;0;374,62;374,62;OMESSO NOMINATIVO NEL RISPETTO DELLA NORMATIVA SULLA PROTEZIONE DATI PERSONALI; ;L. 162/98. Piani personalizzati di sostegno in favore di persone con handicap grave. Finanziamento Giugno- Settembre 2018.Liquidazione di spesa.;18/10/2018;1429;1;179;1;Spese correnti;4;Trasferimenti correnti;2;Trasferimenti correnti a Famiglie;2;Interventi assistenziali;999;Altri assegni e sussidi assistenziali;18/10/2018
1755;1;0;206,06;206,06;OMESSO NOMINATIVO NEL RISPETTO DELLA NORMATIVA SULLA PROTEZIONE DATI PERSONALI; ;L. 162/98. Piani personalizzati di sostegno in favore di persone con handicap grave. Finanziamento maggio - dicembre 2018. Liquidazione di spesa.;18/10/2018;1429;1;179;1;Spese correnti;4;Trasferimenti correnti;2;Trasferimenti correnti a Famiglie;2;Interventi assistenziali;999;Altri assegni e sussidi assistenziali;18/10/2018
1756;1;0;228,33;228,33;OMESSO NOMINATIVO NEL RISPETTO DELLA NORMATIVA SULLA PROTEZIONE DATI PERSONALI; ;L. 162/98. Piani personalizzati di sostegno in favore di persone con handicap grave. Finanziamento Settembre 2018. liquidazione di spesa.;18/10/2018;1429;1;179;1;Spese correnti;4;Trasferimenti correnti;2;Trasferimenti correnti a Famiglie;2;Interventi assistenziali;999;Altri assegni e sussidi assistenziali;18/10/2018
1757;1;0;156,11;156,11;OMESSO NOMINATIVO NEL RISPETTO DELLA NORMATIVA SULLA PROTEZIONE DATI PERSONALI; ;L. 162/98. Piani personalizzati di sostegno in favore di persone con handicap grave. Finanziamento Settembre 2018.Liquidazione di spesa.;18/10/2018;1429;1;179;1;Spese correnti;4;Trasferimenti correnti;2;Trasferimenti correnti a Famiglie;2;Interventi assistenziali;999;Altri assegni e sussidi assistenziali;18/10/2018
1758;1;0;182,09;182,09;OMESSO NOMINATIVO NEL RISPETTO DELLA NORMATIVA SULLA PROTEZIONE DATI PERSONALI; ;L. 162/98. Piani personalizzati di sostegno in favore di persone con handicap grave. Finanziamento Settembre 2018. Liquidazione di spesa.;18/10/2018;1429;1;179;1;Spese correnti;4;Trasferimenti correnti;2;Trasferimenti correnti a Famiglie;2;Interventi assistenziali;999;Altri assegni e sussidi assistenziali;18/10/2018
1759;1;0;205,38;205,38;OMESSO NOMINATIVO NEL RISPETTO DELLA NORMATIVA SULLA PROTEZIONE DATI PERSONALI; ;L. 162/98. Piani personalizzati di sostegno in favore di persone con handicap grave. Finanziamento Settembre 2018.Liquidazione di spesa.;18/10/2018;1429;1;179;1;Spese correnti;4;Trasferimenti correnti;2;Trasferimenti correnti a Famiglie;2;Interventi assistenziali;999;Altri assegni e sussidi assistenziali;18/10/2018
1760;1;0;480,82;480,82;OMESSO NOMINATIVO NEL RISPETTO DELLA NORMATIVA SULLA PROTEZIONE DATI PERSONALI; ;L. 162/98. Piani personalizzati di sostegno in favore di persone con handicap grave. Finanziamento maggio - dicembre 2018.liquidazione di spesa.;18/10/2018;1429;1;179;1;Spese correnti;4;Trasferimenti correnti;2;Trasferimenti correnti a Famiglie;2;Interventi assistenziali;999;Altri assegni e sussidi assistenziali;18/10/2018
1761;1;0;816,81;816,81;OMESSO NOMINATIVO NEL RISPETTO DELLA NORMATIVA SULLA PROTEZIONE DATI PERSONALI; ;LL.RR. 15/92 e 20/97. Liquidazione sussidio economico in favore di n. 2 beneficiari. Luglio - settembre 2018.;18/10/2018;1432;1;410;1;Spese correnti;4;Trasferimenti correnti;2;Trasferimenti correnti a Famiglie;2;Interventi assistenziali;999;Altri assegni e sussidi assistenziali;18/10/2018
1762;1;0;628,86;628,86;OMESSO NOMINATIVO NEL RISPETTO DELLA NORMATIVA SULLA PROTEZIONE DATI PERSONALI; ;LL.RR. 15/92 e 20/97. Liquidazione sussidio economico in favore di n. 2 beneficiari. Luglio - settembre 2018.;18/10/2018;1432;1;410;1;Spese correnti;4;Trasferimenti correnti;2;Trasferimenti correnti a Famiglie;2;Interventi assistenziali;999;Altri assegni e sussidi assistenziali;18/10/2018
1763;1;0;516,99;516,99;OMESSO NOMINATIVO NEL RISPETTO DELLA NORMATIVA SULLA PROTEZIONE DATI PERSONALI; ;LL.RR. 15/92 e 20/97. Liquidazione sussidio economico in favore di n. 6 beneficiari. Luglio - settembre 2018.;18/10/2018;1432;1;411;1;Spese correnti;4;Trasferimenti correnti;2;Trasferimenti correnti a Famiglie;2;Interventi assistenziali;999;Altri assegni e sussidi assistenziali;18/10/2018
1764;1;0;529,62;529,62;OMESSO NOMINATIVO NEL RISPETTO DELLA NORMATIVA SULLA PROTEZIONE DATI PERSONALI; ;LL.RR. 15/92 e 20/97. Liquidazione sussidio economico in favore di n. 6 beneficiari. Luglio - settembre 2018.;18/10/2018;1432;1;411;1;Spese correnti;4;Trasferimenti correnti;2;Trasferimenti correnti a Famiglie;2;Interventi assistenziali;999;Altri assegni e sussidi assistenziali;18/10/2018
1765;1;0;516,99;516,99;OMESSO NOMINATIVO NEL RISPETTO DELLA NORMATIVA SULLA PROTEZIONE DATI PERSONALI; ;LL.RR. 15/92 e 20/97. Liquidazione sussidio economico in favore di n. 6 beneficiari. Luglio - settembre 2018.;18/10/2018;1432;1;411;1;Spese correnti;4;Trasferimenti correnti;2;Trasferimenti correnti a Famiglie;2;Interventi assistenziali;999;Altri assegni e sussidi assistenziali;18/10/2018
1766;1;0;464,61;464,61;OMESSO NOMINATIVO NEL RISPETTO DELLA NORMATIVA SULLA PROTEZIONE DATI PERSONALI; ;LL.RR. 15/92 e 20/97. Liquidazione sussidio economico in favore di n. 6 beneficiari. Luglio - settembre 2018.;18/10/2018;1432;1;411;1;Spese correnti;4;Trasferimenti correnti;2;Trasferimenti correnti a Famiglie;2;Interventi assistenziali;999;Altri assegni e sussidi assistenziali;18/10/2018
1767;1;0;1.468,86;1.468,86;OMESSO NOMINATIVO NEL RISPETTO DELLA NORMATIVA SULLA PROTEZIONE DATI PERSONALI; ;LL.RR. 15/92 e 20/97. Liquidazione sussidio economico in favore di n. 6 beneficiari. Luglio - settembre 2018.;18/10/2018;1432;1;411;1;Spese correnti;4;Trasferimenti correnti;2;Trasferimenti correnti a Famiglie;2;Interventi assistenziali;999;Altri assegni e sussidi assistenziali;18/10/2018
1768;1;0;1.468,86;1.468,86;OMESSO NOMINATIVO NEL RISPETTO DELLA NORMATIVA SULLA PROTEZIONE DATI PERSONALI; ;LL.RR. 15/92 e 20/97. Liquidazione sussidio economico in favore di n. 6 beneficiari. Luglio - settembre 2018.;18/10/2018;1432;1;411;1;Spese correnti;4;Trasferimenti correnti;2;Trasferimenti correnti a Famiglie;2;Interventi assistenziali;999;Altri assegni e sussidi assistenziali;18/10/2018
1769;1;0;1.582,02;1.582,02;OMESSO NOMINATIVO NEL RISPETTO DELLA NORMATIVA SULLA PROTEZIONE DATI PERSONALI; ;LL.RR. 15/92 e 20/97. Liquidazione sussidio economico in favore di n. 2 beneficiari. Gennaio - settembre 2018.;18/10/2018;1432;1;409;1;Spese correnti;4;Trasferimenti correnti;2;Trasferimenti correnti a Famiglie;2;Interventi assistenziali;999;Altri assegni e sussidi assistenziali;18/10/2018
1770;1;0;1.579,05;1.579,05;OMESSO NOMINATIVO NEL RISPETTO DELLA NORMATIVA SULLA PROTEZIONE DATI PERSONALI; ;LL.RR. 15/92 e 20/97. Liquidazione sussidio economico in favore di n. 2 beneficiari. Gennaio - settembre 2018.;18/10/2018;1432;1;409;1;Spese correnti;4;Trasferimenti correnti;2;Trasferimenti correnti a Famiglie;2;Interventi assistenziali;999;Altri assegni e sussidi assistenziali;18/10/2018
1812;1;0;1.146,80;1.146,80;COSMAT SRL;Z7F24FDDA2;SALDO Fatt.n. 8/PA  del 10/10/2018 CIG: Z7F24FDDA2;22/10/2018;3485;3;369;2;Spese in conto capitale;2;Investimenti fissi lordi e acquisto di terreni;1;Beni materiali;5;Attrezzature;999;Attrezzature n.a.c.;22/10/2018
1813;1;0;54,9;54,9;MELIS ADOLFO;Z5224F5FC5;ACCONTO Fatt.n. FATTPA 3_18  del 11/10/2018;22/10/2018;223;2;357;1;Spese correnti;3;Acquisto di beni e servizi;2;Acquisto di servizi;9;Manutenzione ordinaria e riparazioni;5;Manutenzione ordinaria e riparazioni di attrezzature;22/10/2018
1814;1;0;78,81;78,81;MELIS ADOLFO;Z5224F5FC5;SALDO Fatt.n. FATTPA 3_18  del 11/10/2018;22/10/2018;208;2;358;1;Spese correnti;3;Acquisto di beni e servizi;1;Acquisto di beni;2;Altri beni di consumo;999;Altri beni e materiali di consumo n.a.c.;22/10/2018
1815;1;0;113,9;113,9;EREDI TUVERI GIUSEPPE SRL;ZF3253318D;SALDO Fatt.n. P 18  del 12/10/2018;22/10/2018;208;6;393;1;Spese correnti;3;Acquisto di beni e servizi;1;Acquisto di beni;2;Altri beni di consumo;4;Vestiario;22/10/2018
1816;1;0;319,32;3.643,06;ENEL ENERGIA SPA;7429682F87;SALDO Fatt.n. 004811759115  del 05/10/2018;22/10/2018;1015;1;392;1;Spese correnti;3;Acquisto di beni e servizi;2;Acquisto di servizi;5;Utenze e canoni;4;Energia elettrica;22/10/2018
1816;2;0;362,65;3.643,06;ENEL ENERGIA SPA;7429682F87;SALDO Fatt.n. 004811759126  del 05/10/2018;22/10/2018;1015;1;392;1;Spese correnti;3;Acquisto di beni e servizi;2;Acquisto di servizi;5;Utenze e canoni;4;Energia elettrica;22/10/2018
1816;3;0;550,28;3.643,06;ENEL ENERGIA SPA;7429682F87;SALDO Fatt.n. 004811759117  del 05/10/2018;22/10/2018;1015;1;392;1;Spese correnti;3;Acquisto di beni e servizi;2;Acquisto di servizi;5;Utenze e canoni;4;Energia elettrica;22/10/2018
1816;4;0;10,88;3.643,06;ENEL ENERGIA SPA;7429682F87;SALDO Fatt.n. 004811759130  del 05/10/2018;22/10/2018;1015;1;392;1;Spese correnti;3;Acquisto di beni e servizi;2;Acquisto di servizi;5;Utenze e canoni;4;Energia elettrica;22/10/2018
1816;5;0;55,28;3.643,06;ENEL ENERGIA SPA;7429682F87;SALDO Fatt.n. 004811759125  del 05/10/2018;22/10/2018;1015;1;392;1;Spese correnti;3;Acquisto di beni e servizi;2;Acquisto di servizi;5;Utenze e canoni;4;Energia elettrica;22/10/2018
1816;6;0;93,62;3.643,06;ENEL ENERGIA SPA;7429682F87;SALDO Fatt.n. 004811759116  del 05/10/2018;22/10/2018;1015;1;392;1;Spese correnti;3;Acquisto di beni e servizi;2;Acquisto di servizi;5;Utenze e canoni;4;Energia elettrica;22/10/2018
1816;7;0;208,27;3.643,06;ENEL ENERGIA SPA;7429682F87;SALDO Fatt.n. 004811759111  del 05/10/2018;22/10/2018;1015;1;392;1;Spese correnti;3;Acquisto di beni e servizi;2;Acquisto di servizi;5;Utenze e canoni;4;Energia elettrica;22/10/2018
1816;8;0;229,14;3.643,06;ENEL ENERGIA SPA;7429682F87;SALDO Fatt.n. 004811759119  del 05/10/2018;22/10/2018;1015;1;392;1;Spese correnti;3;Acquisto di beni e servizi;2;Acquisto di servizi;5;Utenze e canoni;4;Energia elettrica;22/10/2018
1816;9;0;237,03;3.643,06;ENEL ENERGIA SPA;7429682F87;SALDO Fatt.n. 004811759127  del 05/10/2018;22/10/2018;1015;1;392;1;Spese correnti;3;Acquisto di beni e servizi;2;Acquisto di servizi;5;Utenze e canoni;4;Energia elettrica;22/10/2018
1816;10;0;508,94;3.643,06;ENEL ENERGIA SPA;7429682F87;SALDO Fatt.n. 004811805522  del 11/10/2018;22/10/2018;1015;1;392;1;Spese correnti;3;Acquisto di beni e servizi;2;Acquisto di servizi;5;Utenze e canoni;4;Energia elettrica;22/10/2018
1816;11;0;1.067,65;3.643,06;ENEL ENERGIA SPA;7429682F87;SALDO Fatt.n. 004811759107  del 05/10/2018;22/10/2018;1015;1;392;1;Spese correnti;3;Acquisto di beni e servizi;2;Acquisto di servizi;5;Utenze e canoni;4;Energia elettrica;22/10/2018
1817;1;0;-43,43;100,3;ENEL ENERGIA SPA;7429682F87;SALDO Fatt.n. 004810967158  del 08/06/2018;22/10/2018;1090;1;393;1;Spese correnti;3;Acquisto di beni e servizi;2;Acquisto di servizi;5;Utenze e canoni;4;Energia elettrica;22/10/2018
1817;2;0;-22,88;100,3;ENEL ENERGIA SPA;7429682F87;SALDO Fatt.n. 004810967155  del 08/06/2018;22/10/2018;1090;1;393;1;Spese correnti;3;Acquisto di beni e servizi;2;Acquisto di servizi;5;Utenze e canoni;4;Energia elettrica;22/10/2018
1817;3;0;19,13;100,3;ENEL ENERGIA SPA;7429682F87;SALDO Fatt.n. 004811759114  del 05/10/2018;22/10/2018;1090;1;393;1;Spese correnti;3;Acquisto di beni e servizi;2;Acquisto di servizi;5;Utenze e canoni;4;Energia elettrica;22/10/2018
1817;4;0;19,13;100,3;ENEL ENERGIA SPA;7429682F87;SALDO Fatt.n. 004811759109  del 05/10/2018;22/10/2018;1090;1;393;1;Spese correnti;3;Acquisto di beni e servizi;2;Acquisto di servizi;5;Utenze e canoni;4;Energia elettrica;22/10/2018
1817;5;0;22,88;100,3;ENEL ENERGIA SPA;7429682F87;SALDO Fatt.n. 004810967304  del 08/06/2018;22/10/2018;1090;1;393;1;Spese correnti;3;Acquisto di beni e servizi;2;Acquisto di servizi;5;Utenze e canoni;4;Energia elettrica;22/10/2018
1817;6;0;24,72;100,3;ENEL ENERGIA SPA;7429682F87;SALDO Fatt.n. 004811759110  del 05/10/2018;22/10/2018;1090;1;393;1;Spese correnti;3;Acquisto di beni e servizi;2;Acquisto di servizi;5;Utenze e canoni;4;Energia elettrica;22/10/2018
1817;7;0;37,32;100,3;ENEL ENERGIA SPA;7429682F87;SALDO Fatt.n. 004811759129  del 05/10/2018;22/10/2018;1090;1;393;1;Spese correnti;3;Acquisto di beni e servizi;2;Acquisto di servizi;5;Utenze e canoni;4;Energia elettrica;22/10/2018
1817;8;0;43,43;100,3;ENEL ENERGIA SPA;7429682F87;SALDO Fatt.n. 004810967300  del 08/06/2018;22/10/2018;1090;1;393;1;Spese correnti;3;Acquisto di beni e servizi;2;Acquisto di servizi;5;Utenze e canoni;4;Energia elettrica;22/10/2018
1818;1;0;19,13;69,74;ENEL ENERGIA SPA;7429682F87;SALDO Fatt.n. 004811759124  del 05/10/2018;22/10/2018;1302;2;394;1;Spese correnti;3;Acquisto di beni e servizi;2;Acquisto di servizi;5;Utenze e canoni;4;Energia elettrica;22/10/2018
1818;2;0;50,61;69,74;ENEL ENERGIA SPA;7429682F87;SALDO Fatt.n. 004811759106  del 05/10/2018;22/10/2018;1302;2;394;1;Spese correnti;3;Acquisto di beni e servizi;2;Acquisto di servizi;5;Utenze e canoni;4;Energia elettrica;22/10/2018
1819;1;0;81,39;81,39;ENEL ENERGIA SPA;7429682F87;ACCONTO Fatt.n. 004811759122  del 05/10/2018;22/10/2018;716;4;395;1;Spese correnti;3;Acquisto di beni e servizi;2;Acquisto di servizi;5;Utenze e canoni;4;Energia elettrica;22/10/2018
1820;1;0;187,09;187,09;ENEL ENERGIA SPA;7429682F87;SALDO Fatt.n. 004811759123  del 05/10/2018;22/10/2018;618;4;396;1;Spese correnti;3;Acquisto di beni e servizi;2;Acquisto di servizi;5;Utenze e canoni;4;Energia elettrica;22/10/2018
1821;1;0;25,1;471,7;ENEL ENERGIA SPA;7429682F87;SALDO Fatt.n. 004811759121  del 05/10/2018;22/10/2018;118;4;397;1;Spese correnti;3;Acquisto di beni e servizi;2;Acquisto di servizi;5;Utenze e canoni;4;Energia elettrica;22/10/2018
1821;2;0;48,33;471,7;ENEL ENERGIA SPA;7429682F87;SALDO Fatt.n. 004811759122  del 05/10/2018;22/10/2018;118;4;397;1;Spese correnti;3;Acquisto di beni e servizi;2;Acquisto di servizi;5;Utenze e canoni;4;Energia elettrica;22/10/2018
1821;3;0;62,59;471,7;ENEL ENERGIA SPA;7429682F87;SALDO Fatt.n. 004811759112  del 05/10/2018;22/10/2018;118;4;397;1;Spese correnti;3;Acquisto di beni e servizi;2;Acquisto di servizi;5;Utenze e canoni;4;Energia elettrica;22/10/2018
1821;4;0;335,68;471,7;ENEL ENERGIA SPA;7429682F87;SALDO Fatt.n. 004811759128  del 05/10/2018;22/10/2018;118;4;397;1;Spese correnti;3;Acquisto di beni e servizi;2;Acquisto di servizi;5;Utenze e canoni;4;Energia elettrica;22/10/2018
1822;1;0;87,68;87,68;ENEL ENERGIA SPA;7429682F87;SALDO Fatt.n. 004811759118  del 05/10/2018;22/10/2018;1340;4;403;1;Spese correnti;3;Acquisto di beni e servizi;2;Acquisto di servizi;5;Utenze e canoni;4;Energia elettrica;22/10/2018
1823;1;0;19,39;19,39;ENEL ENERGIA SPA;7429682F87;SALDO Fatt.n. 004811827972  del 12/10/2018;22/10/2018;1486;1;404;1;Spese correnti;3;Acquisto di beni e servizi;2;Acquisto di servizi;5;Utenze e canoni;4;Energia elettrica;22/10/2018
1824;1;0;171,45;525,52;ENEL ENERGIA SPA;7429682F87;SALDO Fatt.n. 004811759120  del 05/10/2018;22/10/2018;820;1;405;1;Spese correnti;3;Acquisto di beni e servizi;2;Acquisto di servizi;5;Utenze e canoni;4;Energia elettrica;22/10/2018
1824;2;0;354,07;525,52;ENEL ENERGIA SPA;7429682F87;SALDO Fatt.n. 004811759108  del 05/10/2018;22/10/2018;820;1;405;1;Spese correnti;3;Acquisto di beni e servizi;2;Acquisto di servizi;5;Utenze e canoni;4;Energia elettrica;22/10/2018
1825;1;0;135,76;135,76;ENEL ENERGIA SPA;7429682F87;SALDO Fatt.n. 004811759113  del 05/10/2018;22/10/2018;592;4;402;1;Spese correnti;3;Acquisto di beni e servizi;2;Acquisto di servizi;5;Utenze e canoni;4;Energia elettrica;22/10/2018
1826;1;0;4,49;4,49;AGENZIA DELLE ENTRATE - RISCOSSIONE; ;COMMISSIONI RISCOSSIONI TRIBUTI;23/10/2018;190;1;946;1;Spese correnti;3;Acquisto di beni e servizi;2;Acquisto di servizi;3;Aggi di riscossione;999;Altri aggi di riscossione n.a.c.;23/10/2018
1827;1;0;1,86;1,86;AGENZIA DELLE ENTRATE - RISCOSSIONE; ;SPESE RISCOSSIONE TRIBUTI;23/10/2018;190;1;917;1;Spese correnti;3;Acquisto di beni e servizi;2;Acquisto di servizi;3;Aggi di riscossione;999;Altri aggi di riscossione n.a.c.;23/10/2018
1828;1;0;0,6;0,6;AGENZIA DELLE ENTRATE - RISCOSSIONE; ;COMMISSIONI RISCOSSIONI TRIBUTI;23/10/2018;190;1;946;1;Spese correnti;3;Acquisto di beni e servizi;2;Acquisto di servizi;3;Aggi di riscossione;999;Altri aggi di riscossione n.a.c.;23/10/2018
1829;1;0;204,96;204,96;GRAFICHE E GASPARI SRL;Z12241ECC3;SALDO Fatt.n. 15796  del 16/10/2018;23/10/2018;274;7;263;1;Spese correnti;3;Acquisto di beni e servizi;1;Acquisto di beni;2;Altri beni di consumo;1;Carta, cancelleria e stampati;23/10/2018
1836;1;0;200;200;OMESSO NOMINATIVO NEL RISPETTO DELLA NORMATIVA SULLA PROTEZIONE DATI PERSONALI; ;"Legge Regionale 2 agosto 2016, n 18. Fondo regionale per il reddito di inclusione sociale (REIS) ""Aggiudu torrau"". Annualita 2017. Liquidazione di spesa.";26/10/2018;1440;3;526;1;Spese correnti;4;Trasferimenti correnti;2;Trasferimenti correnti a Famiglie;2;Interventi assistenziali;999;Altri assegni e sussidi assistenziali;26/10/2018
1837;1;0;120;120;OMESSO NOMINATIVO NEL RISPETTO DELLA NORMATIVA SULLA PROTEZIONE DATI PERSONALI; ;"Legge Regionale 2 agosto 2016, n 18. Fondo regionale per il reddito di inclusione sociale (REIS) ""Aggiudu torrau"". Annualita 2017. Liquidazione di spesa.";26/10/2018;1440;3;526;1;Spese correnti;4;Trasferimenti correnti;2;Trasferimenti correnti a Famiglie;2;Interventi assistenziali;999;Altri assegni e sussidi assistenziali;26/10/2018
1838;1;0;120;120;OMESSO NOMINATIVO NEL RISPETTO DELLA NORMATIVA SULLA PROTEZIONE DATI PERSONALI; ;"Legge Regionale 2 agosto 2016, n 18. Fondo regionale per il reddito di inclusione sociale (REIS) ""Aggiudu torrau"". Annualita 2017.Liquidazione di spesa.";26/10/2018;1440;3;526;1;Spese correnti;4;Trasferimenti correnti;2;Trasferimenti correnti a Famiglie;2;Interventi assistenziali;999;Altri assegni e sussidi assistenziali;26/10/2018
1839;1;0;320;320;OMESSO NOMINATIVO NEL RISPETTO DELLA NORMATIVA SULLA PROTEZIONE DATI PERSONALI; ;"Legge Regionale 2 agosto 2016, n 18. Fondo regionale per il reddito di inclusione sociale (REIS) ""Aggiudu torrau"". Annualita 2017. Liquidazione di spesa.";26/10/2018;1440;3;526;1;Spese correnti;4;Trasferimenti correnti;2;Trasferimenti correnti a Famiglie;2;Interventi assistenziali;999;Altri assegni e sussidi assistenziali;26/10/2018
1840;1;0;320;320;OMESSO NOMINATIVO NEL RISPETTO DELLA NORMATIVA SULLA PROTEZIONE DATI PERSONALI; ;"Legge Regionale 2 agosto 2016, n 18. Fondo regionale per il reddito di inclusione sociale (REIS) ""Aggiudu torrau"". Annualita 2017.liquidazione di spesa.";26/10/2018;1440;3;526;1;Spese correnti;4;Trasferimenti correnti;2;Trasferimenti correnti a Famiglie;2;Interventi assistenziali;999;Altri assegni e sussidi assistenziali;26/10/2018
1841;1;0;200;200;OMESSO NOMINATIVO NEL RISPETTO DELLA NORMATIVA SULLA PROTEZIONE DATI PERSONALI; ;"Legge Regionale 2 agosto 2016, n 18. Fondo regionale per il reddito di inclusione sociale (REIS) ""Aggiudu torrau"". Annualita 2017. Liquidazione di spesa.";26/10/2018;1440;3;526;1;Spese correnti;4;Trasferimenti correnti;2;Trasferimenti correnti a Famiglie;2;Interventi assistenziali;999;Altri assegni e sussidi assistenziali;26/10/2018
1842;1;0;120;120;OMESSO NOMINATIVO NEL RISPETTO DELLA NORMATIVA SULLA PROTEZIONE DATI PERSONALI; ;"Legge Regionale 2 agosto 2016, n 18. Fondo regionale per il reddito di inclusione sociale (REIS) ""Aggiudu torrau"". Annualita 2017. Liquidazione di spesa.";26/10/2018;1440;3;526;1;Spese correnti;4;Trasferimenti correnti;2;Trasferimenti correnti a Famiglie;2;Interventi assistenziali;999;Altri assegni e sussidi assistenziali;26/10/2018
1843;1;0;200;200;OMESSO NOMINATIVO NEL RISPETTO DELLA NORMATIVA SULLA PROTEZIONE DATI PERSONALI; ;"Legge Regionale 2 agosto 2016, n 18. Fondo regionale per il reddito di inclusione sociale (REIS) ""Aggiudu torrau"". Annualita 2017. Liquidazione di spesa.";26/10/2018;1440;3;526;1;Spese correnti;4;Trasferimenti correnti;2;Trasferimenti correnti a Famiglie;2;Interventi assistenziali;999;Altri assegni e sussidi assistenziali;26/10/2018
1844;1;0;1.000,00;1.000,00;OMESSO NOMINATIVO NEL RISPETTO DELLA NORMATIVA SULLA PROTEZIONE DATI PERSONALI; ;"Legge Regionale 2 agosto 2016, n 18. Fondo regionale per il reddito di inclusione sociale (REIS) ""Aggiudu torrau"". Annualita 2017. Liquidazione di spesa.";26/10/2018;1440;3;526;1;Spese correnti;4;Trasferimenti correnti;2;Trasferimenti correnti a Famiglie;2;Interventi assistenziali;999;Altri assegni e sussidi assistenziali;26/10/2018
1845;1;0;400;400;OMESSO NOMINATIVO NEL RISPETTO DELLA NORMATIVA SULLA PROTEZIONE DATI PERSONALI; ;"Legge Regionale 2 agosto 2016, n 18. Fondo regionale per il reddito di inclusione sociale (REIS) ""Aggiudu torrau"". Annualita 2017. liquidazione di spesa.";26/10/2018;1440;3;526;1;Spese correnti;4;Trasferimenti correnti;2;Trasferimenti correnti a Famiglie;2;Interventi assistenziali;999;Altri assegni e sussidi assistenziali;26/10/2018
1846;1;0;600;600;OMESSO NOMINATIVO NEL RISPETTO DELLA NORMATIVA SULLA PROTEZIONE DATI PERSONALI; ;"Legge Regionale 2 agosto 2016, n 18. Fondo regionale per il reddito di inclusione sociale (REIS) ""Aggiudu torrau"". Annualita 2017. Liquidazione di spesa.";26/10/2018;1440;3;526;1;Spese correnti;4;Trasferimenti correnti;2;Trasferimenti correnti a Famiglie;2;Interventi assistenziali;999;Altri assegni e sussidi assistenziali;26/10/2018
1847;1;0;400;400;OMESSO NOMINATIVO NEL RISPETTO DELLA NORMATIVA SULLA PROTEZIONE DATI PERSONALI; ;"Legge Regionale 2 agosto 2016, n 18. Fondo regionale per il reddito di inclusione sociale (REIS) ""Aggiudu torrau"". Annualita 2017. Liquidazione di spesa.";26/10/2018;1440;3;526;1;Spese correnti;4;Trasferimenti correnti;2;Trasferimenti correnti a Famiglie;2;Interventi assistenziali;999;Altri assegni e sussidi assistenziali;26/10/2018
1848;1;0;400;400;OMESSO NOMINATIVO NEL RISPETTO DELLA NORMATIVA SULLA PROTEZIONE DATI PERSONALI; ;"Legge Regionale 2 agosto 2016, n 18. Fondo regionale per il reddito di inclusione sociale (REIS) ""Aggiudu torrau"". Annualita 2017. Liquidazione di spesa.";26/10/2018;1440;3;526;1;Spese correnti;4;Trasferimenti correnti;2;Trasferimenti correnti a Famiglie;2;Interventi assistenziali;999;Altri assegni e sussidi assistenziali;26/10/2018
1849;1;0;400;400;OMESSO NOMINATIVO NEL RISPETTO DELLA NORMATIVA SULLA PROTEZIONE DATI PERSONALI; ;"Legge Regionale 2 agosto 2016, n 18. Fondo regionale per il reddito di inclusione sociale (REIS) ""Aggiudu torrau"". Annualita 2017. liquidazione di spesa.";26/10/2018;1440;3;526;1;Spese correnti;4;Trasferimenti correnti;2;Trasferimenti correnti a Famiglie;2;Interventi assistenziali;999;Altri assegni e sussidi assistenziali;26/10/2018
1850;1;0;1.000,00;1.000,00;OMESSO NOMINATIVO NEL RISPETTO DELLA NORMATIVA SULLA PROTEZIONE DATI PERSONALI; ;"Legge Regionale 2 agosto 2016, n 18. Fondo regionale per il reddito di inclusione sociale (REIS) ""Aggiudu torrau"". Annualita 2017. Liquidazione di spesa.";26/10/2018;1440;3;526;1;Spese correnti;4;Trasferimenti correnti;2;Trasferimenti correnti a Famiglie;2;Interventi assistenziali;999;Altri assegni e sussidi assistenziali;26/10/2018
1851;1;0;1.000,00;1.000,00;OMESSO NOMINATIVO NEL RISPETTO DELLA NORMATIVA SULLA PROTEZIONE DATI PERSONALI; ;"Legge Regionale 2 agosto 2016, n 18. Fondo regionale per il reddito di inclusione sociale (REIS) ""Aggiudu torrau"". Annualita 2017. Liquidazione  di spesa.";26/10/2018;1440;3;526;1;Spese correnti;4;Trasferimenti correnti;2;Trasferimenti correnti a Famiglie;2;Interventi assistenziali;999;Altri assegni e sussidi assistenziali;26/10/2018
1852;1;0;800;800;OMESSO NOMINATIVO NEL RISPETTO DELLA NORMATIVA SULLA PROTEZIONE DATI PERSONALI; ;"Legge Regionale 2 agosto 2016, n 18. Fondo regionale per il reddito di inclusione sociale (REIS) ""Aggiudu torrau"". Annualita 2017. Liquidazione di spesa.";26/10/2018;1440;3;526;1;Spese correnti;4;Trasferimenti correnti;2;Trasferimenti correnti a Famiglie;2;Interventi assistenziali;999;Altri assegni e sussidi assistenziali;26/10/2018
1853;1;0;439,2;439,2;AGRI SERVICE S.A.S. DI MASCIA MARIO E PAOLO;Z09251E4DA;SALDO Fatt.n. 4_PA2018  del 18/10/2018 C.I.G.: Z09251E4DA;26/10/2018;1336;3;385;1;Spese correnti;3;Acquisto di beni e servizi;1;Acquisto di beni;2;Altri beni di consumo;12;Accessori per attività sportive e ricreative;26/10/2018
1854;1;0;2.080,72;2.080,72;ASARP CASAMATTA ONLUS;ZD0237464E;SALDO Fatt.n. FATTPA 20_18  del 09/10/2018 CIG ZD0237464E DET. N. 119 DEL 08/08/2018 SETTEMBRE 2018 INSERIMENTO STRUTTURA COMUNITA' INTEGRATA UTENTE.;26/10/2018;1418;3;314;1;Spese correnti;3;Acquisto di beni e servizi;2;Acquisto di servizi;99;Altri servizi;999;Altri servizi diversi n.a.c.;26/10/2018
1855;1;0;1.550,97;1.550,97;OMESSO NOMINATIVO NEL RISPETTO DELLA NORMATIVA SULLA PROTEZIONE DATI PERSONALI; ;LL.RR. 15/92 e 20/97. Liquidazione sussidio economico in favore di n. 1 beneficiario. Gennaio - settembre 2018.;30/10/2018;1432;1;420;1;Spese correnti;4;Trasferimenti correnti;2;Trasferimenti correnti a Famiglie;2;Interventi assistenziali;999;Altri assegni e sussidi assistenziali;30/10/2018
1856;1;0;20.745,28;20.745,28;SCUOLA MATERNA PADRE MANZELLA; ;"Convenzione tra il Comune di Sant'Andrea Frius e l'Istituto Suore del Getsemani Scuola dell'Infanzia ""Padre Manzella"" di Sant'Andrea Frius per il sostegno dei servizi educativi e supporto alle famiglie nella riduzione delle rette per laccesso ai serv";30/10/2018;692;1;418;1;Spese correnti;4;Trasferimenti correnti;4;Trasferimenti correnti a Istituzioni Sociali Private;1;Trasferimenti correnti a Istituzioni Sociali Private;1;Trasferimenti correnti a Istituzioni Sociali Private;30/10/2018
1857;1;0;1.488,00;1.488,00;OMESSO NOMINATIVO NEL RISPETTO DELLA NORMATIVA SULLA PROTEZIONE DATI PERSONALI; ;L.R. n. 22/2017, art. 1, comma 16  Aiuti in favore delle aziende agricole per fronteggiare i danni causati nel corso del 2017 dalla diffusione della febbre catarrale degli ovini. Erogazione aiuto.;30/10/2018;1600;1;376;1;Spese correnti;4;Trasferimenti correnti;3;Trasferimenti correnti a Imprese;99;Trasferimenti correnti a altre imprese;999;Trasferimenti correnti a altre imprese;30/10/2018
1858;1;0;427;427;ECO SILAM SRL;Z822148519;SALDO Fatt.n. XML/3/2018  del 30/09/2018 Fattura emessa;31/10/2018;223;7;489;1;Spese correnti;3;Acquisto di beni e servizi;2;Acquisto di servizi;99;Altri servizi;999;Altri servizi diversi n.a.c.;31/10/2018
1859;1;0;79,27;79,27;COSMAT SRL;ZA9254B385;ACCONTO Fatt.n. 9/PA  del 18/10/2018 CIG: ZA9254B385;31/10/2018;958;1;404;1;Spese correnti;3;Acquisto di beni e servizi;1;Acquisto di beni;2;Altri beni di consumo;999;Altri beni e materiali di consumo n.a.c.;31/10/2018
1860;1;0;57,5;57,5;COSMAT SRL;ZA9254B385;ACCONTO Fatt.n. 9/PA  del 18/10/2018 CIG: ZA9254B385;31/10/2018;1474;1;405;1;Spese correnti;3;Acquisto di beni e servizi;1;Acquisto di beni;2;Altri beni di consumo;999;Altri beni e materiali di consumo n.a.c.;31/10/2018
1861;1;0;18,5;18,5;COSMAT SRL;ZA9254B385;ACCONTO Fatt.n. 9/PA  del 18/10/2018 CIG: ZA9254B385;31/10/2018;82;1;406;1;Spese correnti;3;Acquisto di beni e servizi;1;Acquisto di beni;2;Altri beni di consumo;999;Altri beni e materiali di consumo n.a.c.;31/10/2018
1862;1;0;0,01;72,6;COSMAT SRL;ZA9254B385;ACCONTO Fatt.n. 9/PA  del 18/10/2018 CIG: ZA9254B385;31/10/2018;616;3;407;1;Spese correnti;3;Acquisto di beni e servizi;1;Acquisto di beni;2;Altri beni di consumo;999;Altri beni e materiali di consumo n.a.c.;31/10/2018
1862;2;0;72,59;72,6;COSMAT SRL;ZA9254B385;ACCONTO Fatt.n. 9/PA  del 18/10/2018 CIG: ZA9254B385;31/10/2018;616;3;407;1;Spese correnti;3;Acquisto di beni e servizi;1;Acquisto di beni;2;Altri beni di consumo;999;Altri beni e materiali di consumo n.a.c.;31/10/2018
1863;1;0;144,2;144,2;COSMAT SRL;ZA9254B385;SALDO Fatt.n. 9/PA  del 18/10/2018 CIG: ZA9254B385;31/10/2018;586;2;408;1;Spese correnti;3;Acquisto di beni e servizi;1;Acquisto di beni;2;Altri beni di consumo;999;Altri beni e materiali di consumo n.a.c.;31/10/2018
1875;1;0;1.547,00;1.547,00;PICCHIRI GIANFRANCO;Z0E126DF1F;SALDO Fatt.n. 4/PA  del 19/10/2018 VISITE MEDICHE PERSONALE DIPENDENTE;07/11/2018;114;1;9;1;Spese correnti;3;Acquisto di beni e servizi;2;Acquisto di servizi;18;Servizi sanitari;1;Spese per accertamenti sanitari resi necessari dall'attività lavorativa;07/11/2018
1876;1;0;439,2;439,2;ITM TELEMATICA SRL;Z6623BDDC0;SALDO Fatt.n. 638 PA  del 30/09/2018 ORDINE N. 4339479  CIG Z6623BDDC0    BUONO N. 25/2018/SS  COMUNE DI SANT'ANDREA FRIUS  SERVIZIO DI CONNETTIVITA' PERIODO SETTEMBRE OTTOBRE NOVEMBRE '18;08/11/2018;118;3;193;1;Spese correnti;3;Acquisto di beni e servizi;2;Acquisto di servizi;5;Utenze e canoni;999;Utenze e canoni per altri servizi n.a.c.;08/11/2018
1877;1;0;704;704;PICCHIRI GIANFRANCO;Z0D1D7DF37;SALDO Fatt.n. 1/PA  del 19/10/2018 VISITE OPERAI CANTIERE;08/11/2018;1440;5;99;1;Spese correnti;3;Acquisto di beni e servizi;2;Acquisto di servizi;99;Altri servizi;999;Altri servizi diversi n.a.c.;08/11/2018
1878;1;0;176;176;PICCHIRI GIANFRANCO;Z981F1B0C3;SALDO Fatt.n. 2/PA  del 19/10/2018 VISITE MEDICHE CANTIERI;08/11/2018;1440;5;248;1;Spese correnti;3;Acquisto di beni e servizi;2;Acquisto di servizi;99;Altri servizi;999;Altri servizi diversi n.a.c.;08/11/2018
1879;1;0;616;616;PICCHIRI GIANFRANCO;Z502072397;SALDO Fatt.n. 3/PA  del 19/10/2018 VISITE MEDICHE CANTIERI;08/11/2018;1440;5;391;1;Spese correnti;3;Acquisto di beni e servizi;2;Acquisto di servizi;99;Altri servizi;999;Altri servizi diversi n.a.c.;08/11/2018
1880;1;0;990,64;990,64;SARDA COMPUTING S.R.L;ZA5254B467;SALDO Fatt.n. 101/X  del 29/10/2018 FATTURA XML;08/11/2018;83;1;396;1;Spese correnti;3;Acquisto di beni e servizi;1;Acquisto di beni;2;Altri beni di consumo;999;Altri beni e materiali di consumo n.a.c.;08/11/2018
1882;1;0;66,88;66,88;PILIA SALVATORE S.R.L.;Z9625430E6;SALDO Fatt.n. 16/30  del 30/10/2018 Z9625430E6;12/11/2018;484;1;395;1;Spese correnti;3;Acquisto di beni e servizi;2;Acquisto di servizi;9;Manutenzione ordinaria e riparazioni;1;Manutenzione ordinaria e riparazioni di mezzi di trasporto ad uso civile, di sicurezza e ordine pubblico;12/11/2018
1884;1;0;329,89;329,89;OMESSO NOMINATIVO NEL RISPETTO DELLA NORMATIVA SULLA PROTEZIONE DATI PERSONALI; ;L. 162/98. Piani personalizzati di sostegno in favore di persone con handicap grave. Finanziamento maggio - dicembre 2018.Liquidazione di spesa.;13/11/2018;1429;1;179;1;Spese correnti;4;Trasferimenti correnti;2;Trasferimenti correnti a Famiglie;2;Interventi assistenziali;999;Altri assegni e sussidi assistenziali;13/11/2018
1885;1;0;179,57;179,57;OMESSO NOMINATIVO NEL RISPETTO DELLA NORMATIVA SULLA PROTEZIONE DATI PERSONALI; ;Servizio di Assistenza Domiciliare per anziani e disabili. Liquidazione1 di spesa in favore di n. 7 beneficiari. Luglio - dicembre 2018.;13/11/2018;1433;3;345;1;Spese correnti;4;Trasferimenti correnti;2;Trasferimenti correnti a Famiglie;2;Interventi assistenziali;999;Altri assegni e sussidi assistenziali;13/11/2018
1886;1;0;303,5;303,5;OMESSO NOMINATIVO NEL RISPETTO DELLA NORMATIVA SULLA PROTEZIONE DATI PERSONALI; ;L. 162/98. Piani personalizzati di sostegno in favore di persone con handicap grave. Finanziamento Settemre/ Ottobre 2018. Liquidazione di spesa.;13/11/2018;1429;1;179;1;Spese correnti;4;Trasferimenti correnti;2;Trasferimenti correnti a Famiglie;2;Interventi assistenziali;999;Altri assegni e sussidi assistenziali;13/11/2018
1887;1;0;363,74;363,74;OMESSO NOMINATIVO NEL RISPETTO DELLA NORMATIVA SULLA PROTEZIONE DATI PERSONALI; ;L. 162/98. Piani personalizzati di sostegno in favore di persone con handicap grave. Finanziamento Settembre/Ottobre  2018. Liquidazione di spesa.;13/11/2018;1429;1;179;1;Spese correnti;4;Trasferimenti correnti;2;Trasferimenti correnti a Famiglie;2;Interventi assistenziali;999;Altri assegni e sussidi assistenziali;13/11/2018
1888;1;0;234,67;234,67;OMESSO NOMINATIVO NEL RISPETTO DELLA NORMATIVA SULLA PROTEZIONE DATI PERSONALI; ;L. 162/98. Piani personalizzati di sostegno in favore di persone con handicap grave. Finanziamento  2018. Liquidazione di spesa.;13/11/2018;1429;1;179;1;Spese correnti;4;Trasferimenti correnti;2;Trasferimenti correnti a Famiglie;2;Interventi assistenziali;999;Altri assegni e sussidi assistenziali;13/11/2018
1889;1;0;606,24;606,24;OMESSO NOMINATIVO NEL RISPETTO DELLA NORMATIVA SULLA PROTEZIONE DATI PERSONALI; ;L. 162/98. Piani personalizzati di sostegno in favore di persone con handicap grave. Finanziamento Settembre/OTTOBRE 2018. liquidazione di spesa.;13/11/2018;1429;1;179;1;Spese correnti;4;Trasferimenti correnti;2;Trasferimenti correnti a Famiglie;2;Interventi assistenziali;999;Altri assegni e sussidi assistenziali;13/11/2018
1890;1;0;625;625;OMESSO NOMINATIVO NEL RISPETTO DELLA NORMATIVA SULLA PROTEZIONE DATI PERSONALI; ;L. 162/98. Piani personalizzati di sostegno in favore di persone con handicap grave. Finanziamento SETTEMBRE/OTTOBRE 2018. Liquidazione di spesa.;13/11/2018;1429;1;179;1;Spese correnti;4;Trasferimenti correnti;2;Trasferimenti correnti a Famiglie;2;Interventi assistenziali;999;Altri assegni e sussidi assistenziali;13/11/2018
1891;1;0;750;750;OMESSO NOMINATIVO NEL RISPETTO DELLA NORMATIVA SULLA PROTEZIONE DATI PERSONALI; ;L. 162/98. Piani personalizzati di sostegno in favore di persone con handicap grave. Finanziamento maggio - dicembre 2018. Liquidazione di spesa.;13/11/2018;1429;1;179;1;Spese correnti;4;Trasferimenti correnti;2;Trasferimenti correnti a Famiglie;2;Interventi assistenziali;999;Altri assegni e sussidi assistenziali;13/11/2018
1892;1;0;312,5;312,5;OMESSO NOMINATIVO NEL RISPETTO DELLA NORMATIVA SULLA PROTEZIONE DATI PERSONALI; ;L. 162/98. Piani personalizzati di sostegno in favore di persone con handicap grave. Finanziamento settembre/ottobre 2018.Liquidazione di spesa.;13/11/2018;1429;1;179;1;Spese correnti;4;Trasferimenti correnti;2;Trasferimenti correnti a Famiglie;2;Interventi assistenziali;999;Altri assegni e sussidi assistenziali;13/11/2018
1893;1;0;293,74;293,74;OMESSO NOMINATIVO NEL RISPETTO DELLA NORMATIVA SULLA PROTEZIONE DATI PERSONALI; ;L. 162/98. Piani personalizzati di sostegno in favore di persone con handicap grave. Finanziamento settembre/ottobree 2018. liquidazione di spesa.;13/11/2018;1429;1;179;1;Spese correnti;4;Trasferimenti correnti;2;Trasferimenti correnti a Famiglie;2;Interventi assistenziali;999;Altri assegni e sussidi assistenziali;13/11/2018
1894;1;0;312,5;312,5;OMESSO NOMINATIVO NEL RISPETTO DELLA NORMATIVA SULLA PROTEZIONE DATI PERSONALI; ;L. 162/98. Piani personalizzati di sostegno in favore di persone con handicap grave. Finanziamento Settembre/Ottobre 2018. liquidazione di spesa.;13/11/2018;1429;1;179;1;Spese correnti;4;Trasferimenti correnti;2;Trasferimenti correnti a Famiglie;2;Interventi assistenziali;999;Altri assegni e sussidi assistenziali;13/11/2018
1895;1;0;250;250;OMESSO NOMINATIVO NEL RISPETTO DELLA NORMATIVA SULLA PROTEZIONE DATI PERSONALI; ;L. 162/98. Piani personalizzati di sostegno in favore di persone con handicap grave. Finanziamento Settembre/Ottobre 2018. Liquidazione di spesa.;13/11/2018;1429;1;179;1;Spese correnti;4;Trasferimenti correnti;2;Trasferimenti correnti a Famiglie;2;Interventi assistenziali;999;Altri assegni e sussidi assistenziali;13/11/2018
1896;1;0;767,9;767,9;OMESSO NOMINATIVO NEL RISPETTO DELLA NORMATIVA SULLA PROTEZIONE DATI PERSONALI; ;L. 162/98. Piani personalizzati di sostegno in favore di persone con handicap grave. Finanziamento Settembre/OTTOBRE 2018. LIQUIDAZIONE di spesa.;13/11/2018;1429;1;179;1;Spese correnti;4;Trasferimenti correnti;2;Trasferimenti correnti a Famiglie;2;Interventi assistenziali;999;Altri assegni e sussidi assistenziali;13/11/2018
1897;1;0;606,24;606,24;OMESSO NOMINATIVO NEL RISPETTO DELLA NORMATIVA SULLA PROTEZIONE DATI PERSONALI; ;L. 162/98. Piani personalizzati di sostegno in favore di persone con handicap grave. Finanziamento Settembre/Ottobre 2018. Liquidazione di spesa.;13/11/2018;1429;1;179;1;Spese correnti;4;Trasferimenti correnti;2;Trasferimenti correnti a Famiglie;2;Interventi assistenziali;999;Altri assegni e sussidi assistenziali;13/11/2018
1898;1;0;375;375;OMESSO NOMINATIVO NEL RISPETTO DELLA NORMATIVA SULLA PROTEZIONE DATI PERSONALI; ;L. 162/98. Piani personalizzati di sostegno in favore di persone con handicap grave. Finanziamento SETTEMBRE/OTTOBRE 2018. Liquidazione di spesa.;13/11/2018;1429;1;179;1;Spese correnti;4;Trasferimenti correnti;2;Trasferimenti correnti a Famiglie;2;Interventi assistenziali;999;Altri assegni e sussidi assistenziali;13/11/2018
1899;1;0;375;375;OMESSO NOMINATIVO NEL RISPETTO DELLA NORMATIVA SULLA PROTEZIONE DATI PERSONALI; ;L. 162/98. Piani personalizzati di sostegno in favore di persone con handicap grave. Finanziamento Ottobre 2018. Liquidazione di spesa.;13/11/2018;1429;1;179;1;Spese correnti;4;Trasferimenti correnti;2;Trasferimenti correnti a Famiglie;2;Interventi assistenziali;999;Altri assegni e sussidi assistenziali;13/11/2018
1900;1;0;138,56;138,56;OMESSO NOMINATIVO NEL RISPETTO DELLA NORMATIVA SULLA PROTEZIONE DATI PERSONALI; ;L. 162/98. Piani personalizzati di sostegno in favore di persone con handicap grave. Finanziamento Ottobre 2018. Liquidazione di spesa.;13/11/2018;1429;1;179;1;Spese correnti;4;Trasferimenti correnti;2;Trasferimenti correnti a Famiglie;2;Interventi assistenziali;999;Altri assegni e sussidi assistenziali;13/11/2018
1901;1;0;713;713;OMESSO NOMINATIVO NEL RISPETTO DELLA NORMATIVA SULLA PROTEZIONE DATI PERSONALI; ;L. 162/98. Piani personalizzati di sostegno in favore di persone con handicap grave. Finanziamento Ottobre 2018.Liquidazione  di spesa.;13/11/2018;1429;1;179;1;Spese correnti;4;Trasferimenti correnti;2;Trasferimenti correnti a Famiglie;2;Interventi assistenziali;999;Altri assegni e sussidi assistenziali;13/11/2018
1902;1;0;167,85;167,85;OMESSO NOMINATIVO NEL RISPETTO DELLA NORMATIVA SULLA PROTEZIONE DATI PERSONALI; ;L. 162/98. Piani personalizzati di sostegno in favore di persone con handicap grave. Finanziamento maggio - dicembre 2018. Impegno di spesa.;13/11/2018;1429;1;179;1;Spese correnti;4;Trasferimenti correnti;2;Trasferimenti correnti a Famiglie;2;Interventi assistenziali;999;Altri assegni e sussidi assistenziali;13/11/2018
1903;1;0;335,67;335,67;OMESSO NOMINATIVO NEL RISPETTO DELLA NORMATIVA SULLA PROTEZIONE DATI PERSONALI; ;ECONOMIA GESTIONE ANNO 2017 - RETTIFICA liquidazione MAGGIO- DICEMBRE 2018;13/11/2018;1429;1;605;1;Spese correnti;4;Trasferimenti correnti;2;Trasferimenti correnti a Famiglie;2;Interventi assistenziali;999;Altri assegni e sussidi assistenziali;13/11/2018
1904;1;0;575,51;575,51;OMESSO NOMINATIVO NEL RISPETTO DELLA NORMATIVA SULLA PROTEZIONE DATI PERSONALI; ;L. 162/98. Piani personalizzati di sostegno in favore di persone con handicap grave. Finanziamento Ottobre 2018.Liquidazione  di spesa.;13/11/2018;1429;1;179;1;Spese correnti;4;Trasferimenti correnti;2;Trasferimenti correnti a Famiglie;2;Interventi assistenziali;999;Altri assegni e sussidi assistenziali;13/11/2018
1905;1;0;341,54;341,54;OMESSO NOMINATIVO NEL RISPETTO DELLA NORMATIVA SULLA PROTEZIONE DATI PERSONALI; ;L. 162/98. Piani personalizzati di sostegno in favore di persone con handicap grave. Finanziamento Ottobre 2018. Liquidazione di spesa.;13/11/2018;1429;1;179;1;Spese correnti;4;Trasferimenti correnti;2;Trasferimenti correnti a Famiglie;2;Interventi assistenziali;999;Altri assegni e sussidi assistenziali;13/11/2018
1906;1;0;840,34;840,34;OMESSO NOMINATIVO NEL RISPETTO DELLA NORMATIVA SULLA PROTEZIONE DATI PERSONALI; ;L. 162/98. Piani personalizzati di sostegno in favore di persone con handicap grave. Finanziamento Ottobre 2018. Liquidazione di spesa.;13/11/2018;1429;1;179;1;Spese correnti;4;Trasferimenti correnti;2;Trasferimenti correnti a Famiglie;2;Interventi assistenziali;999;Altri assegni e sussidi assistenziali;13/11/2018
1907;1;0;136,77;136,77;OMESSO NOMINATIVO NEL RISPETTO DELLA NORMATIVA SULLA PROTEZIONE DATI PERSONALI; ;L. 162/98. Piani personalizzati di sostegno in favore di persone con handicap grave. Finanziamento Ottobre 2018. Liquidazione di spesa.;13/11/2018;1429;1;179;1;Spese correnti;4;Trasferimenti correnti;2;Trasferimenti correnti a Famiglie;2;Interventi assistenziali;999;Altri assegni e sussidi assistenziali;13/11/2018
1908;1;0;153,17;153,17;OMESSO NOMINATIVO NEL RISPETTO DELLA NORMATIVA SULLA PROTEZIONE DATI PERSONALI; ;L. 162/98. Piani personalizzati di sostegno in favore di persone con handicap grave. Finanziamento Ottobre 2018. LIQUIDAZIONE di spesa.;13/11/2018;1429;1;179;1;Spese correnti;4;Trasferimenti correnti;2;Trasferimenti correnti a Famiglie;2;Interventi assistenziali;999;Altri assegni e sussidi assistenziali;13/11/2018
1909;1;0;97,03;97,03;OMESSO NOMINATIVO NEL RISPETTO DELLA NORMATIVA SULLA PROTEZIONE DATI PERSONALI; ;L. 162/98. Piani personalizzati di sostegno in favore di persone con handicap grave. Finanziamento Ottobre 2018. liquidazione di spesa.;13/11/2018;1429;1;179;1;Spese correnti;4;Trasferimenti correnti;2;Trasferimenti correnti a Famiglie;2;Interventi assistenziali;999;Altri assegni e sussidi assistenziali;13/11/2018
1910;1;0;208,55;208,55;OMESSO NOMINATIVO NEL RISPETTO DELLA NORMATIVA SULLA PROTEZIONE DATI PERSONALI; ;L. 162/98. Piani personalizzati di sostegno in favore di persone con handicap grave. Finanziamento Otobre 2018. LIQUIDAZIONE di spesa.;13/11/2018;1429;1;179;1;Spese correnti;4;Trasferimenti correnti;2;Trasferimenti correnti a Famiglie;2;Interventi assistenziali;999;Altri assegni e sussidi assistenziali;13/11/2018
1911;1;0;182,21;182,21;OMESSO NOMINATIVO NEL RISPETTO DELLA NORMATIVA SULLA PROTEZIONE DATI PERSONALI; ;L. 162/98. Piani personalizzati di sostegno in favore di persone con handicap grave. Finanziamento OTTOBRE  2018. liquidazione di spesa.;13/11/2018;1429;1;179;1;Spese correnti;4;Trasferimenti correnti;2;Trasferimenti correnti a Famiglie;2;Interventi assistenziali;999;Altri assegni e sussidi assistenziali;13/11/2018
1912;1;0;220;220;OMESSO NOMINATIVO NEL RISPETTO DELLA NORMATIVA SULLA PROTEZIONE DATI PERSONALI; ;L. 162/98. Piani personalizzati di sostegno in favore di persone con handicap grave. Finanziamento OTTOBRE  2018.Liquidazione di spesa.;13/11/2018;1429;1;179;1;Spese correnti;4;Trasferimenti correnti;2;Trasferimenti correnti a Famiglie;2;Interventi assistenziali;999;Altri assegni e sussidi assistenziali;13/11/2018
1913;1;0;858,88;858,88;OMESSO NOMINATIVO NEL RISPETTO DELLA NORMATIVA SULLA PROTEZIONE DATI PERSONALI; ;L. 162/98. Piani personalizzati di sostegno in favore di persone con handicap grave.  Ottobre 2018.Liquidazione  di spesa.;13/11/2018;1429;1;179;1;Spese correnti;4;Trasferimenti correnti;2;Trasferimenti correnti a Famiglie;2;Interventi assistenziali;999;Altri assegni e sussidi assistenziali;13/11/2018
1914;1;0;260,19;260,19;OMESSO NOMINATIVO NEL RISPETTO DELLA NORMATIVA SULLA PROTEZIONE DATI PERSONALI; ;L. 162/98. Piani personalizzati di sostegno in favore di persone con handicap grave. Finanziamento Ottobre 2018. Liquidazione  di spesa.;13/11/2018;1429;1;179;1;Spese correnti;4;Trasferimenti correnti;2;Trasferimenti correnti a Famiglie;2;Interventi assistenziali;999;Altri assegni e sussidi assistenziali;13/11/2018
1915;1;0;432,98;432,98;OMESSO NOMINATIVO NEL RISPETTO DELLA NORMATIVA SULLA PROTEZIONE DATI PERSONALI; ;L. 162/98. Piani personalizzati di sostegno in favore di persone con handicap grave. Finanziamento Ottobre 2018. liquidazione  di spesa.;13/11/2018;1429;1;179;1;Spese correnti;4;Trasferimenti correnti;2;Trasferimenti correnti a Famiglie;2;Interventi assistenziali;999;Altri assegni e sussidi assistenziali;13/11/2018
1916;1;0;935;935;OMESSO NOMINATIVO NEL RISPETTO DELLA NORMATIVA SULLA PROTEZIONE DATI PERSONALI; ;L. 162/98. Piani personalizzati di sostegno in favore di persone con handicap grave. Finanziamento Ottobre  2018. Liquidazione  di spesa.;13/11/2018;1429;1;179;1;Spese correnti;4;Trasferimenti correnti;2;Trasferimenti correnti a Famiglie;2;Interventi assistenziali;999;Altri assegni e sussidi assistenziali;13/11/2018
1917;1;0;467,2;467,2;OMESSO NOMINATIVO NEL RISPETTO DELLA NORMATIVA SULLA PROTEZIONE DATI PERSONALI; ;L. 162/98. Piani personalizzati di sostegno in favore di persone con handicap grave. Finanziamento Ottobre  2018. Liquidazione di spesa.;13/11/2018;1429;1;179;1;Spese correnti;4;Trasferimenti correnti;2;Trasferimenti correnti a Famiglie;2;Interventi assistenziali;999;Altri assegni e sussidi assistenziali;13/11/2018
1918;1;0;343,84;343,84;OMESSO NOMINATIVO NEL RISPETTO DELLA NORMATIVA SULLA PROTEZIONE DATI PERSONALI; ;L. 162/98. Piani personalizzati di sostegno in favore di persone con handicap grave. Finanziamento Ottobre 2018. liquidazione di spesa.;13/11/2018;1429;1;179;1;Spese correnti;4;Trasferimenti correnti;2;Trasferimenti correnti a Famiglie;2;Interventi assistenziali;999;Altri assegni e sussidi assistenziali;13/11/2018
1919;1;0;356,35;356,35;OMESSO NOMINATIVO NEL RISPETTO DELLA NORMATIVA SULLA PROTEZIONE DATI PERSONALI; ;L. 162/98. Piani personalizzati di sostegno in favore di persone con handicap grave. Finanziamento Ottobre 2018. liquidazione di spesa.;13/11/2018;1429;1;179;1;Spese correnti;4;Trasferimenti correnti;2;Trasferimenti correnti a Famiglie;2;Interventi assistenziali;999;Altri assegni e sussidi assistenziali;13/11/2018
1920;1;0;208,3;208,3;OMESSO NOMINATIVO NEL RISPETTO DELLA NORMATIVA SULLA PROTEZIONE DATI PERSONALI; ;L. 162/98. Piani personalizzati di sostegno in favore di persone con handicap grave. Finanziamento Ottobre 2018. Liquidazione  di spesa.;13/11/2018;1429;1;179;1;Spese correnti;4;Trasferimenti correnti;2;Trasferimenti correnti a Famiglie;2;Interventi assistenziali;999;Altri assegni e sussidi assistenziali;13/11/2018
1921;1;0;156,66;156,66;OMESSO NOMINATIVO NEL RISPETTO DELLA NORMATIVA SULLA PROTEZIONE DATI PERSONALI; ;L. 162/98. Piani personalizzati di sostegno in favore di persone con handicap grave. Finanziamento Ottobre 2018 . Liquidazione di spesa.;13/11/2018;1429;1;179;1;Spese correnti;4;Trasferimenti correnti;2;Trasferimenti correnti a Famiglie;2;Interventi assistenziali;999;Altri assegni e sussidi assistenziali;13/11/2018
1922;1;0;900;900;OMESSO NOMINATIVO NEL RISPETTO DELLA NORMATIVA SULLA PROTEZIONE DATI PERSONALI; ;L. 162/98. Piani personalizzati di sostegno in favore di persone con handicap grave. Finanziamento Ottobre 2018. Liquidazione di spesa in favore di n. 52 beneficiari.;13/11/2018;1429;1;179;1;Spese correnti;4;Trasferimenti correnti;2;Trasferimenti correnti a Famiglie;2;Interventi assistenziali;999;Altri assegni e sussidi assistenziali;13/11/2018
1923;1;0;300;300;OMESSO NOMINATIVO NEL RISPETTO DELLA NORMATIVA SULLA PROTEZIONE DATI PERSONALI; ;L. 162/98. Piani personalizzati di sostegno in favore di persone con handicap grave. Finanziamento Ottobre 2018. Liquidazione  di spesa.;13/11/2018;1429;1;179;1;Spese correnti;4;Trasferimenti correnti;2;Trasferimenti correnti a Famiglie;2;Interventi assistenziali;999;Altri assegni e sussidi assistenziali;13/11/2018
1924;1;0;120;120;OMESSO NOMINATIVO NEL RISPETTO DELLA NORMATIVA SULLA PROTEZIONE DATI PERSONALI; ;L. 162/98. Piani personalizzati di sostegno in favore di persone con handicap grave. Finanziamento Ottobre 2018. LIQUIDAZIONE di spesa.;13/11/2018;1429;1;179;1;Spese correnti;4;Trasferimenti correnti;2;Trasferimenti correnti a Famiglie;2;Interventi assistenziali;999;Altri assegni e sussidi assistenziali;13/11/2018
1925;1;0;745,1;745,1;OMESSO NOMINATIVO NEL RISPETTO DELLA NORMATIVA SULLA PROTEZIONE DATI PERSONALI; ;L. 162/98. Piani personalizzati di sostegno in favore di persone con handicap grave. Finanziamento Ottobre 2018. Liquidazione di spesa.;13/11/2018;1429;1;179;1;Spese correnti;4;Trasferimenti correnti;2;Trasferimenti correnti a Famiglie;2;Interventi assistenziali;999;Altri assegni e sussidi assistenziali;13/11/2018
1926;1;0;321;321;OMESSO NOMINATIVO NEL RISPETTO DELLA NORMATIVA SULLA PROTEZIONE DATI PERSONALI; ;L. 162/98. Piani personalizzati di sostegno in favore di persone con handicap grave. Finanziamento Ottobre 2018. Liquidazione di spesa.;13/11/2018;1429;1;179;1;Spese correnti;4;Trasferimenti correnti;2;Trasferimenti correnti a Famiglie;2;Interventi assistenziali;999;Altri assegni e sussidi assistenziali;13/11/2018
1927;1;0;111;111;OMESSO NOMINATIVO NEL RISPETTO DELLA NORMATIVA SULLA PROTEZIONE DATI PERSONALI; ;L. 162/98. Piani personalizzati di sostegno in favore di persone con handicap grave. Finanziamento Ottobre 2018. Liquidazione di spesa.;13/11/2018;1429;1;179;1;Spese correnti;4;Trasferimenti correnti;2;Trasferimenti correnti a Famiglie;2;Interventi assistenziali;999;Altri assegni e sussidi assistenziali;13/11/2018
1928;1;0;200;200;OMESSO NOMINATIVO NEL RISPETTO DELLA NORMATIVA SULLA PROTEZIONE DATI PERSONALI; ;L. 162/98. Piani personalizzati di sostegno in favore di persone con handicap grave. Finanziamento Ottobre 2018. Liquidazione di spesa.;13/11/2018;1429;1;179;1;Spese correnti;4;Trasferimenti correnti;2;Trasferimenti correnti a Famiglie;2;Interventi assistenziali;999;Altri assegni e sussidi assistenziali;13/11/2018
1929;1;0;1.560,00;1.560,00;OMESSO NOMINATIVO NEL RISPETTO DELLA NORMATIVA SULLA PROTEZIONE DATI PERSONALI; ;"Legge regionale n. 4 dell'11/05/2006, art. 17, comma 1. Finanziamento per il programma sperimentale ""Ritornare a casa"".Liquidazione di spesa in favore di un beneficiario. Ottobre 2018.";15/11/2018;1448;1;295;1;Spese correnti;4;Trasferimenti correnti;2;Trasferimenti correnti a Famiglie;2;Interventi assistenziali;999;Altri assegni e sussidi assistenziali;15/11/2018
1930;1;0;390;390;OMESSO NOMINATIVO NEL RISPETTO DELLA NORMATIVA SULLA PROTEZIONE DATI PERSONALI; ;"Legge regionale n. 4 dell'11/05/2006, art. 17, comma 1. Finanziamento per il programma sperimentale ""Ritornare a casa"". liquidazione di spesa in favore di un beneficiario. Ottobre 2018.";15/11/2018;1448;5;296;1;Spese correnti;4;Trasferimenti correnti;2;Trasferimenti correnti a Famiglie;2;Interventi assistenziali;999;Altri assegni e sussidi assistenziali;15/11/2018
1931;1;0;684;684;OMESSO NOMINATIVO NEL RISPETTO DELLA NORMATIVA SULLA PROTEZIONE DATI PERSONALI; ;Servizio di Assistenza Domiciliare per anziani e disabili.Liquidazione di spesa in favore di n. 1 beneficiario. Settembre -Ottobre 2018.;15/11/2018;1433;3;356;1;Spese correnti;4;Trasferimenti correnti;2;Trasferimenti correnti a Famiglie;2;Interventi assistenziali;999;Altri assegni e sussidi assistenziali;15/11/2018
1932;1;0;180;180;OMESSO NOMINATIVO NEL RISPETTO DELLA NORMATIVA SULLA PROTEZIONE DATI PERSONALI; ;Servizio di Assistenza Domiciliare per anziani e disabili. Liquidazione di spesa in favore di n. 7 beneficiari. Settembre/Ottobre  2018.;15/11/2018;1433;3;345;1;Spese correnti;4;Trasferimenti correnti;2;Trasferimenti correnti a Famiglie;2;Interventi assistenziali;999;Altri assegni e sussidi assistenziali;15/11/2018
1933;1;0;486;486;OMESSO NOMINATIVO NEL RISPETTO DELLA NORMATIVA SULLA PROTEZIONE DATI PERSONALI; ;Servizio di Assistenza Domiciliare per anziani e disabili. liquidazione di spesa in favore di n. 7 beneficiari. Settembre/Ottobre 2018.;15/11/2018;1433;3;345;1;Spese correnti;4;Trasferimenti correnti;2;Trasferimenti correnti a Famiglie;2;Interventi assistenziali;999;Altri assegni e sussidi assistenziali;15/11/2018
1934;1;0;180;180;OMESSO NOMINATIVO NEL RISPETTO DELLA NORMATIVA SULLA PROTEZIONE DATI PERSONALI; ;Servizio di Assistenza Domiciliare per anziani e disabili. Liquidazione di spesa in favore di n. 7 beneficiari. Settembre/Ottobre 2018.;15/11/2018;1433;3;345;1;Spese correnti;4;Trasferimenti correnti;2;Trasferimenti correnti a Famiglie;2;Interventi assistenziali;999;Altri assegni e sussidi assistenziali;15/11/2018
1935;1;0;420;420;OMESSO NOMINATIVO NEL RISPETTO DELLA NORMATIVA SULLA PROTEZIONE DATI PERSONALI; ;Servizio di Assistenza Domiciliare per anziani e disabili. Liquidazione di spesa in favore di n. 7 beneficiari.Settembre /Ottobre 2018.;15/11/2018;1433;3;345;1;Spese correnti;4;Trasferimenti correnti;2;Trasferimenti correnti a Famiglie;2;Interventi assistenziali;999;Altri assegni e sussidi assistenziali;15/11/2018
1936;1;0;53,56;53,56;OMESSO NOMINATIVO NEL RISPETTO DELLA NORMATIVA SULLA PROTEZIONE DATI PERSONALI; ;Servizio di Assistenza Domiciliare per anziani e disabili.Liquidazione di spesa in favore di n. 7 beneficiari. Ottobre 2018.;15/11/2018;1433;3;345;1;Spese correnti;4;Trasferimenti correnti;2;Trasferimenti correnti a Famiglie;2;Interventi assistenziali;999;Altri assegni e sussidi assistenziali;15/11/2018
1937;1;0;480;480;OMESSO NOMINATIVO NEL RISPETTO DELLA NORMATIVA SULLA PROTEZIONE DATI PERSONALI; ;Servizio di Assistenza Domiciliare per anziani e disabili. Liquidazione di spesa in favore di n. 7 beneficiari. Settembre/Ottobre 2018.;15/11/2018;1433;3;345;1;Spese correnti;4;Trasferimenti correnti;2;Trasferimenti correnti a Famiglie;2;Interventi assistenziali;999;Altri assegni e sussidi assistenziali;15/11/2018
1938;1;0;-0,01;259,74;KUWAIT PETROLEUM ITALIA SPA;Z621D28DB4;ACCONTO Fatt.n. PJ00441965  del 31/10/2018;19/11/2018;208;8;508;1;Spese correnti;3;Acquisto di beni e servizi;1;Acquisto di beni;2;Altri beni di consumo;2;Carburanti, combustibili e lubrificanti;19/11/2018
1938;2;0;259,75;259,74;KUWAIT PETROLEUM ITALIA SPA;Z621D28DB4;SALDO Fatt.n. PJ00441965  del 31/10/2018;19/11/2018;208;8;508;1;Spese correnti;3;Acquisto di beni e servizi;1;Acquisto di beni;2;Altri beni di consumo;2;Carburanti, combustibili e lubrificanti;19/11/2018
1939;1;0;3.162,44;3.162,44;A.TEC. sas;ZF81CFC522;SALDO Fatt.n. FATTPA 43_18  del 09/11/2018;19/11/2018;218;1;130;1;Spese correnti;3;Acquisto di beni e servizi;2;Acquisto di servizi;9;Manutenzione ordinaria e riparazioni;4;Manutenzione ordinaria e riparazioni di impianti e macchinari;19/11/2018
1940;1;0;208,01;208,01;A.TEC. sas;ZE825321D7;SALDO Fatt.n. FATTPA 42_18  del 09/11/2018;19/11/2018;100;1;391;1;Spese correnti;3;Acquisto di beni e servizi;2;Acquisto di servizi;9;Manutenzione ordinaria e riparazioni;4;Manutenzione ordinaria e riparazioni di impianti e macchinari;19/11/2018
1941;1;0;86,55;86,55;TELECOM ITALIA S.P.A-TIM S.P.A.Direz e coordin.Vivendi;Z1713E63AA;ACCONTO Fatt.n. 8R00197172  del 05/10/2018 6BIM 2018;19/11/2018;618;3;427;1;Spese correnti;3;Acquisto di beni e servizi;2;Acquisto di servizi;5;Utenze e canoni;1;Telefonia fissa;19/11/2018
1942;1;0;26,2;153,4;TELECOM ITALIA S.P.A-TIM S.P.A.Direz e coordin.Vivendi;Z1713E63AA;ACCONTO Fatt.n. 8R00197272  del 05/10/2018 6BIM 2018;19/11/2018;1340;4;434;1;Spese correnti;3;Acquisto di beni e servizi;2;Acquisto di servizi;5;Utenze e canoni;1;Telefonia fissa;19/11/2018
1942;2;0;41,48;153,4;TELECOM ITALIA S.P.A-TIM S.P.A.Direz e coordin.Vivendi;Z1713E63AA;SALDO Fatt.n. 8R00197261  del 05/10/2018 6BIM 2018;19/11/2018;1340;4;434;1;Spese correnti;3;Acquisto di beni e servizi;2;Acquisto di servizi;5;Utenze e canoni;1;Telefonia fissa;19/11/2018
1942;3;0;85,72;153,4;TELECOM ITALIA S.P.A-TIM S.P.A.Direz e coordin.Vivendi;Z1713E63AA;ACCONTO Fatt.n. 8R00198617  del 05/10/2018 6BIM 2018;19/11/2018;1340;4;434;1;Spese correnti;3;Acquisto di beni e servizi;2;Acquisto di servizi;5;Utenze e canoni;1;Telefonia fissa;19/11/2018
1943;1;0;130,94;130,94;TELECOM ITALIA S.P.A-TIM S.P.A.Direz e coordin.Vivendi;Z1713E63AA;ACCONTO Fatt.n. 8R00197729  del 05/10/2018 6BIM 2018;19/11/2018;716;3;428;1;Spese correnti;3;Acquisto di beni e servizi;2;Acquisto di servizi;5;Utenze e canoni;1;Telefonia fissa;19/11/2018
1944;1;0;14,89;375;TELECOM ITALIA S.P.A-TIM S.P.A.Direz e coordin.Vivendi;Z1713E63AA;SALDO Fatt.n. 8R00197729  del 05/10/2018 6BIM 2018;19/11/2018;152;3;431;1;Spese correnti;3;Acquisto di beni e servizi;2;Acquisto di servizi;5;Utenze e canoni;1;Telefonia fissa;19/11/2018
1944;2;0;28,11;375;TELECOM ITALIA S.P.A-TIM S.P.A.Direz e coordin.Vivendi;Z1713E63AA;SALDO Fatt.n. 8R00197172  del 05/10/2018 6BIM 2018;19/11/2018;152;3;431;1;Spese correnti;3;Acquisto di beni e servizi;2;Acquisto di servizi;5;Utenze e canoni;1;Telefonia fissa;19/11/2018
1944;3;0;48,48;375;TELECOM ITALIA S.P.A-TIM S.P.A.Direz e coordin.Vivendi;Z1713E63AA;SALDO Fatt.n. 8R00198617  del 05/10/2018 6BIM 2018;19/11/2018;152;3;431;1;Spese correnti;3;Acquisto di beni e servizi;2;Acquisto di servizi;5;Utenze e canoni;1;Telefonia fissa;19/11/2018
1944;4;0;76,69;375;TELECOM ITALIA S.P.A-TIM S.P.A.Direz e coordin.Vivendi;Z1713E63AA;ACCONTO Fatt.n. 8R00197272  del 05/10/2018 6BIM 2018;19/11/2018;152;3;431;1;Spese correnti;3;Acquisto di beni e servizi;2;Acquisto di servizi;5;Utenze e canoni;1;Telefonia fissa;19/11/2018
1944;5;0;83,56;375;TELECOM ITALIA S.P.A-TIM S.P.A.Direz e coordin.Vivendi;Z1713E63AA;SALDO Fatt.n. 8R00198541  del 05/10/2018 6BIM 2018;19/11/2018;152;3;431;1;Spese correnti;3;Acquisto di beni e servizi;2;Acquisto di servizi;5;Utenze e canoni;1;Telefonia fissa;19/11/2018
1944;6;0;123,27;375;TELECOM ITALIA S.P.A-TIM S.P.A.Direz e coordin.Vivendi;Z1713E63AA;SALDO Fatt.n. 8R00197587  del 05/10/2018 6BIM 2018;19/11/2018;152;3;431;1;Spese correnti;3;Acquisto di beni e servizi;2;Acquisto di servizi;5;Utenze e canoni;1;Telefonia fissa;19/11/2018
1945;1;0;69,22;171,7;TELECOM ITALIA S.P.A-TIM S.P.A.Direz e coordin.Vivendi;Z1713E63AA;SALDO Fatt.n. 8R00197272  del 05/10/2018 6BIM 2018;19/11/2018;250;3;432;1;Spese correnti;3;Acquisto di beni e servizi;2;Acquisto di servizi;5;Utenze e canoni;1;Telefonia fissa;19/11/2018
1945;2;0;102,48;171,7;TELECOM ITALIA S.P.A-TIM S.P.A.Direz e coordin.Vivendi;Z1713E63AA;SALDO Fatt.n. 8R00197669  del 05/10/2018 6BIM 2018;19/11/2018;250;3;432;1;Spese correnti;3;Acquisto di beni e servizi;2;Acquisto di servizi;5;Utenze e canoni;1;Telefonia fissa;19/11/2018
1998;1;0;1.301,48;1.301,48;OMESSO NOMINATIVO NEL RISPETTO DELLA NORMATIVA SULLA PROTEZIONE DATI PERSONALI; ;STIPENDI MESE DI: NOVEMBRE 18;20/11/2018;14;1;6;1;Spese correnti;3;Acquisto di beni e servizi;2;Acquisto di servizi;1;Organi e incarichi istituzionali dell'amministrazione;1;Organi istituzionali dell'amministrazione - Indennità;20/11/2018
2003;1;0;27,95;27,95;POSTE ITALIANE spa;Z4F23F9B5A;SALDO Fatt.n. 8718366402  del 06/11/2018 Fattura Elettronica relativa all'Identificativo Rendiconto 2099487330;20/11/2018;42;7;277;1;Spese correnti;3;Acquisto di beni e servizi;2;Acquisto di servizi;16;Servizi amministrativi;2;Spese postali;20/11/2018
2004;1;0;178,61;410,41;FATICONI S.P.A;ZD32547358;SALDO Fatt.n. 001244PA  del 15/11/2018;20/11/2018;223;1;394;1;Spese correnti;3;Acquisto di beni e servizi;2;Acquisto di servizi;9;Manutenzione ordinaria e riparazioni;6;Manutenzione ordinaria e riparazioni di macchine per ufficio;20/11/2018
2004;2;0;231,8;410,41;FATICONI S.P.A;ZD32547358;SALDO Fatt.n. 001243PA  del 15/11/2018;20/11/2018;223;1;394;1;Spese correnti;3;Acquisto di beni e servizi;2;Acquisto di servizi;9;Manutenzione ordinaria e riparazioni;6;Manutenzione ordinaria e riparazioni di macchine per ufficio;20/11/2018
2005;1;0;1.800,00;1.800,00;ASSOCIAZIONE FOCUS EUROPE; ;"PROGETTO ""TERRITORI SOLIDALI - SUPPORTO ALL'ECONOMICA SOCIALE DEI GIOVANI AGRICOLTORI E ALLEVATORI A SIDI BOUZID - TUNISIA - L.R. SARDEGNA N. 19/1996. TRASFERIMENTO FONDI A FOCUS EUROPE. LIQUIDAZIONE DI SPESA.";20/11/2018;1610;1;459;1;Spese correnti;4;Trasferimenti correnti;4;Trasferimenti correnti a Istituzioni Sociali Private;1;Trasferimenti correnti a Istituzioni Sociali Private;1;Trasferimenti correnti a Istituzioni Sociali Private;20/11/2018
2007;1;0;717,7;717,7;CASSA DEPOSITI E PRESTITI S.P.A.; ;CDP008 0002124 06184 31122018 INTERESSI PASSIVI SU MUTUI(impianto termico scuola media) RATA 2 SEMETRE 2018;20/11/2018;626;1;461;1;Spese correnti;7;Interessi passivi;5;Interessi su Mutui e altri finanziamenti a medio lungo termine;4;Interessi passivi su finanziamenti a medio lungo termine a Imprese;3;Interessi passivi a Cassa Depositi e Prestiti SPA su mutui e altri finanziamenti a medio lungo termine;20/11/2018
2008;1;0;709,17;709,17;CASSA DEPOSITI E PRESTITI S.P.A.; ;CDP 008 0002124 06184 31122018 INTERESSI PASSIVI SU MUTUI EDIFICI SCOLASTICI  RATA 2 SEMESTRE 2018;20/11/2018;626;2;462;1;Spese correnti;7;Interessi passivi;5;Interessi su Mutui e altri finanziamenti a medio lungo termine;4;Interessi passivi su finanziamenti a medio lungo termine a Imprese;3;Interessi passivi a Cassa Depositi e Prestiti SPA su mutui e altri finanziamenti a medio lungo termine;20/11/2018
2009;1;0;1.600,01;1.600,01;CASSA DEPOSITI E PRESTITI S.P.A.; ;CDP 008 0002124 06184 31122018 QUOTA INTERESSI RINEGOZIAZIONE RATA 2 SEMESTRE 2018;20/11/2018;138;1;463;1;Spese correnti;7;Interessi passivi;5;Interessi su Mutui e altri finanziamenti a medio lungo termine;4;Interessi passivi su finanziamenti a medio lungo termine a Imprese;3;Interessi passivi a Cassa Depositi e Prestiti SPA su mutui e altri finanziamenti a medio lungo termine;20/11/2018
2010;1;0;2.106,91;2.106,91;CASSA DEPOSITI E PRESTITI S.P.A.; ;CDP008 0002124 06184 31122018 INTERESSI PASSIVI SU MUTUI (impianti sportivi) RATA 2 SEMESTRE 2018;20/11/2018;836;1;464;1;Spese correnti;7;Interessi passivi;5;Interessi su Mutui e altri finanziamenti a medio lungo termine;4;Interessi passivi su finanziamenti a medio lungo termine a Imprese;3;Interessi passivi a Cassa Depositi e Prestiti SPA su mutui e altri finanziamenti a medio lungo termine;20/11/2018
2011;1;0;4.341,44;4.341,44;ASARP CASAMATTA ONLUS;ZD0237464E;SALDO Fatt.n. FATTPA 18_18  del 10/09/2018 CIG ZD0237464E DET. N. 119 DEL 08/08/2018 LUGLIO AGOSTO 2018 INSERIMENTO STRUTTURA COMUNITA' INTEGRATA UTENTE;22/11/2018;1418;3;314;1;Spese correnti;3;Acquisto di beni e servizi;2;Acquisto di servizi;99;Altri servizi;999;Altri servizi diversi n.a.c.;22/11/2018
2012;1;0;3.205,98;3.205,98;I.M.E.C.O. S.A.S DI SPIGA IGNAZIO;6,59E+52;SALDO Fatt.n. 141/PA/2018  del 02/11/2018 SERVIZI DI INSTALLAZIONE E MANUTENZIONE IMPIANTI ELETTRICI.;22/11/2018;1012;1;225;1;Spese correnti;3;Acquisto di beni e servizi;2;Acquisto di servizi;9;Manutenzione ordinaria e riparazioni;4;Manutenzione ordinaria e riparazioni di impianti e macchinari;22/11/2018
2013;1;0;1.789,92;1.789,92;OMESSO NOMINATIVO NEL RISPETTO DELLA NORMATIVA SULLA PROTEZIONE DATI PERSONALI; ;LL.RR. 11/85 e 43/93. Erogazione provvidenze a favore dei nefropatici. Liquidazione in favore di n. 3 beneficiari. Luglio - settembre 2018.;22/11/2018;1463;1;475;1;Spese correnti;4;Trasferimenti correnti;2;Trasferimenti correnti a Famiglie;2;Interventi assistenziali;999;Altri assegni e sussidi assistenziali;22/11/2018
2014;1;0;2.485,17;2.485,17;OMESSO NOMINATIVO NEL RISPETTO DELLA NORMATIVA SULLA PROTEZIONE DATI PERSONALI; ;LL.RR. 11/85 e 43/93. Erogazione provvidenze a favore dei nefropatici. Liquidazione in favore di n. 3 beneficiari. Luglio - settembre 2018.;22/11/2018;1463;1;475;1;Spese correnti;4;Trasferimenti correnti;2;Trasferimenti correnti a Famiglie;2;Interventi assistenziali;999;Altri assegni e sussidi assistenziali;22/11/2018
2015;1;0;639,89;639,89;OMESSO NOMINATIVO NEL RISPETTO DELLA NORMATIVA SULLA PROTEZIONE DATI PERSONALI; ;LL.RR. 11/85 e 43/93. Erogazione provvidenze a favore dei nefropatici. Liquidazione in favore di n. 3 beneficiari. Luglio - settembre 2018.;22/11/2018;1463;1;475;1;Spese correnti;4;Trasferimenti correnti;2;Trasferimenti correnti a Famiglie;2;Interventi assistenziali;999;Altri assegni e sussidi assistenziali;22/11/2018
2016;1;0;587,52;587,52;OMESSO NOMINATIVO NEL RISPETTO DELLA NORMATIVA SULLA PROTEZIONE DATI PERSONALI; ;LL.RR. 27/83 e 6/93. Talassemici, emofilici ed emolinfopatici maligni. Liquidazione provvidenze gennaio - settembre 2018 in favore di un beneficiario e luglio - settembre in favore di cinque beneficiari.;22/11/2018;1441;1;476;1;Spese correnti;4;Trasferimenti correnti;2;Trasferimenti correnti a Famiglie;2;Interventi assistenziali;999;Altri assegni e sussidi assistenziali;22/11/2018
2017;1;0;114,24;114,24;OMESSO NOMINATIVO NEL RISPETTO DELLA NORMATIVA SULLA PROTEZIONE DATI PERSONALI; ;LL.RR. 27/83 e 6/93. Talassemici, emofilici ed emolinfopatici maligni. Liquidazione provvidenze gennaio - settembre 2018 in favore di un beneficiario e luglio - settembre in favore di cinque beneficiari.;22/11/2018;1441;1;476;1;Spese correnti;4;Trasferimenti correnti;2;Trasferimenti correnti a Famiglie;2;Interventi assistenziali;999;Altri assegni e sussidi assistenziali;22/11/2018
2018;1;0;497,46;497,46;OMESSO NOMINATIVO NEL RISPETTO DELLA NORMATIVA SULLA PROTEZIONE DATI PERSONALI; ;LL.RR. 27/83 e 6/93. Talassemici, emofilici ed emolinfopatici maligni. Liquidazione provvidenze gennaio - settembre 2018 in favore di un beneficiario e luglio - settembre in favore di cinque beneficiari.;22/11/2018;1441;1;476;1;Spese correnti;4;Trasferimenti correnti;2;Trasferimenti correnti a Famiglie;2;Interventi assistenziali;999;Altri assegni e sussidi assistenziali;22/11/2018
2019;1;0;464,82;464,82;OMESSO NOMINATIVO NEL RISPETTO DELLA NORMATIVA SULLA PROTEZIONE DATI PERSONALI; ;LL.RR. 27/83 e 6/93. Talassemici, emofilici ed emolinfopatici maligni. Liquidazione provvidenze gennaio - settembre 2018 in favore di un beneficiario e luglio - settembre in favore di cinque beneficiari.;22/11/2018;1441;1;476;1;Spese correnti;4;Trasferimenti correnti;2;Trasferimenti correnti a Famiglie;2;Interventi assistenziali;999;Altri assegni e sussidi assistenziali;22/11/2018
2020;1;0;481,14;481,14;OMESSO NOMINATIVO NEL RISPETTO DELLA NORMATIVA SULLA PROTEZIONE DATI PERSONALI; ;LL.RR. 27/83 e 6/93. Talassemici, emofilici ed emolinfopatici maligni. Liquidazione provvidenze gennaio - settembre 2018 in favore di un beneficiario e luglio - settembre in favore di cinque beneficiari.;22/11/2018;1441;1;476;1;Spese correnti;4;Trasferimenti correnti;2;Trasferimenti correnti a Famiglie;2;Interventi assistenziali;999;Altri assegni e sussidi assistenziali;22/11/2018
2021;1;0;464,82;464,82;OMESSO NOMINATIVO NEL RISPETTO DELLA NORMATIVA SULLA PROTEZIONE DATI PERSONALI; ;LL.RR. 27/83 e 6/93. Talassemici, emofilici ed emolinfopatici maligni. Liquidazione provvidenze gennaio - settembre 2018 in favore di un beneficiario e luglio - settembre in favore di cinque beneficiari.;22/11/2018;1441;1;476;1;Spese correnti;4;Trasferimenti correnti;2;Trasferimenti correnti a Famiglie;2;Interventi assistenziali;999;Altri assegni e sussidi assistenziali;22/11/2018
2022;1;0;571,2;571,2;OMESSO NOMINATIVO NEL RISPETTO DELLA NORMATIVA SULLA PROTEZIONE DATI PERSONALI; ;L.R. 9/2004. Liquidazione provvidenze a favore di cittadini residenti in Sardegna affetti da neoplasia maligna. Liquidazione provvidenze in favore di sei beneficiari. Gennaio - settembre 2018.;22/11/2018;1441;3;477;1;Spese correnti;4;Trasferimenti correnti;2;Trasferimenti correnti a Famiglie;2;Interventi assistenziali;999;Altri assegni e sussidi assistenziali;22/11/2018
2023;1;0;18,8;18,8;OMESSO NOMINATIVO NEL RISPETTO DELLA NORMATIVA SULLA PROTEZIONE DATI PERSONALI; ;L.R. 9/2004. Liquidazione provvidenze a favore di cittadini residenti in Sardegna affetti da neoplasia maligna. Liquidazione provvidenze in favore di sei beneficiari. Gennaio - settembre 2018.;22/11/2018;1441;3;477;1;Spese correnti;4;Trasferimenti correnti;2;Trasferimenti correnti a Famiglie;2;Interventi assistenziali;999;Altri assegni e sussidi assistenziali;22/11/2018
2024;1;0;32,64;32,64;OMESSO NOMINATIVO NEL RISPETTO DELLA NORMATIVA SULLA PROTEZIONE DATI PERSONALI; ;L.R. 9/2004. Liquidazione provvidenze a favore di cittadini residenti in Sardegna affetti da neoplasia maligna. Liquidazione provvidenze in favore di sei beneficiari. Gennaio - settembre 2018.;22/11/2018;1441;3;477;1;Spese correnti;4;Trasferimenti correnti;2;Trasferimenti correnti a Famiglie;2;Interventi assistenziali;999;Altri assegni e sussidi assistenziali;22/11/2018
2025;1;0;18,8;18,8;OMESSO NOMINATIVO NEL RISPETTO DELLA NORMATIVA SULLA PROTEZIONE DATI PERSONALI; ;L.R. 9/2004. Liquidazione provvidenze a favore di cittadini residenti in Sardegna affetti da neoplasia maligna. Liquidazione provvidenze in favore di sei beneficiari. Gennaio - settembre 2018.;22/11/2018;1441;3;477;1;Spese correnti;4;Trasferimenti correnti;2;Trasferimenti correnti a Famiglie;2;Interventi assistenziali;999;Altri assegni e sussidi assistenziali;22/11/2018
2026;1;0;8,68;8,68;OMESSO NOMINATIVO NEL RISPETTO DELLA NORMATIVA SULLA PROTEZIONE DATI PERSONALI; ;L.R. 9/2004. Liquidazione provvidenze a favore di cittadini residenti in Sardegna affetti da neoplasia maligna. Liquidazione provvidenze in favore di sei beneficiari. Gennaio - settembre 2018.;22/11/2018;1441;3;477;1;Spese correnti;4;Trasferimenti correnti;2;Trasferimenti correnti a Famiglie;2;Interventi assistenziali;999;Altri assegni e sussidi assistenziali;22/11/2018
2027;1;0;26,04;26,04;OMESSO NOMINATIVO NEL RISPETTO DELLA NORMATIVA SULLA PROTEZIONE DATI PERSONALI; ;L.R. 9/2004. Liquidazione provvidenze a favore di cittadini residenti in Sardegna affetti da neoplasia maligna. Liquidazione provvidenze in favore di sei beneficiari. Gennaio - settembre 2018.;22/11/2018;1441;3;477;1;Spese correnti;4;Trasferimenti correnti;2;Trasferimenti correnti a Famiglie;2;Interventi assistenziali;999;Altri assegni e sussidi assistenziali;22/11/2018
2028;1;0;2.757,20;2.757,20;HALLEY SARDEGNA SRL;Z7C2420D41;SALDO Fatt.n. 0001295  del 15/11/2018;22/11/2018;1936;2;269;2;Spese in conto capitale;2;Investimenti fissi lordi e acquisto di terreni;1;Beni materiali;7;Hardware;2;Postazioni di lavoro;22/11/2018
2029;1;0;60;60;MAGGIOLI SPA;Z462500EFB;SALDO Fatt.n. 0005964419  del 14/11/2018 FORNITURA DI LIBRI;22/11/2018;274;7;370;1;Spese correnti;3;Acquisto di beni e servizi;1;Acquisto di beni;2;Altri beni di consumo;999;Altri beni e materiali di consumo n.a.c.;22/11/2018
2032;1;0;722,49;722,49;IST. PER IL CREDITO SPORTIVO; ;INTERESSI PASSIVI SUI MUTUI 2 SEMESTRE 2018 (copertura campo basket CREDITO SPORTIVO) FONDO UNICO RAS;23/11/2018;836;3;466;1;Spese correnti;7;Interessi passivi;5;Interessi su Mutui e altri finanziamenti a medio lungo termine;1;Interessi passivi ad Amministrazioni Centrali su mutui e altri finanziamenti a medio lungo termine;12;Interessi passivi a enti centrali produttori di servizi assistenziali, ricreativi e culturali su mutui e altri finanziamenti a medio lungo termine;23/11/2018
2033;1;0;286,67;286,67;GRAMAR SAS; ;SALDO Fatt.n. 11/PA  del 21/11/2018 FATTURA VENDITA IMMEDIATA P.A.;23/11/2018;584;1;298;1;Spese correnti;3;Acquisto di beni e servizi;1;Acquisto di beni;2;Altri beni di consumo;1;Carta, cancelleria e stampati;23/11/2018
2034;1;0;364,08;364,08;GRAMAR SAS; ;SALDO Fatt.n. 9/PA  del 18/11/2018 FATTURA VENDITA IMMEDIATA P.A.;23/11/2018;584;1;339;1;Spese correnti;3;Acquisto di beni e servizi;1;Acquisto di beni;2;Altri beni di consumo;999;Altri beni e materiali di consumo n.a.c.;23/11/2018
2035;1;0;2.080,72;2.080,72;ASARP CASAMATTA ONLUS;ZD0237464E;SALDO Fatt.n. FATTPA 23_18  del 14/11/2018 CIG ZD0237464E DET. N. 119 DEL 08/08/2018 OTTOBRE 2018 INSERIMENTO STRUTTURA COMUNITA' INTEGRATA UTENTE;23/11/2018;1418;3;314;1;Spese correnti;3;Acquisto di beni e servizi;2;Acquisto di servizi;99;Altri servizi;999;Altri servizi diversi n.a.c.;23/11/2018
2036;1;0;55,48;55,48;COMUNE DI SANT'ANDREA FRIUS; ;SISTEMAZIONE STRUTTURA ADIACENTE PIAZZA EUROPA -LIQUIDAZIONE INCENTIVO TECNICO;26/11/2018;2991;4;555;2;Spese in conto capitale;2;Investimenti fissi lordi e acquisto di terreni;1;Beni materiali;9;Beni immobili;999;Beni immobili n.a.c.;26/11/2018
2043;1;0;18,96;18,96;COMUNE DI SANT'ANDREA FRIUS; ;SISTEMAZIONE STRUTTURA ADIACENTE PIAZZA EUROPA -LIQUIDAZIONE INCENTIVO TECNICO;26/11/2018;2991;4;555;2;Spese in conto capitale;2;Investimenti fissi lordi e acquisto di terreni;1;Beni materiali;9;Beni immobili;999;Beni immobili n.a.c.;26/11/2018
2045;1;0;6.799,04;6.799,04;MURGIA ROBERTO;ZAF22BA879;SALDO Fatt.n. FATTPA 7_18  del 20/11/2018 CIG: ZAF22BA879;28/11/2018;617;1;164;1;Spese correnti;3;Acquisto di beni e servizi;2;Acquisto di servizi;11;Prestazioni professionali e specialistiche;999;Altre prestazioni professionali e specialistiche n.a.c.;28/11/2018
2046;1;0;370,86;370,86;MURGIA ROBERTO;ZAF22BA879;SALDO Fatt.n. FATTPA 8_18  del 20/11/2018;28/11/2018;617;3;165;1;Spese correnti;3;Acquisto di beni e servizi;2;Acquisto di servizi;11;Prestazioni professionali e specialistiche;999;Altre prestazioni professionali e specialistiche n.a.c.;28/11/2018
2047;1;0;633,4;633,4;ECONOMO COMUNALE ETZI ANTONELLA; ;Reintegro anticipazioni provvisorie all'Economo al 29.11.2018-  artella di pagamento n. 025 2018 00120592 82 000, emessa dall'Agenzia delle Entrate-Riscossione, per l'attribuzione della rendita presunta nell'anno 2012 - Ruolo nr. 2018/000396. Liquid;29/11/2018;142;5;447;1;Spese correnti;10;Altre spese correnti;5;Spese dovute a sanzioni, risarcimenti e indennizzi;1;Spese dovute a sanzioni;1;Spese dovute a sanzioni;29/11/2018
2048;1;0;1,63;1,63;ECONOMO COMUNALE ETZI ANTONELLA; ;Reintegro anticipazioni provvisorie all'economo al 29.11.2018;29/11/2018;42;7;490;1;Spese correnti;3;Acquisto di beni e servizi;2;Acquisto di servizi;16;Servizi amministrativi;2;Spese postali;29/11/2018
2049;1;0;27,1;126,62;A.N.A.S spa; ;"SALDO Fatt.n. 0074001925  del 30/10/2018 Fatt. Lic&amp;Concess.";29/11/2018;1214;1;446;1;Spese correnti;3;Acquisto di beni e servizi;2;Acquisto di servizi;5;Utenze e canoni;999;Utenze e canoni per altri servizi n.a.c.;29/11/2018
2049;2;0;99,52;126,62;A.N.A.S spa; ;"SALDO Fatt.n. 0074001946  del 30/10/2018 Fatt. Lic&amp;Concess.";29/11/2018;1214;1;446;1;Spese correnti;3;Acquisto di beni e servizi;2;Acquisto di servizi;5;Utenze e canoni;999;Utenze e canoni per altri servizi n.a.c.;29/11/2018
2050;1;0;192,41;192,41;PARROCCHIA SANT'ANDREA APOSTOLO; ;Assegnazione contributo straordinario alla Parrocchia di Sant'Andrea Apostolo per i lavori di manutenzione ordinaria e straordinaria della Chiesa Parrocchiale. Liquidazione di spesa.;29/11/2018;3288;1;453;2;Spese in conto capitale;3;Contributi agli investimenti;4;Contributi agli investimenti a Istituzioni Sociali Private;1;Contributi agli investimenti a Istituzioni Sociali Private;1;Contributi agli investimenti a Istituzioni Sociali Private;29/11/2018
2051;1;0;2.807,59;2.807,59;PARROCCHIA SANT'ANDREA APOSTOLO; ;Assegnazione contributo straordinario alla Parrocchia di Sant'Andrea Apostolo per i lavori di manutenzione ordinaria e straordinaria della Chiesa Parrocchiale liquidazione di spesa.;29/11/2018;3288;3;454;2;Spese in conto capitale;3;Contributi agli investimenti;4;Contributi agli investimenti a Istituzioni Sociali Private;1;Contributi agli investimenti a Istituzioni Sociali Private;1;Contributi agli investimenti a Istituzioni Sociali Private;29/11/2018
2052;1;0;50.000,00;50.000,00;PARROCCHIA SANT'ANDREA APOSTOLO; ;Assegnazione contributo straordinario alla Parrocchia di Sant'Andrea Apostolo per i lavori di manutenzione ordinaria e straordinaria della Chiesa Parrocchiale - liquidazione di spesa.;29/11/2018;3288;5;455;2;Spese in conto capitale;3;Contributi agli investimenti;4;Contributi agli investimenti a Istituzioni Sociali Private;1;Contributi agli investimenti a Istituzioni Sociali Private;1;Contributi agli investimenti a Istituzioni Sociali Private;29/11/2018
2056;1;0;44,41;44,41;COMUNE DI SAN BASILIO; ;Contributo costo del servizio fornitura gratuita libri di testo agi alunni delle scuole primarie A.S. 2018/19 - Liquidazione di spesa per la fornitura dei libri di testo per gli alunni della Scuola Primaria (ex Elementare) di Sant'Andrea Frius.;03/12/2018;584;1;339;1;Spese correnti;3;Acquisto di beni e servizi;1;Acquisto di beni;2;Altri beni di consumo;1;Carta, cancelleria e stampati;03/12/2018
2057;1;0;275;275;NON SOLO VERDE DI LEDDA SABRINA;Z3224EE373;SALDO Fatt.n. FATTPA 1_18  del 06/11/2018;04/12/2018;10;1;397;1;Spese correnti;3;Acquisto di beni e servizi;1;Acquisto di beni;2;Altri beni di consumo;9;Beni per attività di rappresentanza;04/12/2018
2103;1;0;1.301,48;1.301,48;OMESSO NOMINATIVO NEL RISPETTO DELLA NORMATIVA SULLA PROTEZIONE DATI PERSONALI; ;STIPENDI MESE DI: DICEMBRE 18;05/12/2018;14;1;6;1;Spese correnti;3;Acquisto di beni e servizi;2;Acquisto di servizi;1;Organi e incarichi istituzionali dell'amministrazione;1;Organi istituzionali dell'amministrazione - Indennità;05/12/2018
2108;1;0;2.080,72;2.080,72;ASARP CASAMATTA ONLUS;ZD0237464E;SALDO Fatt.n. FATTPA 25_18  del 03/12/2018 CIG ZD0237464E DET. N. 119 DEL 08/08/2018 NOVEMBRE 2018 INSERIMENTO STRUTTURA COMUNITA' INTEGRATA UTENTE;10/12/2018;1418;3;314;1;Spese correnti;3;Acquisto di beni e servizi;2;Acquisto di servizi;99;Altri servizi;999;Altri servizi diversi n.a.c.;10/12/2018
2109;1;0;1.793,40;1.793,40;ITALTEC SRL;Z1613193BA;SALDO Fatt.n. 99/PA  del 30/11/2018 Servizio di manutenzione e conduzione impianti di riscaldamento e di condizionamento degli edifici comunali ed affidamento dell'incarico di terzo responsabile. II SEMESTRE 2018;10/12/2018;100;1;495;1;Spese correnti;3;Acquisto di beni e servizi;2;Acquisto di servizi;9;Manutenzione ordinaria e riparazioni;4;Manutenzione ordinaria e riparazioni di impianti e macchinari;10/12/2018
2110;1;0;1.525,00;1.525,00;AGRI SERVICE S.A.S. DI MASCIA MARIO E PAOLO;ZFA252357F;SALDO Fatt.n. 5_PA2018  del 03/12/2018 C.I.G.: ZFA252357F;10/12/2018;1090;3;401;1;Spese correnti;3;Acquisto di beni e servizi;2;Acquisto di servizi;9;Manutenzione ordinaria e riparazioni;4;Manutenzione ordinaria e riparazioni di impianti e macchinari;10/12/2018
2111;1;0;366,4;366,4;OMESSO NOMINATIVO NEL RISPETTO DELLA NORMATIVA SULLA PROTEZIONE DATI PERSONALI; ;"Legge regionale n. 4 dell'11/05/2006, art. 17, comma 1. Finanziamento per il programma sperimentale ""Ritornare a casa"". Liquidazione di spesa in favore di un beneficiario. Luglio - dicembre 2018.";10/12/2018;1448;5;296;1;Spese correnti;4;Trasferimenti correnti;2;Trasferimenti correnti a Famiglie;2;Interventi assistenziali;999;Altri assegni e sussidi assistenziali;10/12/2018
2112;1;0;1.465,60;1.465,60;OMESSO NOMINATIVO NEL RISPETTO DELLA NORMATIVA SULLA PROTEZIONE DATI PERSONALI; ;"Legge regionale n. 4 dell'11/05/2006, art. 17, comma 1. Finanziamento per il programma sperimentale ""Ritornare a casa"".Liquidazione di spesa in favore di un beneficiario. Luglio - dicembre 2018.";10/12/2018;1448;1;295;1;Spese correnti;4;Trasferimenti correnti;2;Trasferimenti correnti a Famiglie;2;Interventi assistenziali;999;Altri assegni e sussidi assistenziali;10/12/2018
2113;1;0;322,09;322,09;OMESSO NOMINATIVO NEL RISPETTO DELLA NORMATIVA SULLA PROTEZIONE DATI PERSONALI; ;L. 162/98. Piani personalizzati di sostegno in favore di persone con handicap grave. Finanziamento maggio - dicembre 2018. Liquidazione di spesa.;10/12/2018;1429;1;179;1;Spese correnti;4;Trasferimenti correnti;2;Trasferimenti correnti a Famiglie;2;Interventi assistenziali;999;Altri assegni e sussidi assistenziali;10/12/2018
2114;1;0;175,32;175,32;OMESSO NOMINATIVO NEL RISPETTO DELLA NORMATIVA SULLA PROTEZIONE DATI PERSONALI; ;Servizio di Assistenza Domiciliare per anziani e disabili.Liquidazione di spesa in favore di n. 7 beneficiari. Luglio - dicembre 2018.;10/12/2018;1433;3;345;1;Spese correnti;4;Trasferimenti correnti;2;Trasferimenti correnti a Famiglie;2;Interventi assistenziali;999;Altri assegni e sussidi assistenziali;10/12/2018
2116;1;0;200;200;OMESSO NOMINATIVO NEL RISPETTO DELLA NORMATIVA SULLA PROTEZIONE DATI PERSONALI; ;"Legge Regionale 2 agosto 2016, n 18. Fondo regionale per il reddito di inclusione sociale (REIS) ""Aggiudu torrau"". Annualita 2017. Liquidazione di spesa.";10/12/2018;1440;3;526;1;Spese correnti;4;Trasferimenti correnti;2;Trasferimenti correnti a Famiglie;2;Interventi assistenziali;999;Altri assegni e sussidi assistenziali;10/12/2018
2117;1;0;120;120;OMESSO NOMINATIVO NEL RISPETTO DELLA NORMATIVA SULLA PROTEZIONE DATI PERSONALI; ;"Legge Regionale 2 agosto 2016, n 18. Fondo regionale per il reddito di inclusione sociale (REIS) ""Aggiudu torrau"". Annualita 2017.liquidazione di spesa.";10/12/2018;1440;3;526;1;Spese correnti;4;Trasferimenti correnti;2;Trasferimenti correnti a Famiglie;2;Interventi assistenziali;999;Altri assegni e sussidi assistenziali;10/12/2018
2118;1;0;320;320;OMESSO NOMINATIVO NEL RISPETTO DELLA NORMATIVA SULLA PROTEZIONE DATI PERSONALI; ;"Legge Regionale 2 agosto 2016, n 18. Fondo regionale per il reddito di inclusione sociale (REIS) ""Aggiudu torrau"". Annualita 2017. liquidazione di spesa.";10/12/2018;1440;3;526;1;Spese correnti;4;Trasferimenti correnti;2;Trasferimenti correnti a Famiglie;2;Interventi assistenziali;999;Altri assegni e sussidi assistenziali;10/12/2018
2119;1;0;320;320;OMESSO NOMINATIVO NEL RISPETTO DELLA NORMATIVA SULLA PROTEZIONE DATI PERSONALI; ;"Legge Regionale 2 agosto 2016, n 18. Fondo regionale per il reddito di inclusione sociale (REIS) ""Aggiudu torrau"". Annualita 2017.Liquidazione di spesa.";10/12/2018;1440;3;526;1;Spese correnti;4;Trasferimenti correnti;2;Trasferimenti correnti a Famiglie;2;Interventi assistenziali;999;Altri assegni e sussidi assistenziali;10/12/2018
2120;1;0;200;200;OMESSO NOMINATIVO NEL RISPETTO DELLA NORMATIVA SULLA PROTEZIONE DATI PERSONALI; ;"Legge Regionale 2 agosto 2016, n 18. Fondo regionale per il reddito di inclusione sociale (REIS) ""Aggiudu torrau"". Annualita 2017. liquidazione di spesa.";10/12/2018;1440;3;526;1;Spese correnti;4;Trasferimenti correnti;2;Trasferimenti correnti a Famiglie;2;Interventi assistenziali;999;Altri assegni e sussidi assistenziali;10/12/2018
2121;1;0;120;120;OMESSO NOMINATIVO NEL RISPETTO DELLA NORMATIVA SULLA PROTEZIONE DATI PERSONALI; ;"Legge Regionale 2 agosto 2016, n 18. Fondo regionale per il reddito di inclusione sociale (REIS) ""Aggiudu torrau"". Annualita 2017. liquidazione  di spesa.";10/12/2018;1440;3;526;1;Spese correnti;4;Trasferimenti correnti;2;Trasferimenti correnti a Famiglie;2;Interventi assistenziali;999;Altri assegni e sussidi assistenziali;10/12/2018
2122;1;0;200;200;OMESSO NOMINATIVO NEL RISPETTO DELLA NORMATIVA SULLA PROTEZIONE DATI PERSONALI; ;"Legge Regionale 2 agosto 2016, n 18. Fondo regionale per il reddito di inclusione sociale (REIS) ""Aggiudu torrau"". Annualita 2017. liquidazione di spesa.";10/12/2018;1440;3;526;1;Spese correnti;4;Trasferimenti correnti;2;Trasferimenti correnti a Famiglie;2;Interventi assistenziali;999;Altri assegni e sussidi assistenziali;10/12/2018
2123;1;0;1.000,00;1.000,00;OMESSO NOMINATIVO NEL RISPETTO DELLA NORMATIVA SULLA PROTEZIONE DATI PERSONALI; ;"Legge Regionale 2 agosto 2016, n 18. Fondo regionale per il reddito di inclusione sociale (REIS) ""Aggiudu torrau"". Annualita 2017.liquidazione di spesa.";10/12/2018;1440;3;526;1;Spese correnti;4;Trasferimenti correnti;2;Trasferimenti correnti a Famiglie;2;Interventi assistenziali;999;Altri assegni e sussidi assistenziali;10/12/2018
2124;1;0;400;400;OMESSO NOMINATIVO NEL RISPETTO DELLA NORMATIVA SULLA PROTEZIONE DATI PERSONALI; ;"Legge Regionale 2 agosto 2016, n 18. Fondo regionale per il reddito di inclusione sociale (REIS) ""Aggiudu torrau"". Annualita 2017. liquidazione di spesa.";10/12/2018;1440;3;526;1;Spese correnti;4;Trasferimenti correnti;2;Trasferimenti correnti a Famiglie;2;Interventi assistenziali;999;Altri assegni e sussidi assistenziali;10/12/2018
2125;1;0;600;600;OMESSO NOMINATIVO NEL RISPETTO DELLA NORMATIVA SULLA PROTEZIONE DATI PERSONALI; ;"Legge Regionale 2 agosto 2016, n 18. Fondo regionale per il reddito di inclusione sociale (REIS) ""Aggiudu torrau"". Annualita 2017.liquidazione di spesa.";10/12/2018;1440;3;526;1;Spese correnti;4;Trasferimenti correnti;2;Trasferimenti correnti a Famiglie;2;Interventi assistenziali;999;Altri assegni e sussidi assistenziali;10/12/2018
2126;1;0;400;400;OMESSO NOMINATIVO NEL RISPETTO DELLA NORMATIVA SULLA PROTEZIONE DATI PERSONALI; ;"Legge Regionale 2 agosto 2016, n 18. Fondo regionale per il reddito di inclusione sociale (REIS) ""Aggiudu torrau"". Annualita 2017.Liquidazione di spesa.";10/12/2018;1440;3;526;1;Spese correnti;4;Trasferimenti correnti;2;Trasferimenti correnti a Famiglie;2;Interventi assistenziali;999;Altri assegni e sussidi assistenziali;10/12/2018
2127;1;0;400;400;OMESSO NOMINATIVO NEL RISPETTO DELLA NORMATIVA SULLA PROTEZIONE DATI PERSONALI; ;"Legge Regionale 2 agosto 2016, n 18. Fondo regionale per il reddito di inclusione sociale (REIS) ""Aggiudu torrau"". Annualita 2017. liquidazione di spesa.";10/12/2018;1440;3;526;1;Spese correnti;4;Trasferimenti correnti;2;Trasferimenti correnti a Famiglie;2;Interventi assistenziali;999;Altri assegni e sussidi assistenziali;10/12/2018
2128;1;0;400;400;OMESSO NOMINATIVO NEL RISPETTO DELLA NORMATIVA SULLA PROTEZIONE DATI PERSONALI; ;"Legge Regionale 2 agosto 2016, n 18. Fondo regionale per il reddito di inclusione sociale (REIS) ""Aggiudu torrau"". Annualita 2017. liquidazione di spesa.";10/12/2018;1440;3;526;1;Spese correnti;4;Trasferimenti correnti;2;Trasferimenti correnti a Famiglie;2;Interventi assistenziali;999;Altri assegni e sussidi assistenziali;10/12/2018
2129;1;0;1.000,00;1.000,00;OMESSO NOMINATIVO NEL RISPETTO DELLA NORMATIVA SULLA PROTEZIONE DATI PERSONALI; ;"Legge Regionale 2 agosto 2016, n 18. Fondo regionale per il reddito di inclusione sociale (REIS) ""Aggiudu torrau"". Annualita 2017. liquidazione  di spesa.";10/12/2018;1440;3;526;1;Spese correnti;4;Trasferimenti correnti;2;Trasferimenti correnti a Famiglie;2;Interventi assistenziali;999;Altri assegni e sussidi assistenziali;10/12/2018
2130;1;0;1.000,00;1.000,00;OMESSO NOMINATIVO NEL RISPETTO DELLA NORMATIVA SULLA PROTEZIONE DATI PERSONALI; ;"Legge Regionale 2 agosto 2016, n 18. Fondo regionale per il reddito di inclusione sociale (REIS) ""Aggiudu torrau"". Annualita 2017.liquidazione di spesa.";10/12/2018;1440;3;526;1;Spese correnti;4;Trasferimenti correnti;2;Trasferimenti correnti a Famiglie;2;Interventi assistenziali;999;Altri assegni e sussidi assistenziali;10/12/2018
2131;1;0;800;800;OMESSO NOMINATIVO NEL RISPETTO DELLA NORMATIVA SULLA PROTEZIONE DATI PERSONALI; ;"Legge Regionale 2 agosto 2016, n 18. Fondo regionale per il reddito di inclusione sociale (REIS) ""Aggiudu torrau"". Annualita 2017. liquidazione di spesa.";10/12/2018;1440;3;526;1;Spese correnti;4;Trasferimenti correnti;2;Trasferimenti correnti a Famiglie;2;Interventi assistenziali;999;Altri assegni e sussidi assistenziali;10/12/2018
2132;1;0;635,44;635,44;ABBANOA  SPA; ;SALDO Fatt.n. 0150020180032035000  del 12/10/2018 Codice cliente 36425563 PDE 35405738;10/12/2018;592;5;143;1;Spese correnti;3;Acquisto di beni e servizi;2;Acquisto di servizi;5;Utenze e canoni;5;Acqua;10/12/2018
2133;1;0;43,43;43,43;ABBANOA  SPA; ;SALDO Fatt.n. 0150020180032280200  del 08/11/2018 Codice cliente 36431143 PDE 35595133;10/12/2018;900;3;140;1;Spese correnti;3;Acquisto di beni e servizi;2;Acquisto di servizi;5;Utenze e canoni;5;Acqua;10/12/2018
2134;1;0;10,85;10,85;ABBANOA  SPA; ;SALDO Fatt.n. 0150020180032278900  del 08/11/2018 Codice cliente 36425801 PDE 35405713;10/12/2018;716;7;141;1;Spese correnti;3;Acquisto di beni e servizi;2;Acquisto di servizi;5;Utenze e canoni;5;Acqua;10/12/2018
2135;1;0;10,85;62,42;ABBANOA  SPA; ;SALDO Fatt.n. 0150020180032280300  del 08/11/2018 Codice cliente 36431156 PDE 35405957;10/12/2018;820;3;144;1;Spese correnti;3;Acquisto di beni e servizi;2;Acquisto di servizi;5;Utenze e canoni;5;Acqua;10/12/2018
2135;2;0;51,57;62,42;ABBANOA  SPA; ;SALDO Fatt.n. 0150020180032278700  del 08/11/2018 Codice cliente 36425739 PDE 35405958;10/12/2018;820;3;144;1;Spese correnti;3;Acquisto di beni e servizi;2;Acquisto di servizi;5;Utenze e canoni;5;Acqua;10/12/2018
2136;1;0;29,84;29,84;ABBANOA  SPA; ;SALDO Fatt.n. 0150020180032278800  del 08/11/2018 Codice cliente 36425793 PDE 35405755;10/12/2018;42;9;146;1;Spese correnti;3;Acquisto di beni e servizi;2;Acquisto di servizi;5;Utenze e canoni;5;Acqua;10/12/2018
2137;1;0;119,06;119,06;ABBANOA  SPA; ;SALDO Fatt.n. 0150020180032278600  del 08/11/2018 Codice cliente 36425737 PDE 35405609;10/12/2018;42;9;146;1;Spese correnti;3;Acquisto di beni e servizi;2;Acquisto di servizi;5;Utenze e canoni;5;Acqua;10/12/2018
2138;1;0;7,56;7,56;ABBANOA  SPA; ;SALDO Fatt.n. 0150020180032280100  del 08/11/2018 Codice cliente 36431143 PDE 35406203;10/12/2018;1302;5;152;1;Spese correnti;3;Acquisto di beni e servizi;2;Acquisto di servizi;5;Utenze e canoni;5;Acqua;10/12/2018
2139;1;0;43,43;43,43;ABBANOA  SPA; ;SALDO Fatt.n. 0150020180032279800  del 08/11/2018 Codice cliente 36428723 PDE 35405190;10/12/2018;1302;5;152;1;Spese correnti;3;Acquisto di beni e servizi;2;Acquisto di servizi;5;Utenze e canoni;5;Acqua;10/12/2018
2140;1;0;54,29;54,29;ABBANOA  SPA; ;SALDO Fatt.n. 0150020180032280000  del 08/11/2018 Codice cliente 36431141 PDE 35406202;10/12/2018;1302;5;152;1;Spese correnti;3;Acquisto di beni e servizi;2;Acquisto di servizi;5;Utenze e canoni;5;Acqua;10/12/2018
2141;1;0;57,43;57,43;ABBANOA  SPA; ;SALDO Fatt.n. 0150020180032279000  del 08/11/2018 Codice cliente 36425831 PDE 35405885;10/12/2018;1486;3;153;1;Spese correnti;3;Acquisto di beni e servizi;2;Acquisto di servizi;5;Utenze e canoni;5;Acqua;10/12/2018
2142;1;0;4.851,94;4.851,94;ATZENI ANTONIO SALVATORE;Z95255BFAE;SALDO Fatt.n. 6  del 04/12/2018 FORNITURA;11/12/2018;1939;9;448;2;Spese in conto capitale;2;Investimenti fissi lordi e acquisto di terreni;1;Beni materiali;9;Beni immobili;999;Beni immobili n.a.c.;11/12/2018
2143;1;0;235,06;235,06;POSTE ITALIANE spa;Z4F23F9B5A;SALDO Fatt.n. 8718407456  del 04/12/2018 Fattura Elettronica relativa all'Identificativo Rendiconto 2099851122;11/12/2018;42;7;277;1;Spese correnti;3;Acquisto di beni e servizi;2;Acquisto di servizi;16;Servizi amministrativi;2;Spese postali;11/12/2018
2144;1;0;19,4;19,4;ENEL ENERGIA SPA;Z7122ECA74;SALDO Fatt.n. 004811963209  del 06/11/2018;11/12/2018;744;1;135;1;Spese correnti;3;Acquisto di beni e servizi;2;Acquisto di servizi;5;Utenze e canoni;4;Energia elettrica;11/12/2018
2145;1;0;-861,88;4.120,96;ENEL ENERGIA SPA;7429682F87;SALDO Fatt.n. 004810967235  del 08/06/2018;11/12/2018;1015;1;392;1;Spese correnti;3;Acquisto di beni e servizi;2;Acquisto di servizi;5;Utenze e canoni;4;Energia elettrica;11/12/2018
2145;2;0;12,55;4.120,96;ENEL ENERGIA SPA;7429682F87;SALDO Fatt.n. 004811963208  del 06/11/2018;11/12/2018;1015;1;392;1;Spese correnti;3;Acquisto di beni e servizi;2;Acquisto di servizi;5;Utenze e canoni;4;Energia elettrica;11/12/2018
2145;3;0;64,12;4.120,96;ENEL ENERGIA SPA;7429682F87;SALDO Fatt.n. 004811963203  del 06/11/2018;11/12/2018;1015;1;392;1;Spese correnti;3;Acquisto di beni e servizi;2;Acquisto di servizi;5;Utenze e canoni;4;Energia elettrica;11/12/2018
2145;4;0;78,91;4.120,96;ENEL ENERGIA SPA;7429682F87;SALDO Fatt.n. 004811963195  del 06/11/2018;11/12/2018;1015;1;392;1;Spese correnti;3;Acquisto di beni e servizi;2;Acquisto di servizi;5;Utenze e canoni;4;Energia elettrica;11/12/2018
2145;5;0;241,35;4.120,96;ENEL ENERGIA SPA;7429682F87;SALDO Fatt.n. 004811963190  del 06/11/2018;11/12/2018;1015;1;392;1;Spese correnti;3;Acquisto di beni e servizi;2;Acquisto di servizi;5;Utenze e canoni;4;Energia elettrica;11/12/2018
2145;6;0;244,65;4.120,96;ENEL ENERGIA SPA;7429682F87;SALDO Fatt.n. 004811963205  del 06/11/2018;11/12/2018;1015;1;392;1;Spese correnti;3;Acquisto di beni e servizi;2;Acquisto di servizi;5;Utenze e canoni;4;Energia elettrica;11/12/2018
2145;7;0;259,54;4.120,96;ENEL ENERGIA SPA;7429682F87;SALDO Fatt.n. 004811963198  del 06/11/2018;11/12/2018;1015;1;392;1;Spese correnti;3;Acquisto di beni e servizi;2;Acquisto di servizi;5;Utenze e canoni;4;Energia elettrica;11/12/2018
2145;8;0;364,77;4.120,96;ENEL ENERGIA SPA;7429682F87;SALDO Fatt.n. 004811963194  del 06/11/2018;11/12/2018;1015;1;392;1;Spese correnti;3;Acquisto di beni e servizi;2;Acquisto di servizi;5;Utenze e canoni;4;Energia elettrica;11/12/2018
2145;9;0;421,99;4.120,96;ENEL ENERGIA SPA;7429682F87;SALDO Fatt.n. 004811963204  del 06/11/2018;11/12/2018;1015;1;392;1;Spese correnti;3;Acquisto di beni e servizi;2;Acquisto di servizi;5;Utenze e canoni;4;Energia elettrica;11/12/2018
2145;10;0;597,4;4.120,96;ENEL ENERGIA SPA;7429682F87;SALDO Fatt.n. 004811963207  del 06/11/2018;11/12/2018;1015;1;392;1;Spese correnti;3;Acquisto di beni e servizi;2;Acquisto di servizi;5;Utenze e canoni;4;Energia elettrica;11/12/2018
2145;11;0;615,69;4.120,96;ENEL ENERGIA SPA;7429682F87;SALDO Fatt.n. 004811963196  del 06/11/2018;11/12/2018;1015;1;392;1;Spese correnti;3;Acquisto di beni e servizi;2;Acquisto di servizi;5;Utenze e canoni;4;Energia elettrica;11/12/2018
2145;12;0;855,78;4.120,96;ENEL ENERGIA SPA;7429682F87;SALDO Fatt.n. 004810967328  del 08/06/2018;11/12/2018;1015;1;392;1;Spese correnti;3;Acquisto di beni e servizi;2;Acquisto di servizi;5;Utenze e canoni;4;Energia elettrica;11/12/2018
2145;13;0;1.226,09;4.120,96;ENEL ENERGIA SPA;7429682F87;SALDO Fatt.n. 004811963186  del 06/11/2018;11/12/2018;1015;1;392;1;Spese correnti;3;Acquisto di beni e servizi;2;Acquisto di servizi;5;Utenze e canoni;4;Energia elettrica;11/12/2018
2146;1;0;19,13;60,29;ENEL ENERGIA SPA;7429682F87;SALDO Fatt.n. 004811963188  del 06/11/2018;11/12/2018;1090;1;393;1;Spese correnti;3;Acquisto di beni e servizi;2;Acquisto di servizi;5;Utenze e canoni;4;Energia elettrica;11/12/2018
2146;2;0;19,13;60,29;ENEL ENERGIA SPA;7429682F87;SALDO Fatt.n. 004811963193  del 06/11/2018;11/12/2018;1090;1;393;1;Spese correnti;3;Acquisto di beni e servizi;2;Acquisto di servizi;5;Utenze e canoni;4;Energia elettrica;11/12/2018
2146;3;0;22,03;60,29;ENEL ENERGIA SPA;7429682F87;SALDO Fatt.n. 004811963189  del 06/11/2018;11/12/2018;1090;1;393;1;Spese correnti;3;Acquisto di beni e servizi;2;Acquisto di servizi;5;Utenze e canoni;4;Energia elettrica;11/12/2018
2147;1;0;128,17;128,17;ENEL ENERGIA SPA;7429682F87;SALDO Fatt.n. 004811963201  del 06/11/2018;11/12/2018;716;4;395;1;Spese correnti;3;Acquisto di beni e servizi;2;Acquisto di servizi;5;Utenze e canoni;4;Energia elettrica;11/12/2018
2148;1;0;261,88;261,88;ENEL ENERGIA SPA;7429682F87;SALDO Fatt.n. 004811963202  del 06/11/2018;11/12/2018;618;4;396;1;Spese correnti;3;Acquisto di beni e servizi;2;Acquisto di servizi;5;Utenze e canoni;4;Energia elettrica;11/12/2018
2149;1;0;24,68;466,63;ENEL ENERGIA SPA;7429682F87;SALDO Fatt.n. 004811963200  del 06/11/2018;11/12/2018;118;4;397;1;Spese correnti;3;Acquisto di beni e servizi;2;Acquisto di servizi;5;Utenze e canoni;4;Energia elettrica;11/12/2018
2149;2;0;62,74;466,63;ENEL ENERGIA SPA;7429682F87;SALDO Fatt.n. 004811963191  del 06/11/2018;11/12/2018;118;4;397;1;Spese correnti;3;Acquisto di beni e servizi;2;Acquisto di servizi;5;Utenze e canoni;4;Energia elettrica;11/12/2018
2149;3;0;379,21;466,63;ENEL ENERGIA SPA;7429682F87;SALDO Fatt.n. 004811963206  del 06/11/2018;11/12/2018;118;4;397;1;Spese correnti;3;Acquisto di beni e servizi;2;Acquisto di servizi;5;Utenze e canoni;4;Energia elettrica;11/12/2018
2150;1;0;155,04;155,04;ENEL ENERGIA SPA;7429682F87;SALDO Fatt.n. 004811963192  del 06/11/2018;11/12/2018;592;4;402;1;Spese correnti;3;Acquisto di beni e servizi;2;Acquisto di servizi;5;Utenze e canoni;4;Energia elettrica;11/12/2018
2151;1;0;99,72;99,72;ENEL ENERGIA SPA;7429682F87;SALDO Fatt.n. 004811963197  del 06/11/2018;11/12/2018;1340;4;403;1;Spese correnti;3;Acquisto di beni e servizi;2;Acquisto di servizi;5;Utenze e canoni;4;Energia elettrica;11/12/2018
2152;1;0;341,27;712,3;ENEL ENERGIA SPA;7429682F87;SALDO Fatt.n. 004811963199  del 06/11/2018;11/12/2018;820;1;405;1;Spese correnti;3;Acquisto di beni e servizi;2;Acquisto di servizi;5;Utenze e canoni;4;Energia elettrica;11/12/2018
2152;2;0;371,03;712,3;ENEL ENERGIA SPA;7429682F87;SALDO Fatt.n. 004811963187  del 06/11/2018;11/12/2018;820;1;405;1;Spese correnti;3;Acquisto di beni e servizi;2;Acquisto di servizi;5;Utenze e canoni;4;Energia elettrica;11/12/2018
2163;1;0;37,91;37,91;ENEL ENERGIA SPA;7429682F87;SALDO Fatt.n. 004811963185  del 06/11/2018;11/12/2018;1302;2;394;1;Spese correnti;3;Acquisto di beni e servizi;2;Acquisto di servizi;5;Utenze e canoni;4;Energia elettrica;11/12/2018
2164;1;0;120,08;120,08;OMESSO NOMINATIVO NEL RISPETTO DELLA NORMATIVA SULLA PROTEZIONE DATI PERSONALI; ;L. 162/98. Piani personalizzati di sostegno in favore di persone con handicap grave. Finanziamento Ottobre/Novembre 2018.Liquidazione di spesa.;12/12/2018;1429;1;179;1;Spese correnti;4;Trasferimenti correnti;2;Trasferimenti correnti a Famiglie;2;Interventi assistenziali;999;Altri assegni e sussidi assistenziali;12/12/2018
2165;1;0;254;254;OMESSO NOMINATIVO NEL RISPETTO DELLA NORMATIVA SULLA PROTEZIONE DATI PERSONALI; ;L. 162/98. Piani personalizzati di sostegno in favore di persone con handicap grave. Finanziamento Ottobre-Novembre 2018. liquidazione di spesa.;12/12/2018;1429;1;179;1;Spese correnti;4;Trasferimenti correnti;2;Trasferimenti correnti a Famiglie;2;Interventi assistenziali;999;Altri assegni e sussidi assistenziali;12/12/2018
2166;1;0;220;220;OMESSO NOMINATIVO NEL RISPETTO DELLA NORMATIVA SULLA PROTEZIONE DATI PERSONALI; ;L. 162/98. Piani personalizzati di sostegno in favore di persone con handicap grave. Finanziamento Novembre 2018. liquidazione di spesa.;12/12/2018;1429;1;179;1;Spese correnti;4;Trasferimenti correnti;2;Trasferimenti correnti a Famiglie;2;Interventi assistenziali;999;Altri assegni e sussidi assistenziali;12/12/2018
2167;1;0;420,34;420,34;OMESSO NOMINATIVO NEL RISPETTO DELLA NORMATIVA SULLA PROTEZIONE DATI PERSONALI; ;L. 162/98. Piani personalizzati di sostegno in favore di persone con handicap grave. Finanziamento Novembre 2018. liquidazione di spesa.;12/12/2018;1429;1;179;1;Spese correnti;4;Trasferimenti correnti;2;Trasferimenti correnti a Famiglie;2;Interventi assistenziali;999;Altri assegni e sussidi assistenziali;12/12/2018
2168;1;0;205,12;205,12;OMESSO NOMINATIVO NEL RISPETTO DELLA NORMATIVA SULLA PROTEZIONE DATI PERSONALI; ;L. 162/98. Piani personalizzati di sostegno in favore di persone con handicap grave. Finanziamento Novembre 2018. liquidazione di spesa.;12/12/2018;1429;1;179;1;Spese correnti;4;Trasferimenti correnti;2;Trasferimenti correnti a Famiglie;2;Interventi assistenziali;999;Altri assegni e sussidi assistenziali;12/12/2018
2169;1;0;141,1;141,1;OMESSO NOMINATIVO NEL RISPETTO DELLA NORMATIVA SULLA PROTEZIONE DATI PERSONALI; ;L. 162/98. Piani personalizzati di sostegno in favore di persone con handicap grave. Finanziamento Novembre 2018.liquidazione  di spesa.;12/12/2018;1429;1;179;1;Spese correnti;4;Trasferimenti correnti;2;Trasferimenti correnti a Famiglie;2;Interventi assistenziali;999;Altri assegni e sussidi assistenziali;12/12/2018
2170;1;0;104,51;104,51;OMESSO NOMINATIVO NEL RISPETTO DELLA NORMATIVA SULLA PROTEZIONE DATI PERSONALI; ;L. 162/98. Piani personalizzati di sostegno in favore di persone con handicap grave. Finanziamento Novembre 2018. liquidazione di spesa.;12/12/2018;1429;1;179;1;Spese correnti;4;Trasferimenti correnti;2;Trasferimenti correnti a Famiglie;2;Interventi assistenziali;999;Altri assegni e sussidi assistenziali;12/12/2018
2171;1;0;712;712;OMESSO NOMINATIVO NEL RISPETTO DELLA NORMATIVA SULLA PROTEZIONE DATI PERSONALI; ;L. 162/98. Piani personalizzati di sostegno in favore di persone con handicap grave. Finanziamento Novembre 2018. Liquidazione di spesa.;12/12/2018;1429;1;179;1;Spese correnti;4;Trasferimenti correnti;2;Trasferimenti correnti a Famiglie;2;Interventi assistenziali;999;Altri assegni e sussidi assistenziali;12/12/2018
2172;1;0;911,18;911,18;OMESSO NOMINATIVO NEL RISPETTO DELLA NORMATIVA SULLA PROTEZIONE DATI PERSONALI; ;L. 162/98. Piani personalizzati di sostegno in favore di persone con handicap grave. Finanziamento Novembre 2018.Liquidazione di spesa.;12/12/2018;1429;1;179;1;Spese correnti;4;Trasferimenti correnti;2;Trasferimenti correnti a Famiglie;2;Interventi assistenziali;999;Altri assegni e sussidi assistenziali;12/12/2018
2173;1;0;173,33;173,33;OMESSO NOMINATIVO NEL RISPETTO DELLA NORMATIVA SULLA PROTEZIONE DATI PERSONALI; ;L. 162/98. Piani personalizzati di sostegno in favore di persone con handicap grave. Finanziamento Novembre 2018. Liquidazione di spesa.;12/12/2018;1429;1;179;1;Spese correnti;4;Trasferimenti correnti;2;Trasferimenti correnti a Famiglie;2;Interventi assistenziali;999;Altri assegni e sussidi assistenziali;12/12/2018
2174;1;0;333,29;333,29;OMESSO NOMINATIVO NEL RISPETTO DELLA NORMATIVA SULLA PROTEZIONE DATI PERSONALI; ;L. 162/98. Piani personalizzati di sostegno in favore di persone con handicap grave. Finanziamento novembre 2018. liquidazione di spesa.;12/12/2018;1429;1;179;1;Spese correnti;4;Trasferimenti correnti;2;Trasferimenti correnti a Famiglie;2;Interventi assistenziali;999;Altri assegni e sussidi assistenziali;12/12/2018
2175;1;0;359,23;359,23;OMESSO NOMINATIVO NEL RISPETTO DELLA NORMATIVA SULLA PROTEZIONE DATI PERSONALI; ;L. 162/98. Piani personalizzati di sostegno in favore di persone con handicap grave. Finanziamento Novembre  2018. Iiquidazione di spesa.;12/12/2018;1429;1;179;1;Spese correnti;4;Trasferimenti correnti;2;Trasferimenti correnti a Famiglie;2;Interventi assistenziali;999;Altri assegni e sussidi assistenziali;12/12/2018
2176;1;0;145,94;145,94;OMESSO NOMINATIVO NEL RISPETTO DELLA NORMATIVA SULLA PROTEZIONE DATI PERSONALI; ;L. 162/98. Piani personalizzati di sostegno in favore di persone con handicap grave. Finanziamento Novembre 2018. liquidazione  di spesa.;12/12/2018;1429;1;179;1;Spese correnti;4;Trasferimenti correnti;2;Trasferimenti correnti a Famiglie;2;Interventi assistenziali;999;Altri assegni e sussidi assistenziali;12/12/2018
2177;1;0;120;120;OMESSO NOMINATIVO NEL RISPETTO DELLA NORMATIVA SULLA PROTEZIONE DATI PERSONALI; ;L. 162/98. Piani personalizzati di sostegno in favore di persone con handicap grave. Finanziamento Novembre 2018.Liquidazione di spesa.;12/12/2018;1429;1;179;1;Spese correnti;4;Trasferimenti correnti;2;Trasferimenti correnti a Famiglie;2;Interventi assistenziali;999;Altri assegni e sussidi assistenziali;12/12/2018
2178;1;0;777,45;777,45;OMESSO NOMINATIVO NEL RISPETTO DELLA NORMATIVA SULLA PROTEZIONE DATI PERSONALI; ;L. 162/98. Piani personalizzati di sostegno in favore di persone con handicap grave. Finanziamento Novembre 2018. liquidazione di spesa.;12/12/2018;1429;1;179;1;Spese correnti;4;Trasferimenti correnti;2;Trasferimenti correnti a Famiglie;2;Interventi assistenziali;999;Altri assegni e sussidi assistenziali;12/12/2018
2179;1;0;141;141;OMESSO NOMINATIVO NEL RISPETTO DELLA NORMATIVA SULLA PROTEZIONE DATI PERSONALI; ;L. 162/98. Piani personalizzati di sostegno in favore di persone con handicap grave. Finanziamento Novembre 2018. Liquidazione di spesa.;12/12/2018;1429;1;179;1;Spese correnti;4;Trasferimenti correnti;2;Trasferimenti correnti a Famiglie;2;Interventi assistenziali;999;Altri assegni e sussidi assistenziali;12/12/2018
2180;1;0;321;321;OMESSO NOMINATIVO NEL RISPETTO DELLA NORMATIVA SULLA PROTEZIONE DATI PERSONALI; ;L. 162/98. Piani personalizzati di sostegno in favore di persone con handicap grave. Finanziamento Novembre 2018.liquidazione di spesa.;12/12/2018;1429;1;179;1;Spese correnti;4;Trasferimenti correnti;2;Trasferimenti correnti a Famiglie;2;Interventi assistenziali;999;Altri assegni e sussidi assistenziali;12/12/2018
2181;1;0;308,77;308,77;OMESSO NOMINATIVO NEL RISPETTO DELLA NORMATIVA SULLA PROTEZIONE DATI PERSONALI; ;L. 162/98. Piani personalizzati di sostegno in favore di persone con handicap grave. Finanziamento maggio - dicembre 2018. Impegno di spesa.;12/12/2018;1429;1;179;1;Spese correnti;4;Trasferimenti correnti;2;Trasferimenti correnti a Famiglie;2;Interventi assistenziali;999;Altri assegni e sussidi assistenziali;12/12/2018
2182;1;0;840,34;840,34;OMESSO NOMINATIVO NEL RISPETTO DELLA NORMATIVA SULLA PROTEZIONE DATI PERSONALI; ;L. 162/98. Piani personalizzati di sostegno in favore di persone con handicap grave. Finanziamento Novembre 2018. Liquidazione di spesa.;12/12/2018;1429;1;179;1;Spese correnti;4;Trasferimenti correnti;2;Trasferimenti correnti a Famiglie;2;Interventi assistenziali;999;Altri assegni e sussidi assistenziali;12/12/2018
2183;1;0;375;375;OMESSO NOMINATIVO NEL RISPETTO DELLA NORMATIVA SULLA PROTEZIONE DATI PERSONALI; ;L. 162/98. Piani personalizzati di sostegno in favore di persone con handicap grave. Finanziamento Novembre 2018.Liquidazione di spesa.;12/12/2018;1429;1;179;1;Spese correnti;4;Trasferimenti correnti;2;Trasferimenti correnti a Famiglie;2;Interventi assistenziali;999;Altri assegni e sussidi assistenziali;12/12/2018
2184;1;0;935;935;OMESSO NOMINATIVO NEL RISPETTO DELLA NORMATIVA SULLA PROTEZIONE DATI PERSONALI; ;L. 162/98. Piani personalizzati di sostegno in favore di persone con handicap grave. Finanziamento Novembre 2018. Liquidazione di spesa.;12/12/2018;1429;1;179;1;Spese correnti;4;Trasferimenti correnti;2;Trasferimenti correnti a Famiglie;2;Interventi assistenziali;999;Altri assegni e sussidi assistenziali;12/12/2018
2185;1;0;209,89;209,89;OMESSO NOMINATIVO NEL RISPETTO DELLA NORMATIVA SULLA PROTEZIONE DATI PERSONALI; ;L. 162/98. Piani personalizzati di sostegno in favore di persone con handicap grave. Finanziamento Novembre 2018. liquidazione di spesa.;12/12/2018;1429;1;179;1;Spese correnti;4;Trasferimenti correnti;2;Trasferimenti correnti a Famiglie;2;Interventi assistenziali;999;Altri assegni e sussidi assistenziali;12/12/2018
2186;1;0;313,32;313,32;OMESSO NOMINATIVO NEL RISPETTO DELLA NORMATIVA SULLA PROTEZIONE DATI PERSONALI; ;L. 162/98. Piani personalizzati di sostegno in favore di persone con handicap grave. Finanziamento Novembre 2018. Liquidazione di spesa.;12/12/2018;1429;1;179;1;Spese correnti;4;Trasferimenti correnti;2;Trasferimenti correnti a Famiglie;2;Interventi assistenziali;999;Altri assegni e sussidi assistenziali;12/12/2018
2187;1;0;300;300;OMESSO NOMINATIVO NEL RISPETTO DELLA NORMATIVA SULLA PROTEZIONE DATI PERSONALI; ;L. 162/98. Piani personalizzati di sostegno in favore di persone con handicap grave. Finanziamento maggio - dicembre 2018. Impegno di spesa.;12/12/2018;1429;1;179;1;Spese correnti;4;Trasferimenti correnti;2;Trasferimenti correnti a Famiglie;2;Interventi assistenziali;999;Altri assegni e sussidi assistenziali;12/12/2018
2188;1;0;900;900;OMESSO NOMINATIVO NEL RISPETTO DELLA NORMATIVA SULLA PROTEZIONE DATI PERSONALI; ;L. 162/98. Piani personalizzati di sostegno in favore di persone con handicap grave. Finanziamento Novembre 2018.Liquidazione di spesa in favore di n. 52 beneficiari.;12/12/2018;1429;1;179;1;Spese correnti;4;Trasferimenti correnti;2;Trasferimenti correnti a Famiglie;2;Interventi assistenziali;999;Altri assegni e sussidi assistenziali;12/12/2018
2189;1;0;208,55;208,55;OMESSO NOMINATIVO NEL RISPETTO DELLA NORMATIVA SULLA PROTEZIONE DATI PERSONALI; ;L. 162/98. Piani personalizzati di sostegno in favore di persone con handicap grave. Finanziamento Novembre 2018.LIQUIDAZIONE di spesa.;12/12/2018;1429;1;179;1;Spese correnti;4;Trasferimenti correnti;2;Trasferimenti correnti a Famiglie;2;Interventi assistenziali;999;Altri assegni e sussidi assistenziali;12/12/2018
2190;1;0;200;200;OMESSO NOMINATIVO NEL RISPETTO DELLA NORMATIVA SULLA PROTEZIONE DATI PERSONALI; ;L. 162/98. Piani personalizzati di sostegno in favore di persone con handicap grave. Finanziamento Novembre 2018.Liquidazione di spesa.;12/12/2018;1429;1;179;1;Spese correnti;4;Trasferimenti correnti;2;Trasferimenti correnti a Famiglie;2;Interventi assistenziali;999;Altri assegni e sussidi assistenziali;12/12/2018
2191;1;0;750,06;750,06;OMESSO NOMINATIVO NEL RISPETTO DELLA NORMATIVA SULLA PROTEZIONE DATI PERSONALI; ;L. 162/98. Piani personalizzati di sostegno in favore di persone con handicap grave. Finanziamento Novembre 2018.Liquidazione di spesa.;12/12/2018;1429;1;179;1;Spese correnti;4;Trasferimenti correnti;2;Trasferimenti correnti a Famiglie;2;Interventi assistenziali;999;Altri assegni e sussidi assistenziali;12/12/2018
2192;1;0;0,01;145,08;KUWAIT PETROLEUM ITALIA SPA;Z621D28DB4;ACCONTO Fatt.n. PJ00533653  del 30/11/2018;12/12/2018;208;8;508;1;Spese correnti;3;Acquisto di beni e servizi;1;Acquisto di beni;2;Altri beni di consumo;2;Carburanti, combustibili e lubrificanti;12/12/2018
2192;2;0;145,07;145,08;KUWAIT PETROLEUM ITALIA SPA;Z621D28DB4;SALDO Fatt.n. PJ00533653  del 30/11/2018;12/12/2018;208;8;508;1;Spese correnti;3;Acquisto di beni e servizi;1;Acquisto di beni;2;Altri beni di consumo;2;Carburanti, combustibili e lubrificanti;12/12/2018
2193;1;0;1.440,00;1.440,00;VALENTINA LOI fiori e piante;ZC12577415;SALDO Fatt.n. 2_PA2018  del 03/12/2018 C.I.G.: ZC12577415;12/12/2018;1300;7;487;1;Spese correnti;3;Acquisto di beni e servizi;1;Acquisto di beni;2;Altri beni di consumo;999;Altri beni e materiali di consumo n.a.c.;12/12/2018
2194;1;0;37,32;37,32;ENEL ENERGIA SPA;7429682F87;SALDO Fatt.n. 004812082696  del 14/11/2018;12/12/2018;1090;1;393;1;Spese correnti;3;Acquisto di beni e servizi;2;Acquisto di servizi;5;Utenze e canoni;4;Energia elettrica;12/12/2018
2195;1;0;19,13;19,13;ENEL ENERGIA SPA;7429682F87;SALDO Fatt.n. 004812082695  del 14/11/2018;12/12/2018;1302;2;394;1;Spese correnti;3;Acquisto di beni e servizi;2;Acquisto di servizi;5;Utenze e canoni;4;Energia elettrica;12/12/2018
2196;1;0;19,9;19,9;ENEL ENERGIA SPA;7429682F87;SALDO Fatt.n. 004812082694  del 14/11/2018;12/12/2018;1486;1;404;1;Spese correnti;3;Acquisto di beni e servizi;2;Acquisto di servizi;5;Utenze e canoni;4;Energia elettrica;12/12/2018
2197;1;0;4.644,40;4.644,40;SARLAND SRLS;Z9E251A41A;ACCONTO Fatt.n. FATTPA 20_18  del 08/12/2018;12/12/2018;980;3;398;1;Spese correnti;3;Acquisto di beni e servizi;2;Acquisto di servizi;11;Prestazioni professionali e specialistiche;999;Altre prestazioni professionali e specialistiche n.a.c.;12/12/2018
2198;1;0;2.046,31;2.046,31;SARLAND SRLS;Z9E251A41A;SALDO Fatt.n. FATTPA 20_18  del 08/12/2018;12/12/2018;980;1;399;1;Spese correnti;3;Acquisto di beni e servizi;2;Acquisto di servizi;11;Prestazioni professionali e specialistiche;999;Altre prestazioni professionali e specialistiche n.a.c.;12/12/2018
2199;1;0;97,5;97,5;OMESSO NOMINATIVO NEL RISPETTO DELLA NORMATIVA SULLA PROTEZIONE DATI PERSONALI; ;liquidazione di spesa per l'attribuzione della Borsa di Studio per i Laureati nell'anno 2017 -;13/12/2018;682;7;85;1;Spese correnti;4;Trasferimenti correnti;2;Trasferimenti correnti a Famiglie;3;Borse di studio, dottorati di ricerca e contratti di formazione specialistica area medica;1;Borse di studio;13/12/2018
2201;1;0;150;150;OMESSO NOMINATIVO NEL RISPETTO DELLA NORMATIVA SULLA PROTEZIONE DATI PERSONALI; ;liquidazione di spesa per l'attribuzione della Borsa di Studio per i Laureati nell'anno 2017 -;13/12/2018;682;7;85;1;Spese correnti;4;Trasferimenti correnti;2;Trasferimenti correnti a Famiglie;3;Borse di studio, dottorati di ricerca e contratti di formazione specialistica area medica;1;Borse di studio;13/12/2018
2202;1;0;150;150;OMESSO NOMINATIVO NEL RISPETTO DELLA NORMATIVA SULLA PROTEZIONE DATI PERSONALI; ;liquidazione di spesa per l'attribuzione della Borsa di Studio per i Laureati nell'anno 2017 -;13/12/2018;682;7;85;1;Spese correnti;4;Trasferimenti correnti;2;Trasferimenti correnti a Famiglie;3;Borse di studio, dottorati di ricerca e contratti di formazione specialistica area medica;1;Borse di studio;13/12/2018
2203;1;0;150;150;OMESSO NOMINATIVO NEL RISPETTO DELLA NORMATIVA SULLA PROTEZIONE DATI PERSONALI; ;liquidazione di spesa per l'attribuzione della Borsa di Studio per i Laureati nell'anno 2017 -;13/12/2018;682;7;85;1;Spese correnti;4;Trasferimenti correnti;2;Trasferimenti correnti a Famiglie;3;Borse di studio, dottorati di ricerca e contratti di formazione specialistica area medica;1;Borse di studio;13/12/2018
2204;1;0;97,5;97,5;OMESSO NOMINATIVO NEL RISPETTO DELLA NORMATIVA SULLA PROTEZIONE DATI PERSONALI; ;liquidazione di spesa per l'attribuzione della Borsa di Studio per i Laureati nell'anno 2017 -;13/12/2018;682;7;85;1;Spese correnti;4;Trasferimenti correnti;2;Trasferimenti correnti a Famiglie;3;Borse di studio, dottorati di ricerca e contratti di formazione specialistica area medica;1;Borse di studio;13/12/2018
2205;1;0;150;150;OMESSO NOMINATIVO NEL RISPETTO DELLA NORMATIVA SULLA PROTEZIONE DATI PERSONALI; ;liquidazione di spesa per l'attribuzione della Borsa di Studio per i Laureati nell'anno 2017 -;13/12/2018;682;7;85;1;Spese correnti;4;Trasferimenti correnti;2;Trasferimenti correnti a Famiglie;3;Borse di studio, dottorati di ricerca e contratti di formazione specialistica area medica;1;Borse di studio;13/12/2018
2206;1;0;150;150;OMESSO NOMINATIVO NEL RISPETTO DELLA NORMATIVA SULLA PROTEZIONE DATI PERSONALI; ;liquidazione di spesa per l'attribuzione della Borsa di Studio per i Laureati nell'anno 2017 -;13/12/2018;682;7;85;1;Spese correnti;4;Trasferimenti correnti;2;Trasferimenti correnti a Famiglie;3;Borse di studio, dottorati di ricerca e contratti di formazione specialistica area medica;1;Borse di studio;13/12/2018
2207;1;0;0,2;3.576,54;ENEL ENERGIA SPA;7429682F87;SALDO Fatt.n. 004812260404  del 05/12/2018;13/12/2018;1015;1;392;1;Spese correnti;3;Acquisto di beni e servizi;2;Acquisto di servizi;5;Utenze e canoni;4;Energia elettrica;13/12/2018
2207;2;0;12,52;3.576,54;ENEL ENERGIA SPA;7429682F87;SALDO Fatt.n. 004812260419  del 05/12/2018;13/12/2018;1015;1;392;1;Spese correnti;3;Acquisto di beni e servizi;2;Acquisto di servizi;5;Utenze e canoni;4;Energia elettrica;13/12/2018
2207;3;0;63,5;3.576,54;ENEL ENERGIA SPA;7429682F87;SALDO Fatt.n. 004812260413  del 05/12/2018;13/12/2018;1015;1;392;1;Spese correnti;3;Acquisto di beni e servizi;2;Acquisto di servizi;5;Utenze e canoni;4;Energia elettrica;13/12/2018
2207;4;0;233,59;3.576,54;ENEL ENERGIA SPA;7429682F87;SALDO Fatt.n. 004812260415  del 05/12/2018;13/12/2018;1015;1;392;1;Spese correnti;3;Acquisto di beni e servizi;2;Acquisto di servizi;5;Utenze e canoni;4;Energia elettrica;13/12/2018
2207;5;0;241,44;3.576,54;ENEL ENERGIA SPA;7429682F87;SALDO Fatt.n. 004812260400  del 05/12/2018;13/12/2018;1015;1;392;1;Spese correnti;3;Acquisto di beni e servizi;2;Acquisto di servizi;5;Utenze e canoni;4;Energia elettrica;13/12/2018
2207;6;0;250,47;3.576,54;ENEL ENERGIA SPA;7429682F87;SALDO Fatt.n. 004812260407  del 05/12/2018;13/12/2018;1015;1;392;1;Spese correnti;3;Acquisto di beni e servizi;2;Acquisto di servizi;5;Utenze e canoni;4;Energia elettrica;13/12/2018
2207;7;0;414,13;3.576,54;ENEL ENERGIA SPA;7429682F87;SALDO Fatt.n. 004812260414  del 05/12/2018;13/12/2018;1015;1;392;1;Spese correnti;3;Acquisto di beni e servizi;2;Acquisto di servizi;5;Utenze e canoni;4;Energia elettrica;13/12/2018
2207;8;0;560,03;3.576,54;ENEL ENERGIA SPA;7429682F87;SALDO Fatt.n. 004812260417  del 05/12/2018;13/12/2018;1015;1;392;1;Spese correnti;3;Acquisto di beni e servizi;2;Acquisto di servizi;5;Utenze e canoni;4;Energia elettrica;13/12/2018
2207;9;0;595,7;3.576,54;ENEL ENERGIA SPA;7429682F87;SALDO Fatt.n. 004812260405  del 05/12/2018;13/12/2018;1015;1;392;1;Spese correnti;3;Acquisto di beni e servizi;2;Acquisto di servizi;5;Utenze e canoni;4;Energia elettrica;13/12/2018
2207;10;0;1.204,96;3.576,54;ENEL ENERGIA SPA;7429682F87;SALDO Fatt.n. 004812260396  del 05/12/2018;13/12/2018;1015;1;392;1;Spese correnti;3;Acquisto di beni e servizi;2;Acquisto di servizi;5;Utenze e canoni;4;Energia elettrica;13/12/2018
2208;1;0;19,13;96,75;ENEL ENERGIA SPA;7429682F87;SALDO Fatt.n. 004812260403  del 05/12/2018;13/12/2018;1090;1;393;1;Spese correnti;3;Acquisto di beni e servizi;2;Acquisto di servizi;5;Utenze e canoni;4;Energia elettrica;13/12/2018
2208;2;0;19,13;96,75;ENEL ENERGIA SPA;7429682F87;SALDO Fatt.n. 004812260398  del 05/12/2018;13/12/2018;1090;1;393;1;Spese correnti;3;Acquisto di beni e servizi;2;Acquisto di servizi;5;Utenze e canoni;4;Energia elettrica;13/12/2018
2208;3;0;21,17;96,75;ENEL ENERGIA SPA;7429682F87;SALDO Fatt.n. 004812260399  del 05/12/2018;13/12/2018;1090;1;393;1;Spese correnti;3;Acquisto di beni e servizi;2;Acquisto di servizi;5;Utenze e canoni;4;Energia elettrica;13/12/2018
2208;4;0;37,32;96,75;ENEL ENERGIA SPA;7429682F87;SALDO Fatt.n. 004812260418  del 05/12/2018;13/12/2018;1090;1;393;1;Spese correnti;3;Acquisto di beni e servizi;2;Acquisto di servizi;5;Utenze e canoni;4;Energia elettrica;13/12/2018
2209;1;0;19,11;56,78;ENEL ENERGIA SPA;7429682F87;SALDO Fatt.n. 004812260412  del 05/12/2018;13/12/2018;1302;2;394;1;Spese correnti;3;Acquisto di beni e servizi;2;Acquisto di servizi;5;Utenze e canoni;4;Energia elettrica;13/12/2018
2209;2;0;37,67;56,78;ENEL ENERGIA SPA;7429682F87;SALDO Fatt.n. 004812260395  del 05/12/2018;13/12/2018;1302;2;394;1;Spese correnti;3;Acquisto di beni e servizi;2;Acquisto di servizi;5;Utenze e canoni;4;Energia elettrica;13/12/2018
2210;1;0;143,07;143,07;ENEL ENERGIA SPA;7429682F87;SALDO Fatt.n. 004812260410  del 05/12/2018;13/12/2018;716;4;395;1;Spese correnti;3;Acquisto di beni e servizi;2;Acquisto di servizi;5;Utenze e canoni;4;Energia elettrica;13/12/2018
2211;1;0;273,38;273,38;ENEL ENERGIA SPA;7429682F87;SALDO Fatt.n. 004812260411  del 05/12/2018;13/12/2018;618;4;396;1;Spese correnti;3;Acquisto di beni e servizi;2;Acquisto di servizi;5;Utenze e canoni;4;Energia elettrica;13/12/2018
2212;1;0;62,57;554,42;ENEL ENERGIA SPA;7429682F87;SALDO Fatt.n. 004812260401  del 05/12/2018;13/12/2018;118;4;397;1;Spese correnti;3;Acquisto di beni e servizi;2;Acquisto di servizi;5;Utenze e canoni;4;Energia elettrica;13/12/2018
2212;2;0;457,56;554,42;ENEL ENERGIA SPA;7429682F87;SALDO Fatt.n. 004812260416  del 05/12/2018;13/12/2018;118;4;397;1;Spese correnti;3;Acquisto di beni e servizi;2;Acquisto di servizi;5;Utenze e canoni;4;Energia elettrica;13/12/2018
2212;3;0;34,29;554,42;ENEL ENERGIA SPA;7429682F87;SALDO Fatt.n. 004812260409  del 05/12/2018;13/12/2018;118;4;397;1;Spese correnti;3;Acquisto di beni e servizi;2;Acquisto di servizi;5;Utenze e canoni;4;Energia elettrica;13/12/2018
2213;1;0;152,02;152,02;ENEL ENERGIA SPA;7429682F87;SALDO Fatt.n. 004812260402  del 05/12/2018;13/12/2018;592;4;402;1;Spese correnti;3;Acquisto di beni e servizi;2;Acquisto di servizi;5;Utenze e canoni;4;Energia elettrica;13/12/2018
2214;1;0;155,73;155,73;ENEL ENERGIA SPA;7429682F87;SALDO Fatt.n. 004812260406  del 05/12/2018;13/12/2018;1340;4;403;1;Spese correnti;3;Acquisto di beni e servizi;2;Acquisto di servizi;5;Utenze e canoni;4;Energia elettrica;13/12/2018
2215;1;0;343,28;762,68;ENEL ENERGIA SPA;7429682F87;SALDO Fatt.n. 004812260408  del 05/12/2018;13/12/2018;820;1;405;1;Spese correnti;3;Acquisto di beni e servizi;2;Acquisto di servizi;5;Utenze e canoni;4;Energia elettrica;13/12/2018
2215;2;0;419,4;762,68;ENEL ENERGIA SPA;7429682F87;SALDO Fatt.n. 004812260397  del 05/12/2018;13/12/2018;820;1;405;1;Spese correnti;3;Acquisto di beni e servizi;2;Acquisto di servizi;5;Utenze e canoni;4;Energia elettrica;13/12/2018
2216;1;0;124,14;124,14;ENEL ENERGIA SPA;Z7122ECA74;SALDO Fatt.n. 004812260420  del 05/12/2018;13/12/2018;744;1;135;1;Spese correnti;3;Acquisto di beni e servizi;2;Acquisto di servizi;5;Utenze e canoni;4;Energia elettrica;13/12/2018
2271;1;0;1,29;1,29;AGENZIA DELLE ENTRATE - RISCOSSIONE; ;COMMISSIONI RISCOSSIONI TRIBUTI;21/12/2018;190;1;946;1;Spese correnti;3;Acquisto di beni e servizi;2;Acquisto di servizi;3;Aggi di riscossione;999;Altri aggi di riscossione n.a.c.;21/12/2018
2272;1;0;1,24;1,24;AGENZIA DELLE ENTRATE - RISCOSSIONE; ;SPESE RISCOSSIONE TRIBUTI;21/12/2018;190;1;917;1;Spese correnti;3;Acquisto di beni e servizi;2;Acquisto di servizi;3;Aggi di riscossione;999;Altri aggi di riscossione n.a.c.;21/12/2018
2273;1;0;1,09;1,09;AGENZIA DELLE ENTRATE - RISCOSSIONE; ;SPESE RISCOSSIONE TRIBUTI;21/12/2018;190;1;923;1;Spese correnti;3;Acquisto di beni e servizi;2;Acquisto di servizi;3;Aggi di riscossione;999;Altri aggi di riscossione n.a.c.;21/12/2018
2274;1;0;0,79;0,79;AGENZIA DELLE ENTRATE - RISCOSSIONE; ;SPESE RISCOSSIONE TRIBUTI;21/12/2018;190;1;923;1;Spese correnti;3;Acquisto di beni e servizi;2;Acquisto di servizi;3;Aggi di riscossione;999;Altri aggi di riscossione n.a.c.;21/12/2018
2275;1;0;0,18;0,18;AGENZIA DELLE ENTRATE - RISCOSSIONE; ;SPESE RISCOSSIONE TRIBUTI;21/12/2018;190;1;923;1;Spese correnti;3;Acquisto di beni e servizi;2;Acquisto di servizi;3;Aggi di riscossione;999;Altri aggi di riscossione n.a.c.;21/12/2018
2276;1;0;0,04;0,04;AGENZIA DELLE ENTRATE - RISCOSSIONE; ;SPESE RISCOSSIONE TRIBUTI;21/12/2018;190;1;923;1;Spese correnti;3;Acquisto di beni e servizi;2;Acquisto di servizi;3;Aggi di riscossione;999;Altri aggi di riscossione n.a.c.;21/12/2018
2277;1;0;3,66;3,66;AGENZIA DELLE ENTRATE - RISCOSSIONE; ;COMMISSIONI RISCOSSIONI TRIBUTI;21/12/2018;190;1;946;1;Spese correnti;3;Acquisto di beni e servizi;2;Acquisto di servizi;3;Aggi di riscossione;999;Altri aggi di riscossione n.a.c.;21/12/2018
2278;1;0;2,05;2,05;AGENZIA DELLE ENTRATE - RISCOSSIONE; ;SPESE RISCOSSIONE TRIBUTI;28/12/2018;190;1;917;1;Spese correnti;3;Acquisto di beni e servizi;2;Acquisto di servizi;3;Aggi di riscossione;999;Altri aggi di riscossione n.a.c.;28/12/2018
2279;1;0;0,18;0,18;AGENZIA DELLE ENTRATE - RISCOSSIONE; ;SPESE RISCOSSIONE TRIBUTI;28/12/2018;190;1;917;1;Spese correnti;3;Acquisto di beni e servizi;2;Acquisto di servizi;3;Aggi di riscossione;999;Altri aggi di riscossione n.a.c.;28/12/2018
2280;1;0;1;78,4;BANCO DI SARDEGNA spa;Z9F0FDB3ED;Servizio Tesoreria. Proroga convenzione Banco di Sardegna spa fino al 31.12.2018. LIQUIDAZIONE spesa.;31/12/2018;156;1;347;1;Spese correnti;3;Acquisto di beni e servizi;2;Acquisto di servizi;17;Servizi finanziari;2;Oneri per servizio di tesoreria;31/12/2018
2280;2;0;77,4;78,4;BANCO DI SARDEGNA spa;Z9F0FDB3ED;Servizio Tesoreria. Proroga convenzione Banco di Sardegna spa fino al 31.12.2018. LIQUIDAZIONE spesa.;31/12/2018;156;1;347;1;Spese correnti;3;Acquisto di beni e servizi;2;Acquisto di servizi;17;Servizi finanziari;2;Oneri per servizio di tesoreria;31/12/2018
